Workbook

Sheet Data
A1: EXCHANGE%3DNSE
A2: MARKET_OPEN_MINUTE=555
A3: MARKET_CLOSE_MINUTE=930
A4: INTERVAL=301
A5: COLUMNS=DATE | B5: CLOSE | C5: HIGH | D5: LOW | E5: OPEN | F5: VOLUME
A6: DATA=
A7: TIMEZONE_OFFSET=330
A8: a1531453800 | B8: 1983.5 | C8: 1988.4 | D8: 1975 | E8: 1975 | F8: 180020 | G8: 2018-07-13T09:20:00
A9: a1531454100 | B9: 1983.3 | C9: 1985 | D9: 1980 | E9: 1984.65 | F9: 110721 | G9: 2018-07-13T09:25:00
A10: a1531454400 | B10: 1986.55 | C10: 1988 | D10: 1980.4 | E10: 1983.3 | F10: 179613 | G10: 2018-07-13T09:30:00
A11: a1531454700 | B11: 1987.9 | C11: 1991 | D11: 1985.05 | E11: 1986.55 | F11: 192524 | G11: 2018-07-13T09:35:00
A12: a1531455000 | B12: 1986.45 | C12: 1988.9 | D12: 1985.05 | E12: 1987.8 | F12: 76609 | G12: 2018-07-13T09:40:00
A13: a1531455300 | B13: 1989.6 | C13: 1989.85 | D13: 1985.95 | E13: 1986.75 | F13: 79261 | G13: 2018-07-13T09:45:00
A14: a1531455600 | B14: 1990.1 | C14: 1990.5 | D14: 1986 | E14: 1989 | F14: 102903 | G14: 2018-07-13T09:50:00
A15: a1531455900 | B15: 1992.7 | C15: 1992.9 | D15: 1989.05 | E15: 1990.1 | F15: 111066 | G15: 2018-07-13T09:55:00
A16: a1531456200 | B16: 1997.25 | C16: 1997.7 | D16: 1991.3 | E16: 1992.7 | F16: 193080 | G16: 2018-07-13T10:00:00
A17: a1531456500 | B17: 1996 | C17: 1997.9 | D17: 1991.9 | E17: 1997.35 | F17: 183025 | G17: 2018-07-13T10:05:00
A18: a1531456800 | B18: 1987.05 | C18: 1995.95 | D18: 1983.1 | E18: 1995.6 | F18: 197758 | G18: 2018-07-13T10:10:00
A19: a1531457100 | B19: 1985.9 | C19: 1987.6 | D19: 1985 | E19: 1987 | F19: 86930 | G19: 2018-07-13T10:15:00
A20: a1531457400 | B20: 1982.65 | C20: 1987 | D20: 1980.05 | E20: 1986.1 | F20: 65661 | G20: 2018-07-13T10:20:00
A21: a1531457700 | B21: 1979.95 | C21: 1982.75 | D21: 1976.55 | E21: 1982 | F21: 118900 | G21: 2018-07-13T10:25:00
A22: a1531458000 | B22: 1983.95 | C22: 1984.55 | D22: 1978.4 | E22: 1979.95 | F22: 75809 | G22: 2018-07-13T10:30:00
A23: a1531458300 | B23: 1985 | C23: 1985 | D23: 1983 | E23: 1983.95 | F23: 30862 | G23: 2018-07-13T10:35:00
A24: a1531458600 | B24: 1983 | C24: 1985 | D24: 1978 | E24: 1985 | F24: 61641 | G24: 2018-07-13T10:40:00
A25: a1531458900 | B25: 1983.5 | C25: 1983.8 | D25: 1980.75 | E25: 1983.15 | F25: 27380 | G25: 2018-07-13T10:45:00
A26: a1531459200 | B26: 1983.55 | C26: 1985 | D26: 1982.6 | E26: 1983.5 | F26: 30416 | G26: 2018-07-13T10:50:00
A27: a1531459500 | B27: 1980.95 | C27: 1984 | D27: 1980.55 | E27: 1983.95 | F27: 27502 | G27: 2018-07-13T10:55:00
A28: a1531459800 | B28: 1984.15 | C28: 1984.6 | D28: 1980.5 | E28: 1980.95 | F28: 21371 | G28: 2018-07-13T11:00:00
A29: a1531460100 | B29: 1984.9 | C29: 1984.9 | D29: 1983.4 | E29: 1984.1 | F29: 19130 | G29: 2018-07-13T11:05:00
A30: a1531460400 | B30: 1985.8 | C30: 1986 | D30: 1983.7 | E30: 1984.9 | F30: 53211 | G30: 2018-07-13T11:10:00
A31: a1531460700 | B31: 1985.95 | C31: 1987.85 | D31: 1985.15 | E31: 1985.85 | F31: 36599 | G31: 2018-07-13T11:15:00
A32: a1531461000 | B32: 1985.7 | C32: 1987 | D32: 1985.1 | E32: 1985.95 | F32: 26880 | G32: 2018-07-13T11:20:00
A33: a1531461300 | B33: 1985 | C33: 1987.35 | D33: 1985 | E33: 1985.95 | F33: 34242 | G33: 2018-07-13T11:25:00
A34: a1531461600 | B34: 1984 | C34: 1985.5 | D34: 1984 | E34: 1985.25 | F34: 25356 | G34: 2018-07-13T11:30:00
A35: a1531461900 | B35: 1985.2 | C35: 1985.35 | D35: 1982 | E35: 1984.35 | F35: 30024 | G35: 2018-07-13T11:35:00
A36: a1531462200 | B36: 1984.4 | C36: 1986.15 | D36: 1983.85 | E36: 1985.2 | F36: 19872 | G36: 2018-07-13T11:40:00
A37: a1531462500 | B37: 1984.45 | C37: 1985.55 | D37: 1983 | E37: 1983.95 | F37: 13711 | G37: 2018-07-13T11:45:00
A38: a1531462800 | B38: 1984.75 | C38: 1985 | D38: 1983.25 | E38: 1984.5 | F38: 15750 | G38: 2018-07-13T11:50:00
A39: a1531463100 | B39: 1985.65 | C39: 1986.9 | D39: 1984 | E39: 1984.75 | F39: 22563 | G39: 2018-07-13T11:55:00
A40: a1531463400 | B40: 1984.45 | C40: 1986 | D40: 1984.1 | E40: 1985.25 | F40: 19224 | G40: 2018-07-13T12:00:00
A41: a1531463700 | B41: 1985.1 | C41: 1985.65 | D41: 1983 | E41: 1984.6 | F41: 14166 | G41: 2018-07-13T12:05:00
A42: a1531464000 | B42: 1985.15 | C42: 1986 | D42: 1984.2 | E42: 1985.5 | F42: 15521 | G42: 2018-07-13T12:10:00
A43: a1531464300 | B43: 1986.4 | C43: 1986.5 | D43: 1985 | E43: 1985.2 | F43: 17379 | G43: 2018-07-13T12:15:00
A44: a1531464600 | B44: 1987.8 | C44: 1988.4 | D44: 1986.3 | E44: 1986.4 | F44: 35632 | G44: 2018-07-13T12:20:00
A45: a1531464900 | B45: 1987 | C45: 1987.95 | D45: 1985.5 | E45: 1987.9 | F45: 14203 | G45: 2018-07-13T12:25:00
A46: a1531465200 | B46: 1987.85 | C46: 1988 | D46: 1986.95 | E46: 1987 | F46: 13915 | G46: 2018-07-13T12:30:00
A47: a1531465500 | B47: 1987.65 | C47: 1989.4 | D47: 1987 | E47: 1987.85 | F47: 28588 | G47: 2018-07-13T12:35:00
A48: a1531465800 | B48: 1988.35 | C48: 1989 | D48: 1986 | E48: 1987.9 | F48: 23979 | G48: 2018-07-13T12:40:00
A49: a1531466100 | B49: 1988.25 | C49: 1989 | D49: 1986.15 | E49: 1988.35 | F49: 28107 | G49: 2018-07-13T12:45:00
A50: a1531466400 | B50: 1988.4 | C50: 1988.5 | D50: 1986.95 | E50: 1988.25 | F50: 15966 | G50: 2018-07-13T12:50:00
A51: a1531466700 | B51: 1988.25 | C51: 1988.4 | D51: 1987.4 | E51: 1988.4 | F51: 13966 | G51: 2018-07-13T12:55:00
A52: a1531467000 | B52: 1987.9 | C52: 1988.35 | D52: 1987.55 | E52: 1988.35 | F52: 14361 | G52: 2018-07-13T13:00:00
A53: a1531467300 | B53: 1987 | C53: 1989 | D53: 1985.7 | E53: 1987.95 | F53: 34616 | G53: 2018-07-13T13:05:00
A54: a1531467600 | B54: 1988.25 | C54: 1989.8 | D54: 1986.5 | E54: 1987.7 | F54: 48377 | G54: 2018-07-13T13:10:00
A55: a1531467900 | B55: 1991.5 | C55: 1992.7 | D55: 1987.75 | E55: 1988.25 | F55: 79196 | G55: 2018-07-13T13:15:00
A56: a1531468200 | B56: 1991.35 | C56: 1992 | D56: 1990.1 | E56: 1990.35 | F56: 30968 | G56: 2018-07-13T13:20:00
A57: a1531468500 | B57: 1991.45 | C57: 1993 | D57: 1990 | E57: 1990.9 | F57: 57254 | G57: 2018-07-13T13:25:00
A58: a1531468800 | B58: 1991.55 | C58: 1992 | D58: 1990.6 | E58: 1991.45 | F58: 17728 | G58: 2018-07-13T13:30:00
A59: a1531469100 | B59: 1987.8 | C59: 1991.65 | D59: 1986.5 | E59: 1991.45 | F59: 34686 | G59: 2018-07-13T13:35:00
A60: a1531469400 | B60: 1990.3 | C60: 1990.75 | D60: 1987 | E60: 1987.75 | F60: 18136 | G60: 2018-07-13T13:40:00
A61: a1531469700 | B61: 1989.95 | C61: 1991.5 | D61: 1989.5 | E61: 1990.35 | F61: 21139 | G61: 2018-07-13T13:45:00
A62: a1531470000 | B62: 1987.3 | C62: 1990 | D62: 1986.5 | E62: 1990 | F62: 22051 | G62: 2018-07-13T13:50:00
A63: a1531470300 | B63: 1989.7 | C63: 1989.7 | D63: 1986.3 | E63: 1987.3 | F63: 31974 | G63: 2018-07-13T13:55:00
A64: a1531470600 | B64: 1989.35 | C64: 1989.95 | D64: 1987.35 | E64: 1989.7 | F64: 36363 | G64: 2018-07-13T14:00:00
A65: a1531470900 | B65: 1989 | C65: 1989.45 | D65: 1988.15 | E65: 1989.25 | F65: 12305 | G65: 2018-07-13T14:05:00
A66: a1531471200 | B66: 1988.85 | C66: 1989 | D66: 1988.35 | E66: 1989 | F66: 15957 | G66: 2018-07-13T14:10:00
A67: a1531471500 | B67: 1987 | C67: 1989 | D67: 1987 | E67: 1988.95 | F67: 36533 | G67: 2018-07-13T14:15:00
A68: a1531471800 | B68: 1987.65 | C68: 1988 | D68: 1986 | E68: 1987 | F68: 29736 | G68: 2018-07-13T14:20:00
A69: a1531472100 | B69: 1983.75 | C69: 1987.7 | D69: 1980 | E69: 1987.7 | F69: 87413 | G69: 2018-07-13T14:25:00
A70: a1531472400 | B70: 1981.4 | C70: 1985.85 | D70: 1981.2 | E70: 1984 | F70: 49935 | G70: 2018-07-13T14:30:00
A71: a1531472700 | B71: 1984.4 | C71: 1984.5 | D71: 1981.2 | E71: 1981.2 | F71: 27945 | G71: 2018-07-13T14:35:00
A72: a1531473000 | B72: 1986.2 | C72: 1987 | D72: 1984.15 | E72: 1984.2 | F72: 41095 | G72: 2018-07-13T14:40:00
A73: a1531473300 | B73: 1983.95 | C73: 1987.95 | D73: 1982.5 | E73: 1986.9 | F73: 23897 | G73: 2018-07-13T14:45:00
A74: a1531473600 | B74: 1984.85 | C74: 1985.2 | D74: 1982.2 | E74: 1984.5 | F74: 29905 | G74: 2018-07-13T14:50:00
A75: a1531473900 | B75: 1983.05 | C75: 1984.95 | D75: 1982.05 | E75: 1984.85 | F75: 37339 | G75: 2018-07-13T14:55:00
A76: a1531474200 | B76: 1985.1 | C76: 1985.2 | D76: 1982 | E76: 1983.05 | F76: 44651 | G76: 2018-07-13T15:00:00
A77: a1531474500 | B77: 1983.3 | C77: 1986 | D77: 1982.2 | E77: 1985 | F77: 54237 | G77: 2018-07-13T15:05:00
A78: a1531474800 | B78: 1983.85 | C78: 1985 | D78: 1983.15 | E78: 1983.5 | F78: 55717 | G78: 2018-07-13T15:10:00
A79: a1531475100 | B79: 1983.2 | C79: 1984 | D79: 1981.2 | E79: 1983.85 | F79: 85994 | G79: 2018-07-13T15:15:00
A80: a1531475400 | B80: 1981.15 | C80: 1984.4 | D80: 1980.75 | E80: 1983.45 | F80: 136420 | G80: 2018-07-13T15:20:00
A81: a1531475700 | B81: 1978 | C81: 1981.4 | D81: 1977.15 | E81: 1981.05 | F81: 150406 | G81: 2018-07-13T15:25:00
A82: a1531476000 | B82: 1977.6 | C82: 1979 | D82: 1977 | E82: 1978.05 | F82: 84194 | G82: 2018-07-13T15:30:00
A83: a1531713000 | B83: 1993.45 | C83: 1995.9 | D83: 1982.65 | E83: 1986.95 | F83: 158632 | G83: 2018-07-16T09:20:00
A84: a1531713300 | B84: 1991.05 | C84: 1994 | D84: 1986.4 | E84: 1993.45 | F84: 112226 | G84: 2018-07-16T09:25:00
A85: a1531713600 | B85: 1990.25 | C85: 1993.35 | D85: 1984.75 | E85: 1991.05 | F85: 66079 | G85: 2018-07-16T09:30:00
A86: a1531713900 | B86: 1988.95 | C86: 1993 | D86: 1985.55 | E86: 1990.2 | F86: 55973 | G86: 2018-07-16T09:35:00
A87: a1531714200 | B87: 1987.1 | C87: 1990 | D87: 1986.4 | E87: 1988.95 | F87: 89935 | G87: 2018-07-16T09:40:00
A88: a1531714500 | B88: 1989.65 | C88: 1989.85 | D88: 1985.55 | E88: 1987.35 | F88: 74445 | G88: 2018-07-16T09:45:00
A89: a1531714800 | B89: 1990 | C89: 1991.45 | D89: 1988 | E89: 1989.65 | F89: 39680 | G89: 2018-07-16T09:50:00
A90: a1531715100 | B90: 1985.05 | C90: 1990 | D90: 1985.05 | E90: 1989.85 | F90: 59756 | G90: 2018-07-16T09:55:00
A91: a1531715400 | B91: 1986.7 | C91: 1988 | D91: 1984 | E91: 1985.05 | F91: 31278 | G91: 2018-07-16T10:00:00
A92: a1531715700 | B92: 1984.8 | C92: 1987.3 | D92: 1981 | E92: 1986.65 | F92: 50546 | G92: 2018-07-16T10:05:00
A93: a1531716000 | B93: 1988.5 | C93: 1989.5 | D93: 1984.8 | E93: 1984.8 | F93: 51424 | G93: 2018-07-16T10:10:00
A94: a1531716300 | B94: 1987.2 | C94: 1988.95 | D94: 1985.05 | E94: 1988.5 | F94: 30980 | G94: 2018-07-16T10:15:00
A95: a1531716600 | B95: 1985.6 | C95: 1987.9 | D95: 1985.4 | E95: 1987.2 | F95: 13373 | G95: 2018-07-16T10:20:00
A96: a1531716900 | B96: 1985.85 | C96: 1987 | D96: 1985.05 | E96: 1986 | F96: 14524 | G96: 2018-07-16T10:25:00
A97: a1531717200 | B97: 1985.9 | C97: 1987.2 | D97: 1985.5 | E97: 1985.9 | F97: 15456 | G97: 2018-07-16T10:30:00
A98: a1531717500 | B98: 1988.6 | C98: 1988.75 | D98: 1984 | E98: 1985.95 | F98: 23928 | G98: 2018-07-16T10:35:00
A99: a1531717800 | B99: 1987.65 | C99: 1989 | D99: 1985.9 | E99: 1988.6 | F99: 18702 | G99: 2018-07-16T10:40:00
A100: a1531718100 | B100: 1985.95 | C100: 1987.75 | D100: 1985.95 | E100: 1987.65 | F100: 13694 | G100: 2018-07-16T10:45:00
A101: a1531718400 | B101: 1985.85 | C101: 1986.85 | D101: 1984.8 | E101: 1985.95 | F101: 26546 | G101: 2018-07-16T10:50:00
A102: a1531718700 | B102: 1980.7 | C102: 1987 | D102: 1978.35 | E102: 1985.9 | F102: 49845 | G102: 2018-07-16T10:55:00
A103: a1531719000 | B103: 1983.25 | C103: 1986.3 | D103: 1980.5 | E103: 1981 | F103: 20668 | G103: 2018-07-16T11:00:00
A104: a1531719300 | B104: 1984.75 | C104: 1985.35 | D104: 1983 | E104: 1983.95 | F104: 13783 | G104: 2018-07-16T11:05:00
A105: a1531719600 | B105: 1984.95 | C105: 1985.4 | D105: 1983.4 | E105: 1984.75 | F105: 11655 | G105: 2018-07-16T11:10:00
A106: a1531719900 | B106: 1985.5 | C106: 1986 | D106: 1982.6 | E106: 1985.4 | F106: 18644 | G106: 2018-07-16T11:15:00
A107: a1531720200 | B107: 1985.9 | C107: 1986 | D107: 1983.35 | E107: 1985.2 | F107: 15273 | G107: 2018-07-16T11:20:00
A108: a1531720500 | B108: 1985.25 | C108: 1987 | D108: 1985.25 | E108: 1985.9 | F108: 11470 | G108: 2018-07-16T11:25:00
A109: a1531720800 | B109: 1986 | C109: 1986 | D109: 1983.75 | E109: 1985.4 | F109: 10167 | G109: 2018-07-16T11:30:00
A110: a1531721100 | B110: 1985.95 | C110: 1986.65 | D110: 1985.1 | E110: 1985.95 | F110: 10370 | G110: 2018-07-16T11:35:00
A111: a1531721400 | B111: 1986.05 | C111: 1986.85 | D111: 1985.65 | E111: 1986 | F111: 11422 | G111: 2018-07-16T11:40:00
A112: a1531721700 | B112: 1985.95 | C112: 1986.8 | D112: 1985.8 | E112: 1986.1 | F112: 10867 | G112: 2018-07-16T11:45:00
A113: a1531722000 | B113: 1986 | C113: 1986.8 | D113: 1985.8 | E113: 1986 | F113: 12059 | G113: 2018-07-16T11:50:00
A114: a1531722300 | B114: 1985.9 | C114: 1986.9 | D114: 1985.75 | E114: 1986 | F114: 8195 | G114: 2018-07-16T11:55:00
A115: a1531722600 | B115: 1986 | C115: 1986.15 | D115: 1985 | E115: 1985.95 | F115: 8312 | G115: 2018-07-16T12:00:00
A116: a1531722900 | B116: 1985.95 | C116: 1986.45 | D116: 1985.5 | E116: 1986.05 | F116: 9257 | G116: 2018-07-16T12:05:00
A117: a1531723200 | B117: 1986.1 | C117: 1986.45 | D117: 1985.85 | E117: 1986 | F117: 10312 | G117: 2018-07-16T12:10:00
A118: a1531723500 | B118: 1987 | C118: 1987.75 | D118: 1985.9 | E118: 1986.05 | F118: 14284 | G118: 2018-07-16T12:15:00
A119: a1531723800 | B119: 1987 | C119: 1987.35 | D119: 1985.8 | E119: 1987 | F119: 22421 | G119: 2018-07-16T12:20:00
A120: a1531724100 | B120: 1986.8 | C120: 1987.25 | D120: 1985.6 | E120: 1986.95 | F120: 11088 | G120: 2018-07-16T12:25:00
A121: a1531724400 | B121: 1989.35 | C121: 1989.85 | D121: 1986.1 | E121: 1986.55 | F121: 30098 | G121: 2018-07-16T12:30:00
A122: a1531724700 | B122: 1988.65 | C122: 1989.65 | D122: 1987.45 | E122: 1989.35 | F122: 19520 | G122: 2018-07-16T12:35:00
A123: a1531725000 | B123: 1991 | C123: 1991.95 | D123: 1988.35 | E123: 1988.65 | F123: 42486 | G123: 2018-07-16T12:40:00
A124: a1531725300 | B124: 1991 | C124: 1992.05 | D124: 1990 | E124: 1991.2 | F124: 31684 | G124: 2018-07-16T12:45:00
A125: a1531725600 | B125: 1990.25 | C125: 1991.5 | D125: 1989.55 | E125: 1991 | F125: 34544 | G125: 2018-07-16T12:50:00
A126: a1531725900 | B126: 1990.35 | C126: 1991.5 | D126: 1990 | E126: 1990.6 | F126: 27019 | G126: 2018-07-16T12:55:00
A127: a1531726200 | B127: 1990.15 | C127: 1990.95 | D127: 1989.7 | E127: 1990.35 | F127: 40021 | G127: 2018-07-16T13:00:00
A128: a1531726500 | B128: 1990 | C128: 1990.5 | D128: 1989.8 | E128: 1990 | F128: 17728 | G128: 2018-07-16T13:05:00
A129: a1531726800 | B129: 1989.9 | C129: 1990.85 | D129: 1989.85 | E129: 1990 | F129: 56436 | G129: 2018-07-16T13:10:00
A130: a1531727100 | B130: 1991 | C130: 1995 | D130: 1989.85 | E130: 1989.9 | F130: 130693 | G130: 2018-07-16T13:15:00
A131: a1531727400 | B131: 1990.1 | C131: 1991.2 | D131: 1988.6 | E131: 1990.65 | F131: 43429 | G131: 2018-07-16T13:20:00
A132: a1531727700 | B132: 1990 | C132: 1990.75 | D132: 1989.85 | E132: 1990.1 | F132: 18868 | G132: 2018-07-16T13:25:00
A133: a1531728000 | B133: 1990.8 | C133: 1991 | D133: 1989.95 | E133: 1989.95 | F133: 14993 | G133: 2018-07-16T13:30:00
A134: a1531728300 | B134: 1991.85 | C134: 1992.5 | D134: 1990.4 | E134: 1990.65 | F134: 15021 | G134: 2018-07-16T13:35:00
A135: a1531728600 | B135: 1989.95 | C135: 1991.9 | D135: 1989.85 | E135: 1991.8 | F135: 18083 | G135: 2018-07-16T13:40:00
A136: a1531728900 | B136: 1990 | C136: 1991.5 | D136: 1989.6 | E136: 1989.95 | F136: 16219 | G136: 2018-07-16T13:45:00
A137: a1531729200 | B137: 1990.6 | C137: 1991.2 | D137: 1989.5 | E137: 1989.95 | F137: 17138 | G137: 2018-07-16T13:50:00
A138: a1531729500 | B138: 1990.25 | C138: 1991.6 | D138: 1989.8 | E138: 1990.15 | F138: 13194 | G138: 2018-07-16T13:55:00
A139: a1531729800 | B139: 1990.15 | C139: 1991 | D139: 1989.5 | E139: 1990.5 | F139: 42261 | G139: 2018-07-16T14:00:00
A140: a1531730100 | B140: 1989.15 | C140: 1991 | D140: 1988.5 | E140: 1990 | F140: 27224 | G140: 2018-07-16T14:05:00
A141: a1531730400 | B141: 1989.25 | C141: 1990.35 | D141: 1988.3 | E141: 1989.2 | F141: 13881 | G141: 2018-07-16T14:10:00
A142: a1531730700 | B142: 1990 | C142: 1990.3 | D142: 1989.15 | E142: 1989.2 | F142: 17785 | G142: 2018-07-16T14:15:00
A143: a1531731000 | B143: 1990 | C143: 1990.2 | D143: 1988.1 | E143: 1989.9 | F143: 22820 | G143: 2018-07-16T14:20:00
A144: a1531731300 | B144: 1990.4 | C144: 1991.85 | D144: 1989.95 | E144: 1989.95 | F144: 15890 | G144: 2018-07-16T14:25:00
A145: a1531731600 | B145: 1990.55 | C145: 1991 | D145: 1989.85 | E145: 1990.2 | F145: 16234 | G145: 2018-07-16T14:30:00
A146: a1531731900 | B146: 1990.75 | C146: 1991.3 | D146: 1990.25 | E146: 1990.3 | F146: 13415 | G146: 2018-07-16T14:35:00
A147: a1531732200 | B147: 1990.4 | C147: 1991.75 | D147: 1989.85 | E147: 1990.5 | F147: 20700 | G147: 2018-07-16T14:40:00
A148: a1531732500 | B148: 1987.35 | C148: 1991.2 | D148: 1985.5 | E148: 1991.15 | F148: 32424 | G148: 2018-07-16T14:45:00
A149: a1531732800 | B149: 1987.1 | C149: 1988.65 | D149: 1985.3 | E149: 1987.95 | F149: 22443 | G149: 2018-07-16T14:50:00
A150: a1531733100 | B150: 1989.4 | C150: 1989.95 | D150: 1987.2 | E150: 1987.2 | F150: 24586 | G150: 2018-07-16T14:55:00
A151: a1531733400 | B151: 1987.3 | C151: 1990 | D151: 1985.6 | E151: 1989.4 | F151: 26378 | G151: 2018-07-16T15:00:00
A152: a1531733700 | B152: 1989 | C152: 1989.35 | D152: 1987 | E152: 1987.25 | F152: 30415 | G152: 2018-07-16T15:05:00
A153: a1531734000 | B153: 1989.2 | C153: 1990 | D153: 1988.9 | E153: 1988.9 | F153: 44353 | G153: 2018-07-16T15:10:00
A154: a1531734300 | B154: 1989.35 | C154: 1989.9 | D154: 1987.2 | E154: 1989.25 | F154: 65347 | G154: 2018-07-16T15:15:00
A155: a1531734600 | B155: 1989.05 | C155: 1995.8 | D155: 1988.7 | E155: 1989.4 | F155: 127856 | G155: 2018-07-16T15:20:00
A156: a1531734900 | B156: 1987.9 | C156: 1989.85 | D156: 1987.15 | E156: 1989.05 | F156: 60310 | G156: 2018-07-16T15:25:00
A157: a1531735200 | B157: 1988.85 | C157: 1989.35 | D157: 1986 | E157: 1987.8 | F157: 132847 | G157: 2018-07-16T15:30:00
A158: a1531799400 | B158: 1996.05 | C158: 1996.05 | D158: 1982.4 | E158: 1987 | F158: 140568 | G158: 2018-07-17T09:20:00
A159: a1531799700 | B159: 1988 | C159: 1997 | D159: 1987.15 | E159: 1997 | F159: 341743 | G159: 2018-07-17T09:25:00
A160: a1531800000 | B160: 1985.3 | C160: 1989.25 | D160: 1985.05 | E160: 1988.2 | F160: 111324 | G160: 2018-07-17T09:30:00
A161: a1531800300 | B161: 1986.85 | C161: 1988 | D161: 1984.05 | E161: 1985.05 | F161: 33719 | G161: 2018-07-17T09:35:00
A162: a1531800600 | B162: 1987.75 | C162: 1987.9 | D162: 1985 | E162: 1986.2 | F162: 26924 | G162: 2018-07-17T09:40:00
A163: a1531800900 | B163: 1982.9 | C163: 1987.9 | D163: 1981 | E163: 1987 | F163: 34279 | G163: 2018-07-17T09:45:00
A164: a1531801200 | B164: 1984.5 | C164: 1984.9 | D164: 1981.45 | E164: 1982.25 | F164: 26040 | G164: 2018-07-17T09:50:00
A165: a1531801500 | B165: 1982.95 | C165: 1984.6 | D165: 1982.2 | E165: 1983.45 | F165: 22677 | G165: 2018-07-17T09:55:00
A166: a1531801800 | B166: 1984.55 | C166: 1984.85 | D166: 1982.65 | E166: 1983.15 | F166: 19769 | G166: 2018-07-17T10:00:00
A167: a1531802100 | B167: 1986.3 | C167: 1988.3 | D167: 1983.4 | E167: 1984.7 | F167: 33647 | G167: 2018-07-17T10:05:00
A168: a1531802400 | B168: 1984.85 | C168: 1986.95 | D168: 1984 | E168: 1986.45 | F168: 20589 | G168: 2018-07-17T10:10:00
A169: a1531802700 | B169: 1987 | C169: 1987 | D169: 1983.65 | E169: 1984.85 | F169: 22827 | G169: 2018-07-17T10:15:00
A170: a1531803000 | B170: 1987.2 | C170: 1989.65 | D170: 1985.05 | E170: 1987.35 | F170: 142644 | G170: 2018-07-17T10:20:00
A171: a1531803300 | B171: 1988 | C171: 1989 | D171: 1987.45 | E171: 1988.35 | F171: 23222 | G171: 2018-07-17T10:25:00
A172: a1531803600 | B172: 1986.45 | C172: 1988.8 | D172: 1985.1 | E172: 1988 | F172: 38775 | G172: 2018-07-17T10:30:00
A173: a1531803900 | B173: 1986.75 | C173: 1988.7 | D173: 1986.1 | E173: 1986.45 | F173: 28513 | G173: 2018-07-17T10:35:00
A174: a1531804200 | B174: 1988.45 | C174: 1989 | D174: 1986.4 | E174: 1986.75 | F174: 12052 | G174: 2018-07-17T10:40:00
A175: a1531804500 | B175: 1988.9 | C175: 1989 | D175: 1986.7 | E175: 1988.3 | F175: 11597 | G175: 2018-07-17T10:45:00
A176: a1531804800 | B176: 1988.45 | C176: 1989 | D176: 1986.7 | E176: 1988.4 | F176: 24150 | G176: 2018-07-17T10:50:00
A177: a1531805100 | B177: 1988.65 | C177: 1988.85 | D177: 1986.85 | E177: 1988.35 | F177: 11130 | G177: 2018-07-17T10:55:00
A178: a1531805400 | B178: 1988.55 | C178: 1988.95 | D178: 1987.5 | E178: 1988.7 | F178: 10535 | G178: 2018-07-17T11:00:00
A179: a1531805700 | B179: 1988.45 | C179: 1989 | D179: 1987.7 | E179: 1988.5 | F179: 12420 | G179: 2018-07-17T11:05:00
A180: a1531806000 | B180: 1988.5 | C180: 1988.65 | D180: 1987.5 | E180: 1988.45 | F180: 12667 | G180: 2018-07-17T11:10:00
A181: a1531806300 | B181: 1989 | C181: 1989.55 | D181: 1987.5 | E181: 1988.5 | F181: 109469 | G181: 2018-07-17T11:15:00
A182: a1531806600 | B182: 1987.95 | C182: 1989 | D182: 1986 | E182: 1989 | F182: 20990 | G182: 2018-07-17T11:20:00
A183: a1531806900 | B183: 1988 | C183: 1988.85 | D183: 1987.2 | E183: 1988 | F183: 12792 | G183: 2018-07-17T11:25:00
A184: a1531807200 | B184: 1987.5 | C184: 1988.5 | D184: 1987 | E184: 1988 | F184: 12989 | G184: 2018-07-17T11:30:00
A185: a1531807500 | B185: 1988.5 | C185: 1988.7 | D185: 1987.05 | E185: 1987.1 | F185: 10327 | G185: 2018-07-17T11:35:00
A186: a1531807800 | B186: 1991 | C186: 1993 | D186: 1988 | E186: 1988.5 | F186: 50022 | G186: 2018-07-17T11:40:00
A187: a1531808100 | B187: 1989.5 | C187: 1991.6 | D187: 1988.5 | E187: 1990 | F187: 22229 | G187: 2018-07-17T11:45:00
A188: a1531808400 | B188: 1990.5 | C188: 1992 | D188: 1989.2 | E188: 1989.5 | F188: 18943 | G188: 2018-07-17T11:50:00
A189: a1531808700 | B189: 1992.45 | C189: 1992.95 | D189: 1989.6 | E189: 1990.5 | F189: 30459 | G189: 2018-07-17T11:55:00
A190: a1531809000 | B190: 1991.8 | C190: 1992.45 | D190: 1990.25 | E190: 1992.35 | F190: 21012 | G190: 2018-07-17T12:00:00
A191: a1531809300 | B191: 1991.55 | C191: 1991.8 | D191: 1989.6 | E191: 1991.8 | F191: 16379 | G191: 2018-07-17T12:05:00
A192: a1531809600 | B192: 1993.75 | C192: 1994.85 | D192: 1991 | E192: 1991.7 | F192: 30265 | G192: 2018-07-17T12:10:00
A193: a1531809900 | B193: 1992.85 | C193: 1994.3 | D193: 1991.7 | E193: 1993.2 | F193: 29022 | G193: 2018-07-17T12:15:00
A194: a1531810200 | B194: 1992.8 | C194: 1994 | D194: 1992 | E194: 1992.85 | F194: 20152 | G194: 2018-07-17T12:20:00
A195: a1531810500 | B195: 1994.75 | C195: 1995 | D195: 1991.4 | E195: 1992.8 | F195: 32189 | G195: 2018-07-17T12:25:00
A196: a1531810800 | B196: 1993.85 | C196: 1994.95 | D196: 1992.5 | E196: 1994.2 | F196: 19398 | G196: 2018-07-17T12:30:00
A197: a1531811100 | B197: 1993.75 | C197: 1994.7 | D197: 1992.6 | E197: 1994 | F197: 17766 | G197: 2018-07-17T12:35:00
A198: a1531811400 | B198: 1993.1 | C198: 1994.5 | D198: 1992.35 | E198: 1993.45 | F198: 14403 | G198: 2018-07-17T12:40:00
A199: a1531811700 | B199: 1990 | C199: 1993.1 | D199: 1988.4 | E199: 1993.1 | F199: 22113 | G199: 2018-07-17T12:45:00
A200: a1531812000 | B200: 1989.8 | C200: 1990.4 | D200: 1988.25 | E200: 1990 | F200: 14329 | G200: 2018-07-17T12:50:00
... 560 more rows

Sheet GetData
A1: Date | B1: Date | C1: Open | D1: High | E1: Low | F1: Close | H1: SAR | I1: EP | J1: EP+/-SAR | K1: AF | L1: AF * DIFF. | N1: =H1 -> SAR | O1: SIGNAL
A2: 2018-07-13T09:20:00 | C2: 1975 | D2: 1988.4 | E2: 1975 | F2: 1983.5 | G2: 180020
A3: 2018-07-13T09:25:00 | C3: 1984.65 | D3: 1985 | E3: 1980 | F3: 1983.3 | G3: 110721
A4: 2018-07-13T09:30:00 | C4: 1983.3 | D4: 1988 | E4: 1980.4 | F4: 1986.55 | G4: 179613 | H4: =IF(A4="","",MIN(E1:E4)) -> 1975 | I4: =D4 -> 1988 | J4: =IF(A4="","",I4-H4) -> 13 | K4: =R16 -> 0.02 | L4: =IF(A4="","",K4*J4) -> 0.26 | N4: =H4 -> 1975 | O4: BUY
A5: 2018-07-13T09:35:00 | C5: 1986.55 | D5: 1991 | E5: 1985.05 | F5: 1987.9 | G5: 192524 | H5: =IF(A5="","",IF(AND(O4="BUY",H4+L4>E5),I4,IF(AND(O4="SELL",H4+L4<D5),I4,H4+L4))) -> 1975.26 | I5: =IF(A5="","",IF(AND(O5="BUY",D5>I4),D5,IF(AND(O5="BUY",D5<=I4),I4,IF(AND(O5="SELL",E5<I4),E5,I4)))) -> 1991 | J5: 15.74 | K5: =IF(A5="","",IF(IF(O5=O4,IF(K4=$R$17,$R$17,IF(AND(O5="BUY",I5>I4),K4+$R$16,IF(AND(O5="BUY",I5<=I4),K4,IF(AND(O5="SELL",I5<I4),K4+$R$16,IF(AND(O5="SELL",I5>=I4),K4,””))))),$R$16)>$R$17,$R$17,IF(O5=O4,IF(K4=$R$17,$R$17,IF(AND(O5="BUY",I5>I4),K4+$R$16,IF(AND(O5="BUY",I5<=I4),K4,IF(AND(O5="SELL",I5<I4),K4+$R$16,IF(AND(O5="SELL",I5>=I4),K4,””))))),$R$16))) -> 0.04 | L5: 0.6296 | N5: 1975.26 | O5: =IF(H5<D5,"BUY",IF(H5>E5,"SELL","")) -> BUY
A6: 2018-07-13T09:40:00 | C6: 1987.8 | D6: 1988.9 | E6: 1985.05 | F6: 1986.45 | G6: 76609 | H6: 1975.8896 | I6: 1991 | J6: 15.1104 | K6: =IF(A6="","",IF(IF(O6=O5,IF(K5=$R$17,$R$17,IF(AND(O6="BUY",I6>I5),K5+$R$16,IF(AND(O6="BUY",I6<=I5),K5,IF(AND(O6="SELL",I6<I5),K5+$R$16,IF(AND(O6="SELL",I6>=I5),K5,””))))),$R$16)>$R$17,$R$17,IF(O6=O5,IF(K5=$R$17,$R$17,IF(AND(O6="BUY",I6>I5),K5+$R$16,IF(AND(O6="BUY",I6<=I5),K5,IF(AND(O6="SELL",I6<I5),K5+$R$16,IF(AND(O6="SELL",I6>=I5),K5,””))))),$R$16))) -> 0.04 | L6: 0.604416 | N6: 1975.8896 | O6: BUY
A7: 2018-07-13T09:45:00 | C7: 1986.75 | D7: 1989.85 | E7: 1985.95 | F7: 1989.6 | G7: 79261 | H7: 1976.494016 | I7: 1991 | J7: 14.505984 | K7: =IF(A7="","",IF(IF(O7=O6,IF(K6=$R$17,$R$17,IF(AND(O7="BUY",I7>I6),K6+$R$16,IF(AND(O7="BUY",I7<=I6),K6,IF(AND(O7="SELL",I7<I6),K6+$R$16,IF(AND(O7="SELL",I7>=I6),K6,””))))),$R$16)>$R$17,$R$17,IF(O7=O6,IF(K6=$R$17,$R$17,IF(AND(O7="BUY",I7>I6),K6+$R$16,IF(AND(O7="BUY",I7<=I6),K6,IF(AND(O7="SELL",I7<I6),K6+$R$16,IF(AND(O7="SELL",I7>=I6),K6,””))))),$R$16))) -> 0.04 | L7: 0.58023936 | N7: 1976.494016 | O7: BUY
A8: 2018-07-13T09:50:00 | C8: 1989 | D8: 1990.5 | E8: 1986 | F8: 1990.1 | G8: 102903 | H8: 1977.074255 | I8: 1991 | J8: 13.92574464 | K8: =IF(A8="","",IF(IF(O8=O7,IF(K7=$R$17,$R$17,IF(AND(O8="BUY",I8>I7),K7+$R$16,IF(AND(O8="BUY",I8<=I7),K7,IF(AND(O8="SELL",I8<I7),K7+$R$16,IF(AND(O8="SELL",I8>=I7),K7,””))))),$R$16)>$R$17,$R$17,IF(O8=O7,IF(K7=$R$17,$R$17,IF(AND(O8="BUY",I8>I7),K7+$R$16,IF(AND(O8="BUY",I8<=I7),K7,IF(AND(O8="SELL",I8<I7),K7+$R$16,IF(AND(O8="SELL",I8>=I7),K7,””))))),$R$16))) -> 0.04 | L8: 0.5570297856 | N8: 1977.074255 | O8: BUY
A9: 2018-07-13T09:55:00 | C9: 1990.1 | D9: 1992.9 | E9: 1989.05 | F9: 1992.7 | G9: 111066 | H9: 1977.631285 | I9: 1992.9 | J9: 15.26871485 | K9: =IF(A9="","",IF(IF(O9=O8,IF(K8=$R$17,$R$17,IF(AND(O9="BUY",I9>I8),K8+$R$16,IF(AND(O9="BUY",I9<=I8),K8,IF(AND(O9="SELL",I9<I8),K8+$R$16,IF(AND(O9="SELL",I9>=I8),K8,””))))),$R$16)>$R$17,$R$17,IF(O9=O8,IF(K8=$R$17,$R$17,IF(AND(O9="BUY",I9>I8),K8+$R$16,IF(AND(O9="BUY",I9<=I8),K8,IF(AND(O9="SELL",I9<I8),K8+$R$16,IF(AND(O9="SELL",I9>=I8),K8,””))))),$R$16))) -> 0.06 | L9: 0.9161228913 | N9: 1977.631285 | O9: BUY
A10: 2018-07-13T10:00:00 | C10: 1992.7 | D10: 1997.7 | E10: 1991.3 | F10: 1997.25 | G10: 193080 | H10: 1978.547408 | I10: 1997.7 | J10: 19.15259196 | K10: =IF(A10="","",IF(IF(O10=O9,IF(K9=$R$17,$R$17,IF(AND(O10="BUY",I10>I9),K9+$R$16,IF(AND(O10="BUY",I10<=I9),K9,IF(AND(O10="SELL",I10<I9),K9+$R$16,IF(AND(O10="SELL",I10>=I9),K9,””))))),$R$16)>$R$17,$R$17,IF(O10=O9,IF(K9=$R$17,$R$17,IF(AND(O10="BUY",I10>I9),K9+$R$16,IF(AND(O10="BUY",I10<=I9),K9,IF(AND(O10="SELL",I10<I9),K9+$R$16,IF(AND(O10="SELL",I10>=I9),K9,””))))),$R$16))) -> 0.08 | L10: 1.532207357 | N10: 1978.547408 | O10: BUY
A11: 2018-07-13T10:05:00 | C11: 1997.35 | D11: 1997.9 | E11: 1991.9 | F11: 1996 | G11: 183025 | H11: 1980.079615 | I11: 1997.9 | J11: 17.82038461 | K11: =IF(A11="","",IF(IF(O11=O10,IF(K10=$R$17,$R$17,IF(AND(O11="BUY",I11>I10),K10+$R$16,IF(AND(O11="BUY",I11<=I10),K10,IF(AND(O11="SELL",I11<I10),K10+$R$16,IF(AND(O11="SELL",I11>=I10),K10,””))))),$R$16)>$R$17,$R$17,IF(O11=O10,IF(K10=$R$17,$R$17,IF(AND(O11="BUY",I11>I10),K10+$R$16,IF(AND(O11="BUY",I11<=I10),K10,IF(AND(O11="SELL",I11<I10),K10+$R$16,IF(AND(O11="SELL",I11>=I10),K10,””))))),$R$16))) -> 0.1 | L11: 1.782038461 | N11: 1980.079615 | O11: BUY
A12: 2018-07-13T10:10:00 | C12: 1995.6 | D12: 1995.95 | E12: 1983.1 | F12: 1987.05 | G12: 197758 | H12: 1981.861654 | I12: 1997.9 | J12: 16.03834615 | K12: =IF(A12="","",IF(IF(O12=O11,IF(K11=$R$17,$R$17,IF(AND(O12="BUY",I12>I11),K11+$R$16,IF(AND(O12="BUY",I12<=I11),K11,IF(AND(O12="SELL",I12<I11),K11+$R$16,IF(AND(O12="SELL",I12>=I11),K11,””))))),$R$16)>$R$17,$R$17,IF(O12=O11,IF(K11=$R$17,$R$17,IF(AND(O12="BUY",I12>I11),K11+$R$16,IF(AND(O12="BUY",I12<=I11),K11,IF(AND(O12="SELL",I12<I11),K11+$R$16,IF(AND(O12="SELL",I12>=I11),K11,””))))),$R$16))) -> 0.1 | L12: 1.603834615 | N12: 1981.861654 | O12: BUY | Q12: Symbol | R12: TCS
A13: 2018-07-13T10:15:00 | C13: 1987 | D13: 1987.6 | E13: 1985 | F13: 1985.9 | G13: 86930 | H13: 1983.465488 | I13: 1997.9 | J13: 14.43451153 | K13: =IF(A13="","",IF(IF(O13=O12,IF(K12=$R$17,$R$17,IF(AND(O13="BUY",I13>I12),K12+$R$16,IF(AND(O13="BUY",I13<=I12),K12,IF(AND(O13="SELL",I13<I12),K12+$R$16,IF(AND(O13="SELL",I13>=I12),K12,””))))),$R$16)>$R$17,$R$17,IF(O13=O12,IF(K12=$R$17,$R$17,IF(AND(O13="BUY",I13>I12),K12+$R$16,IF(AND(O13="BUY",I13<=I12),K12,IF(AND(O13="SELL",I13<I12),K12+$R$16,IF(AND(O13="SELL",I13>=I12),K12,””))))),$R$16))) -> 0.1 | L13: 1.443451153 | N13: 1983.465488 | O13: BUY | Q13: Exchange | R13: NSE
A14: 2018-07-13T10:20:00 | C14: 1986.1 | D14: 1987 | E14: 1980.05 | F14: 1982.65 | G14: 65661 | H14: 1997.9 | I14: 1980.05 | J14: -17.85 | K14: =IF(A14="","",IF(IF(O14=O13,IF(K13=$R$17,$R$17,IF(AND(O14="BUY",I14>I13),K13+$R$16,IF(AND(O14="BUY",I14<=I13),K13,IF(AND(O14="SELL",I14<I13),K13+$R$16,IF(AND(O14="SELL",I14>=I13),K13,””))))),$R$16)>$R$17,$R$17,IF(O14=O13,IF(K13=$R$17,$R$17,IF(AND(O14="BUY",I14>I13),K13+$R$16,IF(AND(O14="BUY",I14<=I13),K13,IF(AND(O14="SELL",I14<I13),K13+$R$16,IF(AND(O14="SELL",I14>=I13),K13,””))))),$R$16))) -> 0.02 | L14: -0.357 | N14: 1997.9 | O14: SELL | Q14: Interval (mins) | R14: 5
A15: 2018-07-13T10:25:00 | C15: 1982 | D15: 1982.75 | E15: 1976.55 | F15: 1979.95 | G15: 118900 | H15: 1997.543 | I15: 1976.55 | J15: -20.993 | K15: =IF(A15="","",IF(IF(O15=O14,IF(K14=$R$17,$R$17,IF(AND(O15="BUY",I15>I14),K14+$R$16,IF(AND(O15="BUY",I15<=I14),K14,IF(AND(O15="SELL",I15<I14),K14+$R$16,IF(AND(O15="SELL",I15>=I14),K14,””))))),$R$16)>$R$17,$R$17,IF(O15=O14,IF(K14=$R$17,$R$17,IF(AND(O15="BUY",I15>I14),K14+$R$16,IF(AND(O15="BUY",I15<=I14),K14,IF(AND(O15="SELL",I15<I14),K14+$R$16,IF(AND(O15="SELL",I15>=I14),K14,””))))),$R$16))) -> 0.04 | L15: -0.83972 | N15: 1997.543 | O15: SELL | Q15: Number of Days | R15: 10
A16: 2018-07-13T10:30:00 | C16: 1979.95 | D16: 1984.55 | E16: 1978.4 | F16: 1983.95 | G16: 75809 | H16: 1996.70328 | I16: 1976.55 | J16: -20.15328 | K16: =IF(A16="","",IF(IF(O16=O15,IF(K15=$R$17,$R$17,IF(AND(O16="BUY",I16>I15),K15+$R$16,IF(AND(O16="BUY",I16<=I15),K15,IF(AND(O16="SELL",I16<I15),K15+$R$16,IF(AND(O16="SELL",I16>=I15),K15,””))))),$R$16)>$R$17,$R$17,IF(O16=O15,IF(K15=$R$17,$R$17,IF(AND(O16="BUY",I16>I15),K15+$R$16,IF(AND(O16="BUY",I16<=I15),K15,IF(AND(O16="SELL",I16<I15),K15+$R$16,IF(AND(O16="SELL",I16>=I15),K15,””))))),$R$16))) -> 0.04 | L16: -0.8061312 | N16: 1996.70328 | O16: SELL | Q16: MIN. ACC. FACTOR | R16: 0.02
A17: 2018-07-13T10:35:00 | C17: 1983.95 | D17: 1985 | E17: 1983 | F17: 1985 | G17: 30862 | H17: 1995.897149 | I17: 1976.55 | J17: -19.3471488 | K17: =IF(A17="","",IF(IF(O17=O16,IF(K16=$R$17,$R$17,IF(AND(O17="BUY",I17>I16),K16+$R$16,IF(AND(O17="BUY",I17<=I16),K16,IF(AND(O17="SELL",I17<I16),K16+$R$16,IF(AND(O17="SELL",I17>=I16),K16,””))))),$R$16)>$R$17,$R$17,IF(O17=O16,IF(K16=$R$17,$R$17,IF(AND(O17="BUY",I17>I16),K16+$R$16,IF(AND(O17="BUY",I17<=I16),K16,IF(AND(O17="SELL",I17<I16),K16+$R$16,IF(AND(O17="SELL",I17>=I16),K16,””))))),$R$16))) -> 0.04 | L17: -0.773885952 | N17: 1995.897149 | O17: SELL | Q17: MAX. ACC FACTOR | R17: 0.2
A18: 2018-07-13T10:40:00 | C18: 1985 | D18: 1985 | E18: 1978 | F18: 1983 | G18: 61641 | H18: 1995.123263 | I18: 1976.55 | J18: -18.57326285 | K18: =IF(A18="","",IF(IF(O18=O17,IF(K17=$R$17,$R$17,IF(AND(O18="BUY",I18>I17),K17+$R$16,IF(AND(O18="BUY",I18<=I17),K17,IF(AND(O18="SELL",I18<I17),K17+$R$16,IF(AND(O18="SELL",I18>=I17),K17,””))))),$R$16)>$R$17,$R$17,IF(O18=O17,IF(K17=$R$17,$R$17,IF(AND(O18="BUY",I18>I17),K17+$R$16,IF(AND(O18="BUY",I18<=I17),K17,IF(AND(O18="SELL",I18<I17),K17+$R$16,IF(AND(O18="SELL",I18>=I17),K17,””))))),$R$16))) -> 0.04 | L18: -0.7429305139 | N18: 1995.123263 | O18: SELL
A19: 2018-07-13T10:45:00 | C19: 1983.15 | D19: 1983.8 | E19: 1980.75 | F19: 1983.5 | G19: 27380 | H19: 1994.380332 | I19: 1976.55 | J19: -17.83033233 | K19: =IF(A19="","",IF(IF(O19=O18,IF(K18=$R$17,$R$17,IF(AND(O19="BUY",I19>I18),K18+$R$16,IF(AND(O19="BUY",I19<=I18),K18,IF(AND(O19="SELL",I19<I18),K18+$R$16,IF(AND(O19="SELL",I19>=I18),K18,””))))),$R$16)>$R$17,$R$17,IF(O19=O18,IF(K18=$R$17,$R$17,IF(AND(O19="BUY",I19>I18),K18+$R$16,IF(AND(O19="BUY",I19<=I18),K18,IF(AND(O19="SELL",I19<I18),K18+$R$16,IF(AND(O19="SELL",I19>=I18),K18,””))))),$R$16))) -> 0.04 | L19: -0.7132132934 | N19: 1994.380332 | O19: SELL
A20: 2018-07-13T10:50:00 | C20: 1983.5 | D20: 1985 | E20: 1982.6 | F20: 1983.55 | G20: 30416 | H20: 1993.667119 | I20: 1976.55 | J20: -17.11711904 | K20: =IF(A20="","",IF(IF(O20=O19,IF(K19=$R$17,$R$17,IF(AND(O20="BUY",I20>I19),K19+$R$16,IF(AND(O20="BUY",I20<=I19),K19,IF(AND(O20="SELL",I20<I19),K19+$R$16,IF(AND(O20="SELL",I20>=I19),K19,””))))),$R$16)>$R$17,$R$17,IF(O20=O19,IF(K19=$R$17,$R$17,IF(AND(O20="BUY",I20>I19),K19+$R$16,IF(AND(O20="BUY",I20<=I19),K19,IF(AND(O20="SELL",I20<I19),K19+$R$16,IF(AND(O20="SELL",I20>=I19),K19,””))))),$R$16))) -> 0.04 | L20: -0.6846847616 | N20: 1993.667119 | O20: SELL
A21: 2018-07-13T10:55:00 | C21: 1983.95 | D21: 1984 | E21: 1980.55 | F21: 1980.95 | G21: 27502 | H21: 1992.982434 | I21: 1976.55 | J21: -16.43243428 | K21: =IF(A21="","",IF(IF(O21=O20,IF(K20=$R$17,$R$17,IF(AND(O21="BUY",I21>I20),K20+$R$16,IF(AND(O21="BUY",I21<=I20),K20,IF(AND(O21="SELL",I21<I20),K20+$R$16,IF(AND(O21="SELL",I21>=I20),K20,””))))),$R$16)>$R$17,$R$17,IF(O21=O20,IF(K20=$R$17,$R$17,IF(AND(O21="BUY",I21>I20),K20+$R$16,IF(AND(O21="BUY",I21<=I20),K20,IF(AND(O21="SELL",I21<I20),K20+$R$16,IF(AND(O21="SELL",I21>=I20),K20,””))))),$R$16))) -> 0.04 | L21: -0.6572973712 | N21: 1992.982434 | O21: SELL
A22: 2018-07-13T11:00:00 | C22: 1980.95 | D22: 1984.6 | E22: 1980.5 | F22: 1984.15 | G22: 21371 | H22: 1992.325137 | I22: 1976.55 | J22: -15.77513691 | K22: =IF(A22="","",IF(IF(O22=O21,IF(K21=$R$17,$R$17,IF(AND(O22="BUY",I22>I21),K21+$R$16,IF(AND(O22="BUY",I22<=I21),K21,IF(AND(O22="SELL",I22<I21),K21+$R$16,IF(AND(O22="SELL",I22>=I21),K21,””))))),$R$16)>$R$17,$R$17,IF(O22=O21,IF(K21=$R$17,$R$17,IF(AND(O22="BUY",I22>I21),K21+$R$16,IF(AND(O22="BUY",I22<=I21),K21,IF(AND(O22="SELL",I22<I21),K21+$R$16,IF(AND(O22="SELL",I22>=I21),K21,””))))),$R$16))) -> 0.04 | L22: -0.6310054763 | N22: 1992.325137 | O22: SELL
A23: 2018-07-13T11:05:00 | C23: 1984.1 | D23: 1984.9 | E23: 1983.4 | F23: 1984.9 | G23: 19130 | H23: 1991.694131 | I23: 1976.55 | J23: -15.14413143 | K23: =IF(A23="","",IF(IF(O23=O22,IF(K22=$R$17,$R$17,IF(AND(O23="BUY",I23>I22),K22+$R$16,IF(AND(O23="BUY",I23<=I22),K22,IF(AND(O23="SELL",I23<I22),K22+$R$16,IF(AND(O23="SELL",I23>=I22),K22,””))))),$R$16)>$R$17,$R$17,IF(O23=O22,IF(K22=$R$17,$R$17,IF(AND(O23="BUY",I23>I22),K22+$R$16,IF(AND(O23="BUY",I23<=I22),K22,IF(AND(O23="SELL",I23<I22),K22+$R$16,IF(AND(O23="SELL",I23>=I22),K22,””))))),$R$16))) -> 0.04 | L23: -0.6057652573 | N23: 1991.694131 | O23: SELL
A24: 2018-07-13T11:10:00 | C24: 1984.9 | D24: 1986 | E24: 1983.7 | F24: 1985.8 | G24: 53211 | H24: 1991.088366 | I24: 1976.55 | J24: -14.53836617 | K24: =IF(A24="","",IF(IF(O24=O23,IF(K23=$R$17,$R$17,IF(AND(O24="BUY",I24>I23),K23+$R$16,IF(AND(O24="BUY",I24<=I23),K23,IF(AND(O24="SELL",I24<I23),K23+$R$16,IF(AND(O24="SELL",I24>=I23),K23,””))))),$R$16)>$R$17,$R$17,IF(O24=O23,IF(K23=$R$17,$R$17,IF(AND(O24="BUY",I24>I23),K23+$R$16,IF(AND(O24="BUY",I24<=I23),K23,IF(AND(O24="SELL",I24<I23),K23+$R$16,IF(AND(O24="SELL",I24>=I23),K23,””))))),$R$16))) -> 0.04 | L24: -0.581534647 | N24: 1991.088366 | O24: SELL
A25: 2018-07-13T11:15:00 | C25: 1985.85 | D25: 1987.85 | E25: 1985.15 | F25: 1985.95 | G25: 36599 | H25: 1990.506832 | I25: 1976.55 | J25: -13.95683153 | K25: =IF(A25="","",IF(IF(O25=O24,IF(K24=$R$17,$R$17,IF(AND(O25="BUY",I25>I24),K24+$R$16,IF(AND(O25="BUY",I25<=I24),K24,IF(AND(O25="SELL",I25<I24),K24+$R$16,IF(AND(O25="SELL",I25>=I24),K24,””))))),$R$16)>$R$17,$R$17,IF(O25=O24,IF(K24=$R$17,$R$17,IF(AND(O25="BUY",I25>I24),K24+$R$16,IF(AND(O25="BUY",I25<=I24),K24,IF(AND(O25="SELL",I25<I24),K24+$R$16,IF(AND(O25="SELL",I25>=I24),K24,””))))),$R$16))) -> 0.04 | L25: -0.5582732611 | N25: 1990.506832 | O25: SELL
A26: 2018-07-13T11:20:00 | C26: 1985.95 | D26: 1987 | E26: 1985.1 | F26: 1985.7 | G26: 26880 | H26: 1989.948558 | I26: 1976.55 | J26: -13.39855827 | K26: =IF(A26="","",IF(IF(O26=O25,IF(K25=$R$17,$R$17,IF(AND(O26="BUY",I26>I25),K25+$R$16,IF(AND(O26="BUY",I26<=I25),K25,IF(AND(O26="SELL",I26<I25),K25+$R$16,IF(AND(O26="SELL",I26>=I25),K25,””))))),$R$16)>$R$17,$R$17,IF(O26=O25,IF(K25=$R$17,$R$17,IF(AND(O26="BUY",I26>I25),K25+$R$16,IF(AND(O26="BUY",I26<=I25),K25,IF(AND(O26="SELL",I26<I25),K25+$R$16,IF(AND(O26="SELL",I26>=I25),K25,””))))),$R$16))) -> 0.04 | L26: -0.5359423307 | N26: 1989.948558 | O26: SELL
A27: 2018-07-13T11:25:00 | C27: 1985.95 | D27: 1987.35 | E27: 1985 | F27: 1985 | G27: 34242 | H27: 1989.412616 | I27: 1976.55 | J27: -12.86261594 | K27: =IF(A27="","",IF(IF(O27=O26,IF(K26=$R$17,$R$17,IF(AND(O27="BUY",I27>I26),K26+$R$16,IF(AND(O27="BUY",I27<=I26),K26,IF(AND(O27="SELL",I27<I26),K26+$R$16,IF(AND(O27="SELL",I27>=I26),K26,””))))),$R$16)>$R$17,$R$17,IF(O27=O26,IF(K26=$R$17,$R$17,IF(AND(O27="BUY",I27>I26),K26+$R$16,IF(AND(O27="BUY",I27<=I26),K26,IF(AND(O27="SELL",I27<I26),K26+$R$16,IF(AND(O27="SELL",I27>=I26),K26,””))))),$R$16))) -> 0.04 | L27: -0.5145046374 | N27: 1989.412616 | O27: SELL
A28: 2018-07-13T11:30:00 | C28: 1985.25 | D28: 1985.5 | E28: 1984 | F28: 1984 | G28: 25356 | H28: 1988.898111 | I28: 1976.55 | J28: -12.3481113 | K28: =IF(A28="","",IF(IF(O28=O27,IF(K27=$R$17,$R$17,IF(AND(O28="BUY",I28>I27),K27+$R$16,IF(AND(O28="BUY",I28<=I27),K27,IF(AND(O28="SELL",I28<I27),K27+$R$16,IF(AND(O28="SELL",I28>=I27),K27,””))))),$R$16)>$R$17,$R$17,IF(O28=O27,IF(K27=$R$17,$R$17,IF(AND(O28="BUY",I28>I27),K27+$R$16,IF(AND(O28="BUY",I28<=I27),K27,IF(AND(O28="SELL",I28<I27),K27+$R$16,IF(AND(O28="SELL",I28>=I27),K27,””))))),$R$16))) -> 0.04 | L28: -0.4939244519 | N28: 1988.898111 | O28: SELL
A29: 2018-07-13T11:35:00 | C29: 1984.35 | D29: 1985.35 | E29: 1982 | F29: 1985.2 | G29: 30024 | H29: 1988.404187 | I29: 1976.55 | J29: -11.85418685 | K29: =IF(A29="","",IF(IF(O29=O28,IF(K28=$R$17,$R$17,IF(AND(O29="BUY",I29>I28),K28+$R$16,IF(AND(O29="BUY",I29<=I28),K28,IF(AND(O29="SELL",I29<I28),K28+$R$16,IF(AND(O29="SELL",I29>=I28),K28,””))))),$R$16)>$R$17,$R$17,IF(O29=O28,IF(K28=$R$17,$R$17,IF(AND(O29="BUY",I29>I28),K28+$R$16,IF(AND(O29="BUY",I29<=I28),K28,IF(AND(O29="SELL",I29<I28),K28+$R$16,IF(AND(O29="SELL",I29>=I28),K28,””))))),$R$16))) -> 0.04 | L29: -0.4741674739 | N29: 1988.404187 | O29: SELL
A30: 2018-07-13T11:40:00 | C30: 1985.2 | D30: 1986.15 | E30: 1983.85 | F30: 1984.4 | G30: 19872 | H30: 1987.930019 | I30: 1976.55 | J30: -11.38001937 | K30: =IF(A30="","",IF(IF(O30=O29,IF(K29=$R$17,$R$17,IF(AND(O30="BUY",I30>I29),K29+$R$16,IF(AND(O30="BUY",I30<=I29),K29,IF(AND(O30="SELL",I30<I29),K29+$R$16,IF(AND(O30="SELL",I30>=I29),K29,””))))),$R$16)>$R$17,$R$17,IF(O30=O29,IF(K29=$R$17,$R$17,IF(AND(O30="BUY",I30>I29),K29+$R$16,IF(AND(O30="BUY",I30<=I29),K29,IF(AND(O30="SELL",I30<I29),K29+$R$16,IF(AND(O30="SELL",I30>=I29),K29,””))))),$R$16))) -> 0.04 | L30: -0.4552007749 | N30: 1987.930019 | O30: SELL
A31: 2018-07-13T11:45:00 | C31: 1983.95 | D31: 1985.55 | E31: 1983 | F31: 1984.45 | G31: 13711 | H31: 1987.474819 | I31: 1976.55 | J31: -10.9248186 | K31: =IF(A31="","",IF(IF(O31=O30,IF(K30=$R$17,$R$17,IF(AND(O31="BUY",I31>I30),K30+$R$16,IF(AND(O31="BUY",I31<=I30),K30,IF(AND(O31="SELL",I31<I30),K30+$R$16,IF(AND(O31="SELL",I31>=I30),K30,””))))),$R$16)>$R$17,$R$17,IF(O31=O30,IF(K30=$R$17,$R$17,IF(AND(O31="BUY",I31>I30),K30+$R$16,IF(AND(O31="BUY",I31<=I30),K30,IF(AND(O31="SELL",I31<I30),K30+$R$16,IF(AND(O31="SELL",I31>=I30),K30,””))))),$R$16))) -> 0.04 | L31: -0.4369927439 | N31: 1987.474819 | O31: SELL
A32: 2018-07-13T11:50:00 | C32: 1984.5 | D32: 1985 | E32: 1983.25 | F32: 1984.75 | G32: 15750 | H32: 1987.037826 | I32: 1976.55 | J32: -10.48782585 | K32: =IF(A32="","",IF(IF(O32=O31,IF(K31=$R$17,$R$17,IF(AND(O32="BUY",I32>I31),K31+$R$16,IF(AND(O32="BUY",I32<=I31),K31,IF(AND(O32="SELL",I32<I31),K31+$R$16,IF(AND(O32="SELL",I32>=I31),K31,””))))),$R$16)>$R$17,$R$17,IF(O32=O31,IF(K31=$R$17,$R$17,IF(AND(O32="BUY",I32>I31),K31+$R$16,IF(AND(O32="BUY",I32<=I31),K31,IF(AND(O32="SELL",I32<I31),K31+$R$16,IF(AND(O32="SELL",I32>=I31),K31,””))))),$R$16))) -> 0.04 | L32: -0.4195130341 | N32: 1987.037826 | O32: SELL
A33: 2018-07-13T11:55:00 | C33: 1984.75 | D33: 1986.9 | E33: 1984 | F33: 1985.65 | G33: 22563 | H33: 1976.55 | I33: 1986.9 | J33: 10.35 | K33: =IF(A33="","",IF(IF(O33=O32,IF(K32=$R$17,$R$17,IF(AND(O33="BUY",I33>I32),K32+$R$16,IF(AND(O33="BUY",I33<=I32),K32,IF(AND(O33="SELL",I33<I32),K32+$R$16,IF(AND(O33="SELL",I33>=I32),K32,””))))),$R$16)>$R$17,$R$17,IF(O33=O32,IF(K32=$R$17,$R$17,IF(AND(O33="BUY",I33>I32),K32+$R$16,IF(AND(O33="BUY",I33<=I32),K32,IF(AND(O33="SELL",I33<I32),K32+$R$16,IF(AND(O33="SELL",I33>=I32),K32,””))))),$R$16))) -> 0.02 | L33: 0.207 | N33: 1976.55 | O33: BUY
A34: 2018-07-13T12:00:00 | C34: 1985.25 | D34: 1986 | E34: 1984.1 | F34: 1984.45 | G34: 19224 | H34: 1976.757 | I34: 1986.9 | J34: 10.143 | K34: =IF(A34="","",IF(IF(O34=O33,IF(K33=$R$17,$R$17,IF(AND(O34="BUY",I34>I33),K33+$R$16,IF(AND(O34="BUY",I34<=I33),K33,IF(AND(O34="SELL",I34<I33),K33+$R$16,IF(AND(O34="SELL",I34>=I33),K33,””))))),$R$16)>$R$17,$R$17,IF(O34=O33,IF(K33=$R$17,$R$17,IF(AND(O34="BUY",I34>I33),K33+$R$16,IF(AND(O34="BUY",I34<=I33),K33,IF(AND(O34="SELL",I34<I33),K33+$R$16,IF(AND(O34="SELL",I34>=I33),K33,””))))),$R$16))) -> 0.02 | L34: 0.20286 | N34: 1976.757 | O34: BUY
A35: 2018-07-13T12:05:00 | C35: 1984.6 | D35: 1985.65 | E35: 1983 | F35: 1985.1 | G35: 14166 | H35: 1976.95986 | I35: 1986.9 | J35: 9.94014 | K35: =IF(A35="","",IF(IF(O35=O34,IF(K34=$R$17,$R$17,IF(AND(O35="BUY",I35>I34),K34+$R$16,IF(AND(O35="BUY",I35<=I34),K34,IF(AND(O35="SELL",I35<I34),K34+$R$16,IF(AND(O35="SELL",I35>=I34),K34,””))))),$R$16)>$R$17,$R$17,IF(O35=O34,IF(K34=$R$17,$R$17,IF(AND(O35="BUY",I35>I34),K34+$R$16,IF(AND(O35="BUY",I35<=I34),K34,IF(AND(O35="SELL",I35<I34),K34+$R$16,IF(AND(O35="SELL",I35>=I34),K34,””))))),$R$16))) -> 0.02 | L35: 0.1988028 | N35: 1976.95986 | O35: BUY
A36: 2018-07-13T12:10:00 | C36: 1985.5 | D36: 1986 | E36: 1984.2 | F36: 1985.15 | G36: 15521 | H36: 1977.158663 | I36: 1986.9 | J36: 9.7413372 | K36: =IF(A36="","",IF(IF(O36=O35,IF(K35=$R$17,$R$17,IF(AND(O36="BUY",I36>I35),K35+$R$16,IF(AND(O36="BUY",I36<=I35),K35,IF(AND(O36="SELL",I36<I35),K35+$R$16,IF(AND(O36="SELL",I36>=I35),K35,””))))),$R$16)>$R$17,$R$17,IF(O36=O35,IF(K35=$R$17,$R$17,IF(AND(O36="BUY",I36>I35),K35+$R$16,IF(AND(O36="BUY",I36<=I35),K35,IF(AND(O36="SELL",I36<I35),K35+$R$16,IF(AND(O36="SELL",I36>=I35),K35,””))))),$R$16))) -> 0.02 | L36: 0.194826744 | N36: 1977.158663 | O36: BUY
A37: 2018-07-13T12:15:00 | C37: 1985.2 | D37: 1986.5 | E37: 1985 | F37: 1986.4 | G37: 17379 | H37: 1977.35349 | I37: 1986.9 | J37: 9.546510456 | K37: =IF(A37="","",IF(IF(O37=O36,IF(K36=$R$17,$R$17,IF(AND(O37="BUY",I37>I36),K36+$R$16,IF(AND(O37="BUY",I37<=I36),K36,IF(AND(O37="SELL",I37<I36),K36+$R$16,IF(AND(O37="SELL",I37>=I36),K36,””))))),$R$16)>$R$17,$R$17,IF(O37=O36,IF(K36=$R$17,$R$17,IF(AND(O37="BUY",I37>I36),K36+$R$16,IF(AND(O37="BUY",I37<=I36),K36,IF(AND(O37="SELL",I37<I36),K36+$R$16,IF(AND(O37="SELL",I37>=I36),K36,””))))),$R$16))) -> 0.02 | L37: 0.1909302091 | N37: 1977.35349 | O37: BUY
A38: 2018-07-13T12:20:00 | C38: 1986.4 | D38: 1988.4 | E38: 1986.3 | F38: 1987.8 | G38: 35632 | H38: 1977.54442 | I38: 1988.4 | J38: 10.85558025 | K38: =IF(A38="","",IF(IF(O38=O37,IF(K37=$R$17,$R$17,IF(AND(O38="BUY",I38>I37),K37+$R$16,IF(AND(O38="BUY",I38<=I37),K37,IF(AND(O38="SELL",I38<I37),K37+$R$16,IF(AND(O38="SELL",I38>=I37),K37,””))))),$R$16)>$R$17,$R$17,IF(O38=O37,IF(K37=$R$17,$R$17,IF(AND(O38="BUY",I38>I37),K37+$R$16,IF(AND(O38="BUY",I38<=I37),K37,IF(AND(O38="SELL",I38<I37),K37+$R$16,IF(AND(O38="SELL",I38>=I37),K37,””))))),$R$16))) -> 0.04 | L38: 0.4342232099 | N38: 1977.54442 | O38: BUY
A39: 2018-07-13T12:25:00 | C39: 1987.9 | D39: 1987.95 | E39: 1985.5 | F39: 1987 | G39: 14203 | H39: 1977.978643 | I39: 1988.4 | J39: 10.42135704 | K39: =IF(A39="","",IF(IF(O39=O38,IF(K38=$R$17,$R$17,IF(AND(O39="BUY",I39>I38),K38+$R$16,IF(AND(O39="BUY",I39<=I38),K38,IF(AND(O39="SELL",I39<I38),K38+$R$16,IF(AND(O39="SELL",I39>=I38),K38,””))))),$R$16)>$R$17,$R$17,IF(O39=O38,IF(K38=$R$17,$R$17,IF(AND(O39="BUY",I39>I38),K38+$R$16,IF(AND(O39="BUY",I39<=I38),K38,IF(AND(O39="SELL",I39<I38),K38+$R$16,IF(AND(O39="SELL",I39>=I38),K38,””))))),$R$16))) -> 0.04 | L39: 0.4168542815 | N39: 1977.978643 | O39: BUY
A40: 2018-07-13T12:30:00 | C40: 1987 | D40: 1988 | E40: 1986.95 | F40: 1987.85 | G40: 13915 | H40: 1978.395497 | I40: 1988.4 | J40: 10.00450276 | K40: =IF(A40="","",IF(IF(O40=O39,IF(K39=$R$17,$R$17,IF(AND(O40="BUY",I40>I39),K39+$R$16,IF(AND(O40="BUY",I40<=I39),K39,IF(AND(O40="SELL",I40<I39),K39+$R$16,IF(AND(O40="SELL",I40>=I39),K39,””))))),$R$16)>$R$17,$R$17,IF(O40=O39,IF(K39=$R$17,$R$17,IF(AND(O40="BUY",I40>I39),K39+$R$16,IF(AND(O40="BUY",I40<=I39),K39,IF(AND(O40="SELL",I40<I39),K39+$R$16,IF(AND(O40="SELL",I40>=I39),K39,””))))),$R$16))) -> 0.04 | L40: 0.4001801102 | N40: 1978.395497 | O40: BUY
A41: 2018-07-13T12:35:00 | C41: 1987.85 | D41: 1989.4 | E41: 1987 | F41: 1987.65 | G41: 28588 | H41: 1978.795677 | I41: 1989.4 | J41: 10.60432265 | K41: =IF(A41="","",IF(IF(O41=O40,IF(K40=$R$17,$R$17,IF(AND(O41="BUY",I41>I40),K40+$R$16,IF(AND(O41="BUY",I41<=I40),K40,IF(AND(O41="SELL",I41<I40),K40+$R$16,IF(AND(O41="SELL",I41>=I40),K40,””))))),$R$16)>$R$17,$R$17,IF(O41=O40,IF(K40=$R$17,$R$17,IF(AND(O41="BUY",I41>I40),K40+$R$16,IF(AND(O41="BUY",I41<=I40),K40,IF(AND(O41="SELL",I41<I40),K40+$R$16,IF(AND(O41="SELL",I41>=I40),K40,””))))),$R$16))) -> 0.06 | L41: 0.6362593587 | N41: 1978.795677 | O41: BUY
A42: 2018-07-13T12:40:00 | C42: 1987.9 | D42: 1989 | E42: 1986 | F42: 1988.35 | G42: 23979 | H42: 1979.431937 | I42: 1989.4 | J42: 9.968063287 | K42: =IF(A42="","",IF(IF(O42=O41,IF(K41=$R$17,$R$17,IF(AND(O42="BUY",I42>I41),K41+$R$16,IF(AND(O42="BUY",I42<=I41),K41,IF(AND(O42="SELL",I42<I41),K41+$R$16,IF(AND(O42="SELL",I42>=I41),K41,””))))),$R$16)>$R$17,$R$17,IF(O42=O41,IF(K41=$R$17,$R$17,IF(AND(O42="BUY",I42>I41),K41+$R$16,IF(AND(O42="BUY",I42<=I41),K41,IF(AND(O42="SELL",I42<I41),K41+$R$16,IF(AND(O42="SELL",I42>=I41),K41,””))))),$R$16))) -> 0.06 | L42: 0.5980837972 | N42: 1979.431937 | O42: BUY
A43: 2018-07-13T12:45:00 | C43: 1988.35 | D43: 1989 | E43: 1986.15 | F43: 1988.25 | G43: 28107 | H43: 1980.030021 | I43: 1989.4 | J43: 9.369979489 | K43: =IF(A43="","",IF(IF(O43=O42,IF(K42=$R$17,$R$17,IF(AND(O43="BUY",I43>I42),K42+$R$16,IF(AND(O43="BUY",I43<=I42),K42,IF(AND(O43="SELL",I43<I42),K42+$R$16,IF(AND(O43="SELL",I43>=I42),K42,””))))),$R$16)>$R$17,$R$17,IF(O43=O42,IF(K42=$R$17,$R$17,IF(AND(O43="BUY",I43>I42),K42+$R$16,IF(AND(O43="BUY",I43<=I42),K42,IF(AND(O43="SELL",I43<I42),K42+$R$16,IF(AND(O43="SELL",I43>=I42),K42,””))))),$R$16))) -> 0.06 | L43: 0.5621987694 | N43: 1980.030021 | O43: BUY
A44: 2018-07-13T12:50:00 | C44: 1988.25 | D44: 1988.5 | E44: 1986.95 | F44: 1988.4 | G44: 15966 | H44: 1980.592219 | I44: 1989.4 | J44: 8.80778072 | K44: =IF(A44="","",IF(IF(O44=O43,IF(K43=$R$17,$R$17,IF(AND(O44="BUY",I44>I43),K43+$R$16,IF(AND(O44="BUY",I44<=I43),K43,IF(AND(O44="SELL",I44<I43),K43+$R$16,IF(AND(O44="SELL",I44>=I43),K43,””))))),$R$16)>$R$17,$R$17,IF(O44=O43,IF(K43=$R$17,$R$17,IF(AND(O44="BUY",I44>I43),K43+$R$16,IF(AND(O44="BUY",I44<=I43),K43,IF(AND(O44="SELL",I44<I43),K43+$R$16,IF(AND(O44="SELL",I44>=I43),K43,””))))),$R$16))) -> 0.06 | L44: 0.5284668432 | N44: 1980.592219 | O44: BUY
A45: 2018-07-13T12:55:00 | C45: 1988.4 | D45: 1988.4 | E45: 1987.4 | F45: 1988.25 | G45: 13966 | H45: 1981.120686 | I45: 1989.4 | J45: 8.279313877 | K45: =IF(A45="","",IF(IF(O45=O44,IF(K44=$R$17,$R$17,IF(AND(O45="BUY",I45>I44),K44+$R$16,IF(AND(O45="BUY",I45<=I44),K44,IF(AND(O45="SELL",I45<I44),K44+$R$16,IF(AND(O45="SELL",I45>=I44),K44,””))))),$R$16)>$R$17,$R$17,IF(O45=O44,IF(K44=$R$17,$R$17,IF(AND(O45="BUY",I45>I44),K44+$R$16,IF(AND(O45="BUY",I45<=I44),K44,IF(AND(O45="SELL",I45<I44),K44+$R$16,IF(AND(O45="SELL",I45>=I44),K44,””))))),$R$16))) -> 0.06 | L45: 0.4967588326 | N45: 1981.120686 | O45: BUY
A46: 2018-07-13T13:00:00 | C46: 1988.35 | D46: 1988.35 | E46: 1987.55 | F46: 1987.9 | G46: 14361 | H46: 1981.617445 | I46: 1989.4 | J46: 7.782555044 | K46: =IF(A46="","",IF(IF(O46=O45,IF(K45=$R$17,$R$17,IF(AND(O46="BUY",I46>I45),K45+$R$16,IF(AND(O46="BUY",I46<=I45),K45,IF(AND(O46="SELL",I46<I45),K45+$R$16,IF(AND(O46="SELL",I46>=I45),K45,””))))),$R$16)>$R$17,$R$17,IF(O46=O45,IF(K45=$R$17,$R$17,IF(AND(O46="BUY",I46>I45),K45+$R$16,IF(AND(O46="BUY",I46<=I45),K45,IF(AND(O46="SELL",I46<I45),K45+$R$16,IF(AND(O46="SELL",I46>=I45),K45,””))))),$R$16))) -> 0.06 | L46: 0.4669533027 | N46: 1981.617445 | O46: BUY
A47: 2018-07-13T13:05:00 | C47: 1987.95 | D47: 1989 | E47: 1985.7 | F47: 1987 | G47: 34616 | H47: 1982.084398 | I47: 1989.4 | J47: 7.315601742 | K47: =IF(A47="","",IF(IF(O47=O46,IF(K46=$R$17,$R$17,IF(AND(O47="BUY",I47>I46),K46+$R$16,IF(AND(O47="BUY",I47<=I46),K46,IF(AND(O47="SELL",I47<I46),K46+$R$16,IF(AND(O47="SELL",I47>=I46),K46,””))))),$R$16)>$R$17,$R$17,IF(O47=O46,IF(K46=$R$17,$R$17,IF(AND(O47="BUY",I47>I46),K46+$R$16,IF(AND(O47="BUY",I47<=I46),K46,IF(AND(O47="SELL",I47<I46),K46+$R$16,IF(AND(O47="SELL",I47>=I46),K46,””))))),$R$16))) -> 0.06 | L47: 0.4389361045 | N47: 1982.084398 | O47: BUY
A48: 2018-07-13T13:10:00 | C48: 1987.7 | D48: 1989.8 | E48: 1986.5 | F48: 1988.25 | G48: 48377 | H48: 1982.523334 | I48: 1989.8 | J48: 7.276665637 | K48: =IF(A48="","",IF(IF(O48=O47,IF(K47=$R$17,$R$17,IF(AND(O48="BUY",I48>I47),K47+$R$16,IF(AND(O48="BUY",I48<=I47),K47,IF(AND(O48="SELL",I48<I47),K47+$R$16,IF(AND(O48="SELL",I48>=I47),K47,””))))),$R$16)>$R$17,$R$17,IF(O48=O47,IF(K47=$R$17,$R$17,IF(AND(O48="BUY",I48>I47),K47+$R$16,IF(AND(O48="BUY",I48<=I47),K47,IF(AND(O48="SELL",I48<I47),K47+$R$16,IF(AND(O48="SELL",I48>=I47),K47,””))))),$R$16))) -> 0.08 | L48: 0.582133251 | N48: 1982.523334 | O48: BUY
A49: 2018-07-13T13:15:00 | C49: 1988.25 | D49: 1992.7 | E49: 1987.75 | F49: 1991.5 | G49: 79196 | H49: 1983.105468 | I49: 1992.7 | J49: 9.594532386 | K49: =IF(A49="","",IF(IF(O49=O48,IF(K48=$R$17,$R$17,IF(AND(O49="BUY",I49>I48),K48+$R$16,IF(AND(O49="BUY",I49<=I48),K48,IF(AND(O49="SELL",I49<I48),K48+$R$16,IF(AND(O49="SELL",I49>=I48),K48,””))))),$R$16)>$R$17,$R$17,IF(O49=O48,IF(K48=$R$17,$R$17,IF(AND(O49="BUY",I49>I48),K48+$R$16,IF(AND(O49="BUY",I49<=I48),K48,IF(AND(O49="SELL",I49<I48),K48+$R$16,IF(AND(O49="SELL",I49>=I48),K48,””))))),$R$16))) -> 0.1 | L49: 0.9594532386 | N49: 1983.105468 | O49: BUY
A50: 2018-07-13T13:20:00 | C50: 1990.35 | D50: 1992 | E50: 1990.1 | F50: 1991.35 | G50: 30968 | H50: 1984.064921 | I50: 1992.7 | J50: 8.635079147 | K50: =IF(A50="","",IF(IF(O50=O49,IF(K49=$R$17,$R$17,IF(AND(O50="BUY",I50>I49),K49+$R$16,IF(AND(O50="BUY",I50<=I49),K49,IF(AND(O50="SELL",I50<I49),K49+$R$16,IF(AND(O50="SELL",I50>=I49),K49,””))))),$R$16)>$R$17,$R$17,IF(O50=O49,IF(K49=$R$17,$R$17,IF(AND(O50="BUY",I50>I49),K49+$R$16,IF(AND(O50="BUY",I50<=I49),K49,IF(AND(O50="SELL",I50<I49),K49+$R$16,IF(AND(O50="SELL",I50>=I49),K49,””))))),$R$16))) -> 0.1 | L50: 0.8635079147 | N50: 1984.064921 | O50: BUY
A51: 2018-07-13T13:25:00 | C51: 1990.9 | D51: 1993 | E51: 1990 | F51: 1991.45 | G51: 57254 | H51: 1984.928429 | I51: 1993 | J51: 8.071571233 | K51: =IF(A51="","",IF(IF(O51=O50,IF(K50=$R$17,$R$17,IF(AND(O51="BUY",I51>I50),K50+$R$16,IF(AND(O51="BUY",I51<=I50),K50,IF(AND(O51="SELL",I51<I50),K50+$R$16,IF(AND(O51="SELL",I51>=I50),K50,””))))),$R$16)>$R$17,$R$17,IF(O51=O50,IF(K50=$R$17,$R$17,IF(AND(O51="BUY",I51>I50),K50+$R$16,IF(AND(O51="BUY",I51<=I50),K50,IF(AND(O51="SELL",I51<I50),K50+$R$16,IF(AND(O51="SELL",I51>=I50),K50,””))))),$R$16))) -> 0.12 | L51: 0.9685885479 | N51: 1984.928429 | O51: BUY
A52: 2018-07-13T13:30:00 | C52: 1991.45 | D52: 1992 | E52: 1990.6 | F52: 1991.55 | G52: 17728 | H52: 1985.897017 | I52: 1993 | J52: 7.102982685 | K52: =IF(A52="","",IF(IF(O52=O51,IF(K51=$R$17,$R$17,IF(AND(O52="BUY",I52>I51),K51+$R$16,IF(AND(O52="BUY",I52<=I51),K51,IF(AND(O52="SELL",I52<I51),K51+$R$16,IF(AND(O52="SELL",I52>=I51),K51,””))))),$R$16)>$R$17,$R$17,IF(O52=O51,IF(K51=$R$17,$R$17,IF(AND(O52="BUY",I52>I51),K51+$R$16,IF(AND(O52="BUY",I52<=I51),K51,IF(AND(O52="SELL",I52<I51),K51+$R$16,IF(AND(O52="SELL",I52>=I51),K51,””))))),$R$16))) -> 0.12 | L52: 0.8523579222 | N52: 1985.897017 | O52: BUY
A53: 2018-07-13T13:35:00 | C53: 1991.45 | D53: 1991.65 | E53: 1986.5 | F53: 1987.8 | G53: 34686 | H53: 1993 | I53: 1986.5 | J53: -6.5 | K53: =IF(A53="","",IF(IF(O53=O52,IF(K52=$R$17,$R$17,IF(AND(O53="BUY",I53>I52),K52+$R$16,IF(AND(O53="BUY",I53<=I52),K52,IF(AND(O53="SELL",I53<I52),K52+$R$16,IF(AND(O53="SELL",I53>=I52),K52,””))))),$R$16)>$R$17,$R$17,IF(O53=O52,IF(K52=$R$17,$R$17,IF(AND(O53="BUY",I53>I52),K52+$R$16,IF(AND(O53="BUY",I53<=I52),K52,IF(AND(O53="SELL",I53<I52),K52+$R$16,IF(AND(O53="SELL",I53>=I52),K52,””))))),$R$16))) -> 0.02 | L53: -0.13 | N53: 1993 | O53: SELL
A54: 2018-07-13T13:40:00 | C54: 1987.75 | D54: 1990.75 | E54: 1987 | F54: 1990.3 | G54: 18136 | H54: 1992.87 | I54: 1986.5 | J54: -6.37 | K54: =IF(A54="","",IF(IF(O54=O53,IF(K53=$R$17,$R$17,IF(AND(O54="BUY",I54>I53),K53+$R$16,IF(AND(O54="BUY",I54<=I53),K53,IF(AND(O54="SELL",I54<I53),K53+$R$16,IF(AND(O54="SELL",I54>=I53),K53,””))))),$R$16)>$R$17,$R$17,IF(O54=O53,IF(K53=$R$17,$R$17,IF(AND(O54="BUY",I54>I53),K53+$R$16,IF(AND(O54="BUY",I54<=I53),K53,IF(AND(O54="SELL",I54<I53),K53+$R$16,IF(AND(O54="SELL",I54>=I53),K53,””))))),$R$16))) -> 0.02 | L54: -0.1274 | N54: 1992.87 | O54: SELL
A55: 2018-07-13T13:45:00 | C55: 1990.35 | D55: 1991.5 | E55: 1989.5 | F55: 1989.95 | G55: 21139 | H55: 1992.7426 | I55: 1986.5 | J55: -6.2426 | K55: =IF(A55="","",IF(IF(O55=O54,IF(K54=$R$17,$R$17,IF(AND(O55="BUY",I55>I54),K54+$R$16,IF(AND(O55="BUY",I55<=I54),K54,IF(AND(O55="SELL",I55<I54),K54+$R$16,IF(AND(O55="SELL",I55>=I54),K54,””))))),$R$16)>$R$17,$R$17,IF(O55=O54,IF(K54=$R$17,$R$17,IF(AND(O55="BUY",I55>I54),K54+$R$16,IF(AND(O55="BUY",I55<=I54),K54,IF(AND(O55="SELL",I55<I54),K54+$R$16,IF(AND(O55="SELL",I55>=I54),K54,””))))),$R$16))) -> 0.02 | L55: -0.124852 | N55: 1992.7426 | O55: SELL
A56: 2018-07-13T13:50:00 | C56: 1990 | D56: 1990 | E56: 1986.5 | F56: 1987.3 | G56: 22051 | H56: 1992.617748 | I56: 1986.5 | J56: -6.117748 | K56: =IF(A56="","",IF(IF(O56=O55,IF(K55=$R$17,$R$17,IF(AND(O56="BUY",I56>I55),K55+$R$16,IF(AND(O56="BUY",I56<=I55),K55,IF(AND(O56="SELL",I56<I55),K55+$R$16,IF(AND(O56="SELL",I56>=I55),K55,””))))),$R$16)>$R$17,$R$17,IF(O56=O55,IF(K55=$R$17,$R$17,IF(AND(O56="BUY",I56>I55),K55+$R$16,IF(AND(O56="BUY",I56<=I55),K55,IF(AND(O56="SELL",I56<I55),K55+$R$16,IF(AND(O56="SELL",I56>=I55),K55,””))))),$R$16))) -> 0.02 | L56: -0.12235496 | N56: 1992.617748 | O56: SELL
A57: 2018-07-13T13:55:00 | C57: 1987.3 | D57: 1989.7 | E57: 1986.3 | F57: 1989.7 | G57: 31974 | H57: 1992.495393 | I57: 1986.3 | J57: -6.19539304 | K57: =IF(A57="","",IF(IF(O57=O56,IF(K56=$R$17,$R$17,IF(AND(O57="BUY",I57>I56),K56+$R$16,IF(AND(O57="BUY",I57<=I56),K56,IF(AND(O57="SELL",I57<I56),K56+$R$16,IF(AND(O57="SELL",I57>=I56),K56,””))))),$R$16)>$R$17,$R$17,IF(O57=O56,IF(K56=$R$17,$R$17,IF(AND(O57="BUY",I57>I56),K56+$R$16,IF(AND(O57="BUY",I57<=I56),K56,IF(AND(O57="SELL",I57<I56),K56+$R$16,IF(AND(O57="SELL",I57>=I56),K56,””))))),$R$16))) -> 0.04 | L57: -0.2478157216 | N57: 1992.495393 | O57: SELL
A58: 2018-07-13T14:00:00 | C58: 1989.7 | D58: 1989.95 | E58: 1987.35 | F58: 1989.35 | G58: 36363 | H58: 1992.247577 | I58: 1986.3 | J58: -5.947577318 | K58: =IF(A58="","",IF(IF(O58=O57,IF(K57=$R$17,$R$17,IF(AND(O58="BUY",I58>I57),K57+$R$16,IF(AND(O58="BUY",I58<=I57),K57,IF(AND(O58="SELL",I58<I57),K57+$R$16,IF(AND(O58="SELL",I58>=I57),K57,””))))),$R$16)>$R$17,$R$17,IF(O58=O57,IF(K57=$R$17,$R$17,IF(AND(O58="BUY",I58>I57),K57+$R$16,IF(AND(O58="BUY",I58<=I57),K57,IF(AND(O58="SELL",I58<I57),K57+$R$16,IF(AND(O58="SELL",I58>=I57),K57,””))))),$R$16))) -> 0.04 | L58: -0.2379030927 | N58: 1992.247577 | O58: SELL
A59: 2018-07-13T14:05:00 | C59: 1989.25 | D59: 1989.45 | E59: 1988.15 | F59: 1989 | G59: 12305 | H59: 1992.009674 | I59: 1986.3 | J59: -5.709674226 | K59: =IF(A59="","",IF(IF(O59=O58,IF(K58=$R$17,$R$17,IF(AND(O59="BUY",I59>I58),K58+$R$16,IF(AND(O59="BUY",I59<=I58),K58,IF(AND(O59="SELL",I59<I58),K58+$R$16,IF(AND(O59="SELL",I59>=I58),K58,””))))),$R$16)>$R$17,$R$17,IF(O59=O58,IF(K58=$R$17,$R$17,IF(AND(O59="BUY",I59>I58),K58+$R$16,IF(AND(O59="BUY",I59<=I58),K58,IF(AND(O59="SELL",I59<I58),K58+$R$16,IF(AND(O59="SELL",I59>=I58),K58,””))))),$R$16))) -> 0.04 | L59: -0.228386969 | N59: 1992.009674 | O59: SELL
A60: 2018-07-13T14:10:00 | C60: 1989 | D60: 1989 | E60: 1988.35 | F60: 1988.85 | G60: 15957 | H60: 1991.781287 | I60: 1986.3 | J60: -5.481287257 | K60: =IF(A60="","",IF(IF(O60=O59,IF(K59=$R$17,$R$17,IF(AND(O60="BUY",I60>I59),K59+$R$16,IF(AND(O60="BUY",I60<=I59),K59,IF(AND(O60="SELL",I60<I59),K59+$R$16,IF(AND(O60="SELL",I60>=I59),K59,””))))),$R$16)>$R$17,$R$17,IF(O60=O59,IF(K59=$R$17,$R$17,IF(AND(O60="BUY",I60>I59),K59+$R$16,IF(AND(O60="BUY",I60<=I59),K59,IF(AND(O60="SELL",I60<I59),K59+$R$16,IF(AND(O60="SELL",I60>=I59),K59,””))))),$R$16))) -> 0.04 | L60: -0.2192514903 | N60: 1991.781287 | O60: SELL
A61: 2018-07-13T14:15:00 | C61: 1988.95 | D61: 1989 | E61: 1987 | F61: 1987 | G61: 36533 | H61: 1991.562036 | I61: 1986.3 | J61: -5.262035766 | K61: =IF(A61="","",IF(IF(O61=O60,IF(K60=$R$17,$R$17,IF(AND(O61="BUY",I61>I60),K60+$R$16,IF(AND(O61="BUY",I61<=I60),K60,IF(AND(O61="SELL",I61<I60),K60+$R$16,IF(AND(O61="SELL",I61>=I60),K60,””))))),$R$16)>$R$17,$R$17,IF(O61=O60,IF(K60=$R$17,$R$17,IF(AND(O61="BUY",I61>I60),K60+$R$16,IF(AND(O61="BUY",I61<=I60),K60,IF(AND(O61="SELL",I61<I60),K60+$R$16,IF(AND(O61="SELL",I61>=I60),K60,””))))),$R$16))) -> 0.04 | L61: -0.2104814307 | N61: 1991.562036 | O61: SELL
A62: 2018-07-13T14:20:00 | C62: 1987 | D62: 1988 | E62: 1986 | F62: 1987.65 | G62: 29736 | H62: 1991.351554 | I62: 1986 | J62: -5.351554336 | K62: =IF(A62="","",IF(IF(O62=O61,IF(K61=$R$17,$R$17,IF(AND(O62="BUY",I62>I61),K61+$R$16,IF(AND(O62="BUY",I62<=I61),K61,IF(AND(O62="SELL",I62<I61),K61+$R$16,IF(AND(O62="SELL",I62>=I61),K61,””))))),$R$16)>$R$17,$R$17,IF(O62=O61,IF(K61=$R$17,$R$17,IF(AND(O62="BUY",I62>I61),K61+$R$16,IF(AND(O62="BUY",I62<=I61),K61,IF(AND(O62="SELL",I62<I61),K61+$R$16,IF(AND(O62="SELL",I62>=I61),K61,””))))),$R$16))) -> 0.06 | L62: -0.3210932601 | N62: 1991.351554 | O62: SELL
A63: 2018-07-13T14:25:00 | C63: 1987.7 | D63: 1987.7 | E63: 1980 | F63: 1983.75 | G63: 87413 | H63: 1991.030461 | I63: 1980 | J63: -11.03046108 | K63: =IF(A63="","",IF(IF(O63=O62,IF(K62=$R$17,$R$17,IF(AND(O63="BUY",I63>I62),K62+$R$16,IF(AND(O63="BUY",I63<=I62),K62,IF(AND(O63="SELL",I63<I62),K62+$R$16,IF(AND(O63="SELL",I63>=I62),K62,””))))),$R$16)>$R$17,$R$17,IF(O63=O62,IF(K62=$R$17,$R$17,IF(AND(O63="BUY",I63>I62),K62+$R$16,IF(AND(O63="BUY",I63<=I62),K62,IF(AND(O63="SELL",I63<I62),K62+$R$16,IF(AND(O63="SELL",I63>=I62),K62,””))))),$R$16))) -> 0.08 | L63: -0.882436886 | N63: 1991.030461 | O63: SELL
A64: 2018-07-13T14:30:00 | C64: 1984 | D64: 1985.85 | E64: 1981.2 | F64: 1981.4 | G64: 49935 | H64: 1990.148024 | I64: 1980 | J64: -10.14802419 | K64: =IF(A64="","",IF(IF(O64=O63,IF(K63=$R$17,$R$17,IF(AND(O64="BUY",I64>I63),K63+$R$16,IF(AND(O64="BUY",I64<=I63),K63,IF(AND(O64="SELL",I64<I63),K63+$R$16,IF(AND(O64="SELL",I64>=I63),K63,””))))),$R$16)>$R$17,$R$17,IF(O64=O63,IF(K63=$R$17,$R$17,IF(AND(O64="BUY",I64>I63),K63+$R$16,IF(AND(O64="BUY",I64<=I63),K63,IF(AND(O64="SELL",I64<I63),K63+$R$16,IF(AND(O64="SELL",I64>=I63),K63,””))))),$R$16))) -> 0.08 | L64: -0.8118419352 | N64: 1990.148024 | O64: SELL
A65: 2018-07-13T14:35:00 | C65: 1981.2 | D65: 1984.5 | E65: 1981.2 | F65: 1984.4 | G65: 27945 | H65: 1989.336182 | I65: 1980 | J65: -9.336182254 | K65: =IF(A65="","",IF(IF(O65=O64,IF(K64=$R$17,$R$17,IF(AND(O65="BUY",I65>I64),K64+$R$16,IF(AND(O65="BUY",I65<=I64),K64,IF(AND(O65="SELL",I65<I64),K64+$R$16,IF(AND(O65="SELL",I65>=I64),K64,””))))),$R$16)>$R$17,$R$17,IF(O65=O64,IF(K64=$R$17,$R$17,IF(AND(O65="BUY",I65>I64),K64+$R$16,IF(AND(O65="BUY",I65<=I64),K64,IF(AND(O65="SELL",I65<I64),K64+$R$16,IF(AND(O65="SELL",I65>=I64),K64,””))))),$R$16))) -> 0.08 | L65: -0.7468945803 | N65: 1989.336182 | O65: SELL
A66: 2018-07-13T14:40:00 | C66: 1984.2 | D66: 1987 | E66: 1984.15 | F66: 1986.2 | G66: 41095 | H66: 1988.589288 | I66: 1980 | J66: -8.589287674 | K66: =IF(A66="","",IF(IF(O66=O65,IF(K65=$R$17,$R$17,IF(AND(O66="BUY",I66>I65),K65+$R$16,IF(AND(O66="BUY",I66<=I65),K65,IF(AND(O66="SELL",I66<I65),K65+$R$16,IF(AND(O66="SELL",I66>=I65),K65,””))))),$R$16)>$R$17,$R$17,IF(O66=O65,IF(K65=$R$17,$R$17,IF(AND(O66="BUY",I66>I65),K65+$R$16,IF(AND(O66="BUY",I66<=I65),K65,IF(AND(O66="SELL",I66<I65),K65+$R$16,IF(AND(O66="SELL",I66>=I65),K65,””))))),$R$16))) -> 0.08 | L66: -0.6871430139 | N66: 1988.589288 | O66: SELL
A67: 2018-07-13T14:45:00 | C67: 1986.9 | D67: 1987.95 | E67: 1982.5 | F67: 1983.95 | G67: 23897 | H67: 1980 | I67: 1987.95 | J67: 7.95 | K67: =IF(A67="","",IF(IF(O67=O66,IF(K66=$R$17,$R$17,IF(AND(O67="BUY",I67>I66),K66+$R$16,IF(AND(O67="BUY",I67<=I66),K66,IF(AND(O67="SELL",I67<I66),K66+$R$16,IF(AND(O67="SELL",I67>=I66),K66,””))))),$R$16)>$R$17,$R$17,IF(O67=O66,IF(K66=$R$17,$R$17,IF(AND(O67="BUY",I67>I66),K66+$R$16,IF(AND(O67="BUY",I67<=I66),K66,IF(AND(O67="SELL",I67<I66),K66+$R$16,IF(AND(O67="SELL",I67>=I66),K66,””))))),$R$16))) -> 0.02 | L67: 0.159 | N67: =H67 -> 1980 | O67: BUY
A68: 2018-07-13T14:50:00 | C68: 1984.5 | D68: 1985.2 | E68: 1982.2 | F68: 1984.85 | G68: 29905 | H68: 1980.159 | I68: 1987.95 | J68: =IF(A68="","",I68-H68) -> 7.791 | K68: =IF(A68="","",IF(IF(O68=O67,IF(K67=$R$17,$R$17,IF(AND(O68="BUY",I68>I67),K67+$R$16,IF(AND(O68="BUY",I68<=I67),K67,IF(AND(O68="SELL",I68<I67),K67+$R$16,IF(AND(O68="SELL",I68>=I67),K67,””))))),$R$16)>$R$17,$R$17,IF(O68=O67,IF(K67=$R$17,$R$17,IF(AND(O68="BUY",I68>I67),K67+$R$16,IF(AND(O68="BUY",I68<=I67),K67,IF(AND(O68="SELL",I68<I67),K67+$R$16,IF(AND(O68="SELL",I68>=I67),K67,””))))),$R$16))) -> 0.02 | L68: =IF(A68="","",K68*J68) -> 0.15582 | N68: 1980.159 | O68: BUY
A69: 2018-07-13T14:55:00 | C69: 1984.85 | D69: 1984.95 | E69: 1982.05 | F69: 1983.05 | G69: 37339 | H69: =IF(A69="","",IF(AND(O68="BUY",H68+L68>E69),I68,IF(AND(O68="SELL",H68+L68<D69),I68,H68+L68))) -> 1980.31482 | I69: =IF(A69="","",IF(AND(O69="BUY",D69>I68),D69,IF(AND(O69="BUY",D69<=I68),I68,IF(AND(O69="SELL",E69<I68),E69,I68)))) -> 1987.95 | J69: 7.63518 | K69: =IF(A69="","",IF(IF(O69=O68,IF(K68=$R$17,$R$17,IF(AND(O69="BUY",I69>I68),K68+$R$16,IF(AND(O69="BUY",I69<=I68),K68,IF(AND(O69="SELL",I69<I68),K68+$R$16,IF(AND(O69="SELL",I69>=I68),K68,””))))),$R$16)>$R$17,$R$17,IF(O69=O68,IF(K68=$R$17,$R$17,IF(AND(O69="BUY",I69>I68),K68+$R$16,IF(AND(O69="BUY",I69<=I68),K68,IF(AND(O69="SELL",I69<I68),K68+$R$16,IF(AND(O69="SELL",I69>=I68),K68,””))))),$R$16))) -> 0.02 | L69: 0.1527036 | N69: 1980.31482 | O69: =IF(H69<D69,"BUY",IF(H69>E69,"SELL","")) -> BUY
A70: 2018-07-13T15:00:00 | C70: 1983.05 | D70: 1985.2 | E70: 1982 | F70: 1985.1 | G70: 44651 | H70: 1980.467524 | I70: 1987.95 | J70: 7.4824764 | K70: =IF(A70="","",IF(IF(O70=O69,IF(K69=$R$17,$R$17,IF(AND(O70="BUY",I70>I69),K69+$R$16,IF(AND(O70="BUY",I70<=I69),K69,IF(AND(O70="SELL",I70<I69),K69+$R$16,IF(AND(O70="SELL",I70>=I69),K69,””))))),$R$16)>$R$17,$R$17,IF(O70=O69,IF(K69=$R$17,$R$17,IF(AND(O70="BUY",I70>I69),K69+$R$16,IF(AND(O70="BUY",I70<=I69),K69,IF(AND(O70="SELL",I70<I69),K69+$R$16,IF(AND(O70="SELL",I70>=I69),K69,””))))),$R$16))) -> 0.02 | L70: 0.149649528 | N70: 1980.467524 | O70: BUY
A71: 2018-07-13T15:05:00 | C71: 1985 | D71: 1986 | E71: 1982.2 | F71: 1983.3 | G71: 54237 | H71: 1980.617173 | I71: 1987.95 | J71: 7.332826872 | K71: =IF(A71="","",IF(IF(O71=O70,IF(K70=$R$17,$R$17,IF(AND(O71="BUY",I71>I70),K70+$R$16,IF(AND(O71="BUY",I71<=I70),K70,IF(AND(O71="SELL",I71<I70),K70+$R$16,IF(AND(O71="SELL",I71>=I70),K70,””))))),$R$16)>$R$17,$R$17,IF(O71=O70,IF(K70=$R$17,$R$17,IF(AND(O71="BUY",I71>I70),K70+$R$16,IF(AND(O71="BUY",I71<=I70),K70,IF(AND(O71="SELL",I71<I70),K70+$R$16,IF(AND(O71="SELL",I71>=I70),K70,””))))),$R$16))) -> 0.02 | L71: 0.1466565374 | N71: 1980.617173 | O71: BUY
A72: 2018-07-13T15:10:00 | C72: 1983.5 | D72: 1985 | E72: 1983.15 | F72: 1983.85 | G72: 55717 | H72: 1980.76383 | I72: 1987.95 | J72: 7.186170335 | K72: =IF(A72="","",IF(IF(O72=O71,IF(K71=$R$17,$R$17,IF(AND(O72="BUY",I72>I71),K71+$R$16,IF(AND(O72="BUY",I72<=I71),K71,IF(AND(O72="SELL",I72<I71),K71+$R$16,IF(AND(O72="SELL",I72>=I71),K71,””))))),$R$16)>$R$17,$R$17,IF(O72=O71,IF(K71=$R$17,$R$17,IF(AND(O72="BUY",I72>I71),K71+$R$16,IF(AND(O72="BUY",I72<=I71),K71,IF(AND(O72="SELL",I72<I71),K71+$R$16,IF(AND(O72="SELL",I72>=I71),K71,””))))),$R$16))) -> 0.02 | L72: 0.1437234067 | N72: 1980.76383 | O72: BUY
A73: 2018-07-13T15:15:00 | C73: 1983.85 | D73: 1984 | E73: 1981.2 | F73: 1983.2 | G73: 85994 | H73: 1980.907553 | I73: 1987.95 | J73: 7.042446928 | K73: =IF(A73="","",IF(IF(O73=O72,IF(K72=$R$17,$R$17,IF(AND(O73="BUY",I73>I72),K72+$R$16,IF(AND(O73="BUY",I73<=I72),K72,IF(AND(O73="SELL",I73<I72),K72+$R$16,IF(AND(O73="SELL",I73>=I72),K72,””))))),$R$16)>$R$17,$R$17,IF(O73=O72,IF(K72=$R$17,$R$17,IF(AND(O73="BUY",I73>I72),K72+$R$16,IF(AND(O73="BUY",I73<=I72),K72,IF(AND(O73="SELL",I73<I72),K72+$R$16,IF(AND(O73="SELL",I73>=I72),K72,””))))),$R$16))) -> 0.02 | L73: 0.1408489386 | N73: 1980.907553 | O73: BUY
A74: 2018-07-13T15:20:00 | C74: 1983.45 | D74: 1984.4 | E74: 1980.75 | F74: 1981.15 | G74: 136420 | H74: 1987.95 | I74: 1980.75 | J74: -7.2 | K74: =IF(A74="","",IF(IF(O74=O73,IF(K73=$R$17,$R$17,IF(AND(O74="BUY",I74>I73),K73+$R$16,IF(AND(O74="BUY",I74<=I73),K73,IF(AND(O74="SELL",I74<I73),K73+$R$16,IF(AND(O74="SELL",I74>=I73),K73,””))))),$R$16)>$R$17,$R$17,IF(O74=O73,IF(K73=$R$17,$R$17,IF(AND(O74="BUY",I74>I73),K73+$R$16,IF(AND(O74="BUY",I74<=I73),K73,IF(AND(O74="SELL",I74<I73),K73+$R$16,IF(AND(O74="SELL",I74>=I73),K73,””))))),$R$16))) -> 0.02 | L74: -0.144 | N74: 1987.95 | O74: SELL
A75: 2018-07-13T15:25:00 | C75: 1981.05 | D75: 1981.4 | E75: 1977.15 | F75: 1978 | G75: 150406 | H75: 1987.806 | I75: 1977.15 | J75: -10.656 | K75: =IF(A75="","",IF(IF(O75=O74,IF(K74=$R$17,$R$17,IF(AND(O75="BUY",I75>I74),K74+$R$16,IF(AND(O75="BUY",I75<=I74),K74,IF(AND(O75="SELL",I75<I74),K74+$R$16,IF(AND(O75="SELL",I75>=I74),K74,””))))),$R$16)>$R$17,$R$17,IF(O75=O74,IF(K74=$R$17,$R$17,IF(AND(O75="BUY",I75>I74),K74+$R$16,IF(AND(O75="BUY",I75<=I74),K74,IF(AND(O75="SELL",I75<I74),K74+$R$16,IF(AND(O75="SELL",I75>=I74),K74,””))))),$R$16))) -> 0.04 | L75: -0.42624 | N75: 1987.806 | O75: SELL
A76: 2018-07-13T15:30:00 | C76: 1978.05 | D76: 1979 | E76: 1977 | F76: 1977.6 | G76: 84194 | H76: 1987.37976 | I76: 1977 | J76: -10.37976 | K76: =IF(A76="","",IF(IF(O76=O75,IF(K75=$R$17,$R$17,IF(AND(O76="BUY",I76>I75),K75+$R$16,IF(AND(O76="BUY",I76<=I75),K75,IF(AND(O76="SELL",I76<I75),K75+$R$16,IF(AND(O76="SELL",I76>=I75),K75,””))))),$R$16)>$R$17,$R$17,IF(O76=O75,IF(K75=$R$17,$R$17,IF(AND(O76="BUY",I76>I75),K75+$R$16,IF(AND(O76="BUY",I76<=I75),K75,IF(AND(O76="SELL",I76<I75),K75+$R$16,IF(AND(O76="SELL",I76>=I75),K75,””))))),$R$16))) -> 0.06 | L76: -0.6227856 | N76: 1987.37976 | O76: SELL
A77: 2018-07-16T09:20:00 | C77: 1986.95 | D77: 1995.9 | E77: 1982.65 | F77: 1993.45 | G77: 158632 | H77: 1977 | I77: 1995.9 | J77: 18.9 | K77: =IF(A77="","",IF(IF(O77=O76,IF(K76=$R$17,$R$17,IF(AND(O77="BUY",I77>I76),K76+$R$16,IF(AND(O77="BUY",I77<=I76),K76,IF(AND(O77="SELL",I77<I76),K76+$R$16,IF(AND(O77="SELL",I77>=I76),K76,””))))),$R$16)>$R$17,$R$17,IF(O77=O76,IF(K76=$R$17,$R$17,IF(AND(O77="BUY",I77>I76),K76+$R$16,IF(AND(O77="BUY",I77<=I76),K76,IF(AND(O77="SELL",I77<I76),K76+$R$16,IF(AND(O77="SELL",I77>=I76),K76,””))))),$R$16))) -> 0.02 | L77: 0.378 | N77: 1977 | O77: BUY
A78: 2018-07-16T09:25:00 | C78: 1993.45 | D78: 1994 | E78: 1986.4 | F78: 1991.05 | G78: 112226 | H78: 1977.378 | I78: 1995.9 | J78: 18.522 | K78: =IF(A78="","",IF(IF(O78=O77,IF(K77=$R$17,$R$17,IF(AND(O78="BUY",I78>I77),K77+$R$16,IF(AND(O78="BUY",I78<=I77),K77,IF(AND(O78="SELL",I78<I77),K77+$R$16,IF(AND(O78="SELL",I78>=I77),K77,””))))),$R$16)>$R$17,$R$17,IF(O78=O77,IF(K77=$R$17,$R$17,IF(AND(O78="BUY",I78>I77),K77+$R$16,IF(AND(O78="BUY",I78<=I77),K77,IF(AND(O78="SELL",I78<I77),K77+$R$16,IF(AND(O78="SELL",I78>=I77),K77,””))))),$R$16))) -> 0.02 | L78: 0.37044 | N78: 1977.378 | O78: BUY
A79: 2018-07-16T09:30:00 | C79: 1991.05 | D79: 1993.35 | E79: 1984.75 | F79: 1990.25 | G79: 66079 | H79: 1977.74844 | I79: 1995.9 | J79: 18.15156 | K79: =IF(A79="","",IF(IF(O79=O78,IF(K78=$R$17,$R$17,IF(AND(O79="BUY",I79>I78),K78+$R$16,IF(AND(O79="BUY",I79<=I78),K78,IF(AND(O79="SELL",I79<I78),K78+$R$16,IF(AND(O79="SELL",I79>=I78),K78,””))))),$R$16)>$R$17,$R$17,IF(O79=O78,IF(K78=$R$17,$R$17,IF(AND(O79="BUY",I79>I78),K78+$R$16,IF(AND(O79="BUY",I79<=I78),K78,IF(AND(O79="SELL",I79<I78),K78+$R$16,IF(AND(O79="SELL",I79>=I78),K78,””))))),$R$16))) -> 0.02 | L79: 0.3630312 | N79: 1977.74844 | O79: BUY
A80: 2018-07-16T09:35:00 | C80: 1990.2 | D80: 1993 | E80: 1985.55 | F80: 1988.95 | G80: 55973 | H80: 1978.111471 | I80: 1995.9 | J80: 17.7885288 | K80: =IF(A80="","",IF(IF(O80=O79,IF(K79=$R$17,$R$17,IF(AND(O80="BUY",I80>I79),K79+$R$16,IF(AND(O80="BUY",I80<=I79),K79,IF(AND(O80="SELL",I80<I79),K79+$R$16,IF(AND(O80="SELL",I80>=I79),K79,””))))),$R$16)>$R$17,$R$17,IF(O80=O79,IF(K79=$R$17,$R$17,IF(AND(O80="BUY",I80>I79),K79+$R$16,IF(AND(O80="BUY",I80<=I79),K79,IF(AND(O80="SELL",I80<I79),K79+$R$16,IF(AND(O80="SELL",I80>=I79),K79,””))))),$R$16))) -> 0.02 | L80: 0.355770576 | N80: 1978.111471 | O80: BUY
A81: 2018-07-16T09:40:00 | C81: 1988.95 | D81: 1990 | E81: 1986.4 | F81: 1987.1 | G81: 89935 | H81: 1978.467242 | I81: 1995.9 | J81: 17.43275822 | K81: =IF(A81="","",IF(IF(O81=O80,IF(K80=$R$17,$R$17,IF(AND(O81="BUY",I81>I80),K80+$R$16,IF(AND(O81="BUY",I81<=I80),K80,IF(AND(O81="SELL",I81<I80),K80+$R$16,IF(AND(O81="SELL",I81>=I80),K80,””))))),$R$16)>$R$17,$R$17,IF(O81=O80,IF(K80=$R$17,$R$17,IF(AND(O81="BUY",I81>I80),K80+$R$16,IF(AND(O81="BUY",I81<=I80),K80,IF(AND(O81="SELL",I81<I80),K80+$R$16,IF(AND(O81="SELL",I81>=I80),K80,””))))),$R$16))) -> 0.02 | L81: 0.3486551645 | N81: 1978.467242 | O81: BUY
A82: 2018-07-16T09:45:00 | C82: 1987.35 | D82: 1989.85 | E82: 1985.55 | F82: 1989.65 | G82: 74445 | H82: 1978.815897 | I82: 1995.9 | J82: 17.08410306 | K82: =IF(A82="","",IF(IF(O82=O81,IF(K81=$R$17,$R$17,IF(AND(O82="BUY",I82>I81),K81+$R$16,IF(AND(O82="BUY",I82<=I81),K81,IF(AND(O82="SELL",I82<I81),K81+$R$16,IF(AND(O82="SELL",I82>=I81),K81,””))))),$R$16)>$R$17,$R$17,IF(O82=O81,IF(K81=$R$17,$R$17,IF(AND(O82="BUY",I82>I81),K81+$R$16,IF(AND(O82="BUY",I82<=I81),K81,IF(AND(O82="SELL",I82<I81),K81+$R$16,IF(AND(O82="SELL",I82>=I81),K81,””))))),$R$16))) -> 0.02 | L82: 0.3416820612 | N82: 1978.815897 | O82: BUY
A83: 2018-07-16T09:50:00 | C83: 1989.65 | D83: 1991.45 | E83: 1988 | F83: 1990 | G83: 39680 | H83: 1979.157579 | I83: 1995.9 | J83: 16.742421 | K83: =IF(A83="","",IF(IF(O83=O82,IF(K82=$R$17,$R$17,IF(AND(O83="BUY",I83>I82),K82+$R$16,IF(AND(O83="BUY",I83<=I82),K82,IF(AND(O83="SELL",I83<I82),K82+$R$16,IF(AND(O83="SELL",I83>=I82),K82,””))))),$R$16)>$R$17,$R$17,IF(O83=O82,IF(K82=$R$17,$R$17,IF(AND(O83="BUY",I83>I82),K82+$R$16,IF(AND(O83="BUY",I83<=I82),K82,IF(AND(O83="SELL",I83<I82),K82+$R$16,IF(AND(O83="SELL",I83>=I82),K82,””))))),$R$16))) -> 0.02 | L83: 0.33484842 | N83: 1979.157579 | O83: BUY
A84: 2018-07-16T09:55:00 | C84: 1989.85 | D84: 1990 | E84: 1985.05 | F84: 1985.05 | G84: 59756 | H84: 1979.492427 | I84: 1995.9 | J84: 16.40757258 | K84: =IF(A84="","",IF(IF(O84=O83,IF(K83=$R$17,$R$17,IF(AND(O84="BUY",I84>I83),K83+$R$16,IF(AND(O84="BUY",I84<=I83),K83,IF(AND(O84="SELL",I84<I83),K83+$R$16,IF(AND(O84="SELL",I84>=I83),K83,””))))),$R$16)>$R$17,$R$17,IF(O84=O83,IF(K83=$R$17,$R$17,IF(AND(O84="BUY",I84>I83),K83+$R$16,IF(AND(O84="BUY",I84<=I83),K83,IF(AND(O84="SELL",I84<I83),K83+$R$16,IF(AND(O84="SELL",I84>=I83),K83,””))))),$R$16))) -> 0.02 | L84: 0.3281514516 | N84: 1979.492427 | O84: BUY
A85: 2018-07-16T10:00:00 | C85: 1985.05 | D85: 1988 | E85: 1984 | F85: 1986.7 | G85: 31278 | H85: 1979.820579 | I85: 1995.9 | J85: 16.07942113 | K85: =IF(A85="","",IF(IF(O85=O84,IF(K84=$R$17,$R$17,IF(AND(O85="BUY",I85>I84),K84+$R$16,IF(AND(O85="BUY",I85<=I84),K84,IF(AND(O85="SELL",I85<I84),K84+$R$16,IF(AND(O85="SELL",I85>=I84),K84,””))))),$R$16)>$R$17,$R$17,IF(O85=O84,IF(K84=$R$17,$R$17,IF(AND(O85="BUY",I85>I84),K84+$R$16,IF(AND(O85="BUY",I85<=I84),K84,IF(AND(O85="SELL",I85<I84),K84+$R$16,IF(AND(O85="SELL",I85>=I84),K84,””))))),$R$16))) -> 0.02 | L85: 0.3215884225 | N85: 1979.820579 | O85: BUY
A86: 2018-07-16T10:05:00 | C86: 1986.65 | D86: 1987.3 | E86: 1981 | F86: 1984.8 | G86: 50546 | H86: 1980.142167 | I86: 1995.9 | J86: 15.7578327 | K86: =IF(A86="","",IF(IF(O86=O85,IF(K85=$R$17,$R$17,IF(AND(O86="BUY",I86>I85),K85+$R$16,IF(AND(O86="BUY",I86<=I85),K85,IF(AND(O86="SELL",I86<I85),K85+$R$16,IF(AND(O86="SELL",I86>=I85),K85,””))))),$R$16)>$R$17,$R$17,IF(O86=O85,IF(K85=$R$17,$R$17,IF(AND(O86="BUY",I86>I85),K85+$R$16,IF(AND(O86="BUY",I86<=I85),K85,IF(AND(O86="SELL",I86<I85),K85+$R$16,IF(AND(O86="SELL",I86>=I85),K85,””))))),$R$16))) -> 0.02 | L86: 0.3151566541 | N86: 1980.142167 | O86: BUY
A87: 2018-07-16T10:10:00 | C87: 1984.8 | D87: 1989.5 | E87: 1984.8 | F87: 1988.5 | G87: 51424 | H87: 1980.457324 | I87: 1995.9 | J87: 15.44267605 | K87: =IF(A87="","",IF(IF(O87=O86,IF(K86=$R$17,$R$17,IF(AND(O87="BUY",I87>I86),K86+$R$16,IF(AND(O87="BUY",I87<=I86),K86,IF(AND(O87="SELL",I87<I86),K86+$R$16,IF(AND(O87="SELL",I87>=I86),K86,””))))),$R$16)>$R$17,$R$17,IF(O87=O86,IF(K86=$R$17,$R$17,IF(AND(O87="BUY",I87>I86),K86+$R$16,IF(AND(O87="BUY",I87<=I86),K86,IF(AND(O87="SELL",I87<I86),K86+$R$16,IF(AND(O87="SELL",I87>=I86),K86,””))))),$R$16))) -> 0.02 | L87: 0.308853521 | N87: 1980.457324 | O87: BUY
A88: 2018-07-16T10:15:00 | C88: 1988.5 | D88: 1988.95 | E88: 1985.05 | F88: 1987.2 | G88: 30980 | H88: 1980.766177 | I88: 1995.9 | J88: 15.13382253 | K88: =IF(A88="","",IF(IF(O88=O87,IF(K87=$R$17,$R$17,IF(AND(O88="BUY",I88>I87),K87+$R$16,IF(AND(O88="BUY",I88<=I87),K87,IF(AND(O88="SELL",I88<I87),K87+$R$16,IF(AND(O88="SELL",I88>=I87),K87,””))))),$R$16)>$R$17,$R$17,IF(O88=O87,IF(K87=$R$17,$R$17,IF(AND(O88="BUY",I88>I87),K87+$R$16,IF(AND(O88="BUY",I88<=I87),K87,IF(AND(O88="SELL",I88<I87),K87+$R$16,IF(AND(O88="SELL",I88>=I87),K87,””))))),$R$16))) -> 0.02 | L88: 0.3026764506 | N88: 1980.766177 | O88: BUY
A89: 2018-07-16T10:20:00 | C89: 1987.2 | D89: 1987.9 | E89: 1985.4 | F89: 1985.6 | G89: 13373 | H89: 1981.068854 | I89: 1995.9 | J89: 14.83114608 | K89: =IF(A89="","",IF(IF(O89=O88,IF(K88=$R$17,$R$17,IF(AND(O89="BUY",I89>I88),K88+$R$16,IF(AND(O89="BUY",I89<=I88),K88,IF(AND(O89="SELL",I89<I88),K88+$R$16,IF(AND(O89="SELL",I89>=I88),K88,””))))),$R$16)>$R$17,$R$17,IF(O89=O88,IF(K88=$R$17,$R$17,IF(AND(O89="BUY",I89>I88),K88+$R$16,IF(AND(O89="BUY",I89<=I88),K88,IF(AND(O89="SELL",I89<I88),K88+$R$16,IF(AND(O89="SELL",I89>=I88),K88,””))))),$R$16))) -> 0.02 | L89: 0.2966229216 | N89: 1981.068854 | O89: BUY
A90: 2018-07-16T10:25:00 | C90: 1986 | D90: 1987 | E90: 1985.05 | F90: 1985.85 | G90: 14524 | H90: 1981.365477 | I90: 1995.9 | J90: 14.53452316 | K90: =IF(A90="","",IF(IF(O90=O89,IF(K89=$R$17,$R$17,IF(AND(O90="BUY",I90>I89),K89+$R$16,IF(AND(O90="BUY",I90<=I89),K89,IF(AND(O90="SELL",I90<I89),K89+$R$16,IF(AND(O90="SELL",I90>=I89),K89,””))))),$R$16)>$R$17,$R$17,IF(O90=O89,IF(K89=$R$17,$R$17,IF(AND(O90="BUY",I90>I89),K89+$R$16,IF(AND(O90="BUY",I90<=I89),K89,IF(AND(O90="SELL",I90<I89),K89+$R$16,IF(AND(O90="SELL",I90>=I89),K89,””))))),$R$16))) -> 0.02 | L90: 0.2906904631 | N90: 1981.365477 | O90: BUY
A91: 2018-07-16T10:30:00 | C91: 1985.9 | D91: 1987.2 | E91: 1985.5 | F91: 1985.9 | G91: 15456 | H91: 1981.656167 | I91: 1995.9 | J91: 14.24383269 | K91: =IF(A91="","",IF(IF(O91=O90,IF(K90=$R$17,$R$17,IF(AND(O91="BUY",I91>I90),K90+$R$16,IF(AND(O91="BUY",I91<=I90),K90,IF(AND(O91="SELL",I91<I90),K90+$R$16,IF(AND(O91="SELL",I91>=I90),K90,””))))),$R$16)>$R$17,$R$17,IF(O91=O90,IF(K90=$R$17,$R$17,IF(AND(O91="BUY",I91>I90),K90+$R$16,IF(AND(O91="BUY",I91<=I90),K90,IF(AND(O91="SELL",I91<I90),K90+$R$16,IF(AND(O91="SELL",I91>=I90),K90,””))))),$R$16))) -> 0.02 | L91: 0.2848766539 | N91: 1981.656167 | O91: BUY
A92: 2018-07-16T10:35:00 | C92: 1985.95 | D92: 1988.75 | E92: 1984 | F92: 1988.6 | G92: 23928 | H92: 1981.941044 | I92: 1995.9 | J92: 13.95895604 | K92: =IF(A92="","",IF(IF(O92=O91,IF(K91=$R$17,$R$17,IF(AND(O92="BUY",I92>I91),K91+$R$16,IF(AND(O92="BUY",I92<=I91),K91,IF(AND(O92="SELL",I92<I91),K91+$R$16,IF(AND(O92="SELL",I92>=I91),K91,””))))),$R$16)>$R$17,$R$17,IF(O92=O91,IF(K91=$R$17,$R$17,IF(AND(O92="BUY",I92>I91),K91+$R$16,IF(AND(O92="BUY",I92<=I91),K91,IF(AND(O92="SELL",I92<I91),K91+$R$16,IF(AND(O92="SELL",I92>=I91),K91,””))))),$R$16))) -> 0.02 | L92: 0.2791791208 | N92: 1981.941044 | O92: BUY
A93: 2018-07-16T10:40:00 | C93: 1988.6 | D93: 1989 | E93: 1985.9 | F93: 1987.65 | G93: 18702 | H93: 1982.220223 | I93: 1995.9 | J93: 13.67977692 | K93: =IF(A93="","",IF(IF(O93=O92,IF(K92=$R$17,$R$17,IF(AND(O93="BUY",I93>I92),K92+$R$16,IF(AND(O93="BUY",I93<=I92),K92,IF(AND(O93="SELL",I93<I92),K92+$R$16,IF(AND(O93="SELL",I93>=I92),K92,””))))),$R$16)>$R$17,$R$17,IF(O93=O92,IF(K92=$R$17,$R$17,IF(AND(O93="BUY",I93>I92),K92+$R$16,IF(AND(O93="BUY",I93<=I92),K92,IF(AND(O93="SELL",I93<I92),K92+$R$16,IF(AND(O93="SELL",I93>=I92),K92,””))))),$R$16))) -> 0.02 | L93: 0.2735955384 | N93: 1982.220223 | O93: BUY
A94: 2018-07-16T10:45:00 | C94: 1987.65 | D94: 1987.75 | E94: 1985.95 | F94: 1985.95 | G94: 13694 | H94: 1982.493819 | I94: 1995.9 | J94: 13.40618138 | K94: =IF(A94="","",IF(IF(O94=O93,IF(K93=$R$17,$R$17,IF(AND(O94="BUY",I94>I93),K93+$R$16,IF(AND(O94="BUY",I94<=I93),K93,IF(AND(O94="SELL",I94<I93),K93+$R$16,IF(AND(O94="SELL",I94>=I93),K93,””))))),$R$16)>$R$17,$R$17,IF(O94=O93,IF(K93=$R$17,$R$17,IF(AND(O94="BUY",I94>I93),K93+$R$16,IF(AND(O94="BUY",I94<=I93),K93,IF(AND(O94="SELL",I94<I93),K93+$R$16,IF(AND(O94="SELL",I94>=I93),K93,””))))),$R$16))) -> 0.02 | L94: 0.2681236276 | N94: 1982.493819 | O94: BUY
A95: 2018-07-16T10:50:00 | C95: 1985.95 | D95: 1986.85 | E95: 1984.8 | F95: 1985.85 | G95: 26546 | H95: 1982.761942 | I95: 1995.9 | J95: 13.13805775 | K95: =IF(A95="","",IF(IF(O95=O94,IF(K94=$R$17,$R$17,IF(AND(O95="BUY",I95>I94),K94+$R$16,IF(AND(O95="BUY",I95<=I94),K94,IF(AND(O95="SELL",I95<I94),K94+$R$16,IF(AND(O95="SELL",I95>=I94),K94,””))))),$R$16)>$R$17,$R$17,IF(O95=O94,IF(K94=$R$17,$R$17,IF(AND(O95="BUY",I95>I94),K94+$R$16,IF(AND(O95="BUY",I95<=I94),K94,IF(AND(O95="SELL",I95<I94),K94+$R$16,IF(AND(O95="SELL",I95>=I94),K94,””))))),$R$16))) -> 0.02 | L95: 0.2627611551 | N95: 1982.761942 | O95: BUY
A96: 2018-07-16T10:55:00 | C96: 1985.9 | D96: 1987 | E96: 1978.35 | F96: 1980.7 | G96: 49845 | H96: 1995.9 | I96: 1978.35 | J96: -17.55 | K96: =IF(A96="","",IF(IF(O96=O95,IF(K95=$R$17,$R$17,IF(AND(O96="BUY",I96>I95),K95+$R$16,IF(AND(O96="BUY",I96<=I95),K95,IF(AND(O96="SELL",I96<I95),K95+$R$16,IF(AND(O96="SELL",I96>=I95),K95,””))))),$R$16)>$R$17,$R$17,IF(O96=O95,IF(K95=$R$17,$R$17,IF(AND(O96="BUY",I96>I95),K95+$R$16,IF(AND(O96="BUY",I96<=I95),K95,IF(AND(O96="SELL",I96<I95),K95+$R$16,IF(AND(O96="SELL",I96>=I95),K95,””))))),$R$16))) -> 0.02 | L96: -0.351 | N96: 1995.9 | O96: SELL
A97: 2018-07-16T11:00:00 | C97: 1981 | D97: 1986.3 | E97: 1980.5 | F97: 1983.25 | G97: 20668 | H97: 1995.549 | I97: 1978.35 | J97: -17.199 | K97: =IF(A97="","",IF(IF(O97=O96,IF(K96=$R$17,$R$17,IF(AND(O97="BUY",I97>I96),K96+$R$16,IF(AND(O97="BUY",I97<=I96),K96,IF(AND(O97="SELL",I97<I96),K96+$R$16,IF(AND(O97="SELL",I97>=I96),K96,””))))),$R$16)>$R$17,$R$17,IF(O97=O96,IF(K96=$R$17,$R$17,IF(AND(O97="BUY",I97>I96),K96+$R$16,IF(AND(O97="BUY",I97<=I96),K96,IF(AND(O97="SELL",I97<I96),K96+$R$16,IF(AND(O97="SELL",I97>=I96),K96,””))))),$R$16))) -> 0.02 | L97: -0.34398 | N97: 1995.549 | O97: SELL
A98: 2018-07-16T11:05:00 | C98: 1983.95 | D98: 1985.35 | E98: 1983 | F98: 1984.75 | G98: 13783 | H98: 1995.20502 | I98: 1978.35 | J98: -16.85502 | K98: =IF(A98="","",IF(IF(O98=O97,IF(K97=$R$17,$R$17,IF(AND(O98="BUY",I98>I97),K97+$R$16,IF(AND(O98="BUY",I98<=I97),K97,IF(AND(O98="SELL",I98<I97),K97+$R$16,IF(AND(O98="SELL",I98>=I97),K97,””))))),$R$16)>$R$17,$R$17,IF(O98=O97,IF(K97=$R$17,$R$17,IF(AND(O98="BUY",I98>I97),K97+$R$16,IF(AND(O98="BUY",I98<=I97),K97,IF(AND(O98="SELL",I98<I97),K97+$R$16,IF(AND(O98="SELL",I98>=I97),K97,””))))),$R$16))) -> 0.02 | L98: -0.3371004 | N98: 1995.20502 | O98: SELL
A99: 2018-07-16T11:10:00 | C99: 1984.75 | D99: 1985.4 | E99: 1983.4 | F99: 1984.95 | G99: 11655 | H99: 1994.86792 | I99: 1978.35 | J99: -16.5179196 | K99: =IF(A99="","",IF(IF(O99=O98,IF(K98=$R$17,$R$17,IF(AND(O99="BUY",I99>I98),K98+$R$16,IF(AND(O99="BUY",I99<=I98),K98,IF(AND(O99="SELL",I99<I98),K98+$R$16,IF(AND(O99="SELL",I99>=I98),K98,””))))),$R$16)>$R$17,$R$17,IF(O99=O98,IF(K98=$R$17,$R$17,IF(AND(O99="BUY",I99>I98),K98+$R$16,IF(AND(O99="BUY",I99<=I98),K98,IF(AND(O99="SELL",I99<I98),K98+$R$16,IF(AND(O99="SELL",I99>=I98),K98,””))))),$R$16))) -> 0.02 | L99: -0.330358392 | N99: 1994.86792 | O99: SELL
A100: 2018-07-16T11:15:00 | C100: 1985.4 | D100: 1986 | E100: 1982.6 | F100: 1985.5 | G100: 18644 | H100: 1994.537561 | I100: 1978.35 | J100: -16.18756121 | K100: =IF(A100="","",IF(IF(O100=O99,IF(K99=$R$17,$R$17,IF(AND(O100="BUY",I100>I99),K99+$R$16,IF(AND(O100="BUY",I100<=I99),K99,IF(AND(O100="SELL",I100<I99),K99+$R$16,IF(AND(O100="SELL",I100>=I99),K99,””))))),$R$16)>$R$17,$R$17,IF(O100=O99,IF(K99=$R$17,$R$17,IF(AND(O100="BUY",I100>I99),K99+$R$16,IF(AND(O100="BUY",I100<=I99),K99,IF(AND(O100="SELL",I100<I99),K99+$R$16,IF(AND(O100="SELL",I100>=I99),K99,””))))),$R$16))) -> 0.02 | L100: -0.3237512242 | N100: 1994.537561 | O100: SELL
A101: 2018-07-16T11:20:00 | C101: 1985.2 | D101: 1986 | E101: 1983.35 | F101: 1985.9 | G101: 15273 | H101: 1994.21381 | I101: 1978.35 | J101: -15.86380998 | K101: =IF(A101="","",IF(IF(O101=O100,IF(K100=$R$17,$R$17,IF(AND(O101="BUY",I101>I100),K100+$R$16,IF(AND(O101="BUY",I101<=I100),K100,IF(AND(O101="SELL",I101<I100),K100+$R$16,IF(AND(O101="SELL",I101>=I100),K100,””))))),$R$16)>$R$17,$R$17,IF(O101=O100,IF(K100=$R$17,$R$17,IF(AND(O101="BUY",I101>I100),K100+$R$16,IF(AND(O101="BUY",I101<=I100),K100,IF(AND(O101="SELL",I101<I100),K100+$R$16,IF(AND(O101="SELL",I101>=I100),K100,””))))),$R$16))) -> 0.02 | L101: -0.3172761997 | N101: 1994.21381 | O101: SELL
A102: 2018-07-16T11:25:00 | C102: 1985.9 | D102: 1987 | E102: 1985.25 | F102: 1985.25 | G102: 11470 | H102: 1993.896534 | I102: 1978.35 | J102: -15.54653378 | K102: =IF(A102="","",IF(IF(O102=O101,IF(K101=$R$17,$R$17,IF(AND(O102="BUY",I102>I101),K101+$R$16,IF(AND(O102="BUY",I102<=I101),K101,IF(AND(O102="SELL",I102<I101),K101+$R$16,IF(AND(O102="SELL",I102>=I101),K101,””))))),$R$16)>$R$17,$R$17,IF(O102=O101,IF(K101=$R$17,$R$17,IF(AND(O102="BUY",I102>I101),K101+$R$16,IF(AND(O102="BUY",I102<=I101),K101,IF(AND(O102="SELL",I102<I101),K101+$R$16,IF(AND(O102="SELL",I102>=I101),K101,””))))),$R$16))) -> 0.02 | L102: -0.3109306757 | N102: 1993.896534 | O102: SELL
A103: 2018-07-16T11:30:00 | C103: 1985.4 | D103: 1986 | E103: 1983.75 | F103: 1986 | G103: 10167 | H103: 1993.585603 | I103: 1978.35 | J103: -15.23560311 | K103: =IF(A103="","",IF(IF(O103=O102,IF(K102=$R$17,$R$17,IF(AND(O103="BUY",I103>I102),K102+$R$16,IF(AND(O103="BUY",I103<=I102),K102,IF(AND(O103="SELL",I103<I102),K102+$R$16,IF(AND(O103="SELL",I103>=I102),K102,””))))),$R$16)>$R$17,$R$17,IF(O103=O102,IF(K102=$R$17,$R$17,IF(AND(O103="BUY",I103>I102),K102+$R$16,IF(AND(O103="BUY",I103<=I102),K102,IF(AND(O103="SELL",I103<I102),K102+$R$16,IF(AND(O103="SELL",I103>=I102),K102,””))))),$R$16))) -> 0.02 | L103: -0.3047120622 | N103: 1993.585603 | O103: SELL
A104: 2018-07-16T11:35:00 | C104: 1985.95 | D104: 1986.65 | E104: 1985.1 | F104: 1985.95 | G104: 10370 | H104: 1993.280891 | I104: 1978.35 | J104: -14.93089105 | K104: =IF(A104="","",IF(IF(O104=O103,IF(K103=$R$17,$R$17,IF(AND(O104="BUY",I104>I103),K103+$R$16,IF(AND(O104="BUY",I104<=I103),K103,IF(AND(O104="SELL",I104<I103),K103+$R$16,IF(AND(O104="SELL",I104>=I103),K103,””))))),$R$16)>$R$17,$R$17,IF(O104=O103,IF(K103=$R$17,$R$17,IF(AND(O104="BUY",I104>I103),K103+$R$16,IF(AND(O104="BUY",I104<=I103),K103,IF(AND(O104="SELL",I104<I103),K103+$R$16,IF(AND(O104="SELL",I104>=I103),K103,””))))),$R$16))) -> 0.02 | L104: -0.2986178209 | N104: 1993.280891 | O104: SELL
A105: 2018-07-16T11:40:00 | C105: 1986 | D105: 1986.85 | E105: 1985.65 | F105: 1986.05 | G105: 11422 | H105: 1992.982273 | I105: 1978.35 | J105: -14.63227323 | K105: =IF(A105="","",IF(IF(O105=O104,IF(K104=$R$17,$R$17,IF(AND(O105="BUY",I105>I104),K104+$R$16,IF(AND(O105="BUY",I105<=I104),K104,IF(AND(O105="SELL",I105<I104),K104+$R$16,IF(AND(O105="SELL",I105>=I104),K104,””))))),$R$16)>$R$17,$R$17,IF(O105=O104,IF(K104=$R$17,$R$17,IF(AND(O105="BUY",I105>I104),K104+$R$16,IF(AND(O105="BUY",I105<=I104),K104,IF(AND(O105="SELL",I105<I104),K104+$R$16,IF(AND(O105="SELL",I105>=I104),K104,””))))),$R$16))) -> 0.02 | L105: -0.2926454645 | N105: 1992.982273 | O105: SELL
A106: 2018-07-16T11:45:00 | C106: 1986.1 | D106: 1986.8 | E106: 1985.8 | F106: 1985.95 | G106: 10867 | H106: 1992.689628 | I106: 1978.35 | J106: -14.33962776 | K106: =IF(A106="","",IF(IF(O106=O105,IF(K105=$R$17,$R$17,IF(AND(O106="BUY",I106>I105),K105+$R$16,IF(AND(O106="BUY",I106<=I105),K105,IF(AND(O106="SELL",I106<I105),K105+$R$16,IF(AND(O106="SELL",I106>=I105),K105,””))))),$R$16)>$R$17,$R$17,IF(O106=O105,IF(K105=$R$17,$R$17,IF(AND(O106="BUY",I106>I105),K105+$R$16,IF(AND(O106="BUY",I106<=I105),K105,IF(AND(O106="SELL",I106<I105),K105+$R$16,IF(AND(O106="SELL",I106>=I105),K105,””))))),$R$16))) -> 0.02 | L106: -0.2867925552 | N106: 1992.689628 | O106: SELL
A107: 2018-07-16T11:50:00 | C107: 1986 | D107: 1986.8 | E107: 1985.8 | F107: 1986 | G107: 12059 | H107: 1992.402835 | I107: 1978.35 | J107: -14.05283521 | K107: =IF(A107="","",IF(IF(O107=O106,IF(K106=$R$17,$R$17,IF(AND(O107="BUY",I107>I106),K106+$R$16,IF(AND(O107="BUY",I107<=I106),K106,IF(AND(O107="SELL",I107<I106),K106+$R$16,IF(AND(O107="SELL",I107>=I106),K106,””))))),$R$16)>$R$17,$R$17,IF(O107=O106,IF(K106=$R$17,$R$17,IF(AND(O107="BUY",I107>I106),K106+$R$16,IF(AND(O107="BUY",I107<=I106),K106,IF(AND(O107="SELL",I107<I106),K106+$R$16,IF(AND(O107="SELL",I107>=I106),K106,””))))),$R$16))) -> 0.02 | L107: -0.2810567041 | N107: 1992.402835 | O107: SELL
A108: 2018-07-16T11:55:00 | C108: 1986 | D108: 1986.9 | E108: 1985.75 | F108: 1985.9 | G108: 8195 | H108: 1992.121779 | I108: 1978.35 | J108: -13.7717785 | K108: =IF(A108="","",IF(IF(O108=O107,IF(K107=$R$17,$R$17,IF(AND(O108="BUY",I108>I107),K107+$R$16,IF(AND(O108="BUY",I108<=I107),K107,IF(AND(O108="SELL",I108<I107),K107+$R$16,IF(AND(O108="SELL",I108>=I107),K107,””))))),$R$16)>$R$17,$R$17,IF(O108=O107,IF(K107=$R$17,$R$17,IF(AND(O108="BUY",I108>I107),K107+$R$16,IF(AND(O108="BUY",I108<=I107),K107,IF(AND(O108="SELL",I108<I107),K107+$R$16,IF(AND(O108="SELL",I108>=I107),K107,””))))),$R$16))) -> 0.02 | L108: -0.27543557 | N108: 1992.121779 | O108: SELL
A109: 2018-07-16T12:00:00 | C109: 1985.95 | D109: 1986.15 | E109: 1985 | F109: 1986 | G109: 8312 | H109: 1991.846343 | I109: 1978.35 | J109: -13.49634293 | K109: =IF(A109="","",IF(IF(O109=O108,IF(K108=$R$17,$R$17,IF(AND(O109="BUY",I109>I108),K108+$R$16,IF(AND(O109="BUY",I109<=I108),K108,IF(AND(O109="SELL",I109<I108),K108+$R$16,IF(AND(O109="SELL",I109>=I108),K108,””))))),$R$16)>$R$17,$R$17,IF(O109=O108,IF(K108=$R$17,$R$17,IF(AND(O109="BUY",I109>I108),K108+$R$16,IF(AND(O109="BUY",I109<=I108),K108,IF(AND(O109="SELL",I109<I108),K108+$R$16,IF(AND(O109="SELL",I109>=I108),K108,””))))),$R$16))) -> 0.02 | L109: -0.2699268586 | N109: 1991.846343 | O109: SELL
A110: 2018-07-16T12:05:00 | C110: 1986.05 | D110: 1986.45 | E110: 1985.5 | F110: 1985.95 | G110: 9257 | H110: 1991.576416 | I110: 1978.35 | J110: -13.22641607 | K110: =IF(A110="","",IF(IF(O110=O109,IF(K109=$R$17,$R$17,IF(AND(O110="BUY",I110>I109),K109+$R$16,IF(AND(O110="BUY",I110<=I109),K109,IF(AND(O110="SELL",I110<I109),K109+$R$16,IF(AND(O110="SELL",I110>=I109),K109,””))))),$R$16)>$R$17,$R$17,IF(O110=O109,IF(K109=$R$17,$R$17,IF(AND(O110="BUY",I110>I109),K109+$R$16,IF(AND(O110="BUY",I110<=I109),K109,IF(AND(O110="SELL",I110<I109),K109+$R$16,IF(AND(O110="SELL",I110>=I109),K109,””))))),$R$16))) -> 0.02 | L110: -0.2645283215 | N110: 1991.576416 | O110: SELL
A111: 2018-07-16T12:10:00 | C111: 1986 | D111: 1986.45 | E111: 1985.85 | F111: 1986.1 | G111: 10312 | H111: 1991.311888 | I111: 1978.35 | J111: -12.96188775 | K111: =IF(A111="","",IF(IF(O111=O110,IF(K110=$R$17,$R$17,IF(AND(O111="BUY",I111>I110),K110+$R$16,IF(AND(O111="BUY",I111<=I110),K110,IF(AND(O111="SELL",I111<I110),K110+$R$16,IF(AND(O111="SELL",I111>=I110),K110,””))))),$R$16)>$R$17,$R$17,IF(O111=O110,IF(K110=$R$17,$R$17,IF(AND(O111="BUY",I111>I110),K110+$R$16,IF(AND(O111="BUY",I111<=I110),K110,IF(AND(O111="SELL",I111<I110),K110+$R$16,IF(AND(O111="SELL",I111>=I110),K110,””))))),$R$16))) -> 0.02 | L111: -0.259237755 | N111: 1991.311888 | O111: SELL
A112: 2018-07-16T12:15:00 | C112: 1986.05 | D112: 1987.75 | E112: 1985.9 | F112: 1987 | G112: 14284 | H112: 1991.05265 | I112: 1978.35 | J112: -12.70265 | K112: =IF(A112="","",IF(IF(O112=O111,IF(K111=$R$17,$R$17,IF(AND(O112="BUY",I112>I111),K111+$R$16,IF(AND(O112="BUY",I112<=I111),K111,IF(AND(O112="SELL",I112<I111),K111+$R$16,IF(AND(O112="SELL",I112>=I111),K111,””))))),$R$16)>$R$17,$R$17,IF(O112=O111,IF(K111=$R$17,$R$17,IF(AND(O112="BUY",I112>I111),K111+$R$16,IF(AND(O112="BUY",I112<=I111),K111,IF(AND(O112="SELL",I112<I111),K111+$R$16,IF(AND(O112="SELL",I112>=I111),K111,””))))),$R$16))) -> 0.02 | L112: -0.2540529999 | N112: 1991.05265 | O112: SELL
A113: 2018-07-16T12:20:00 | C113: 1987 | D113: 1987.35 | E113: 1985.8 | F113: 1987 | G113: 22421 | H113: 1990.798597 | I113: 1978.35 | J113: -12.448597 | K113: =IF(A113="","",IF(IF(O113=O112,IF(K112=$R$17,$R$17,IF(AND(O113="BUY",I113>I112),K112+$R$16,IF(AND(O113="BUY",I113<=I112),K112,IF(AND(O113="SELL",I113<I112),K112+$R$16,IF(AND(O113="SELL",I113>=I112),K112,””))))),$R$16)>$R$17,$R$17,IF(O113=O112,IF(K112=$R$17,$R$17,IF(AND(O113="BUY",I113>I112),K112+$R$16,IF(AND(O113="BUY",I113<=I112),K112,IF(AND(O113="SELL",I113<I112),K112+$R$16,IF(AND(O113="SELL",I113>=I112),K112,””))))),$R$16))) -> 0.02 | L113: -0.2489719399 | N113: 1990.798597 | O113: SELL
A114: 2018-07-16T12:25:00 | C114: 1986.95 | D114: 1987.25 | E114: 1985.6 | F114: 1986.8 | G114: 11088 | H114: 1990.549625 | I114: 1978.35 | J114: -12.19962506 | K114: =IF(A114="","",IF(IF(O114=O113,IF(K113=$R$17,$R$17,IF(AND(O114="BUY",I114>I113),K113+$R$16,IF(AND(O114="BUY",I114<=I113),K113,IF(AND(O114="SELL",I114<I113),K113+$R$16,IF(AND(O114="SELL",I114>=I113),K113,””))))),$R$16)>$R$17,$R$17,IF(O114=O113,IF(K113=$R$17,$R$17,IF(AND(O114="BUY",I114>I113),K113+$R$16,IF(AND(O114="BUY",I114<=I113),K113,IF(AND(O114="SELL",I114<I113),K113+$R$16,IF(AND(O114="SELL",I114>=I113),K113,””))))),$R$16))) -> 0.02 | L114: -0.2439925011 | N114: 1990.549625 | O114: SELL
A115: 2018-07-16T12:30:00 | C115: 1986.55 | D115: 1989.85 | E115: 1986.1 | F115: 1989.35 | G115: 30098 | H115: 1990.305633 | I115: 1978.35 | J115: -11.95563256 | K115: =IF(A115="","",IF(IF(O115=O114,IF(K114=$R$17,$R$17,IF(AND(O115="BUY",I115>I114),K114+$R$16,IF(AND(O115="BUY",I115<=I114),K114,IF(AND(O115="SELL",I115<I114),K114+$R$16,IF(AND(O115="SELL",I115>=I114),K114,””))))),$R$16)>$R$17,$R$17,IF(O115=O114,IF(K114=$R$17,$R$17,IF(AND(O115="BUY",I115>I114),K114+$R$16,IF(AND(O115="BUY",I115<=I114),K114,IF(AND(O115="SELL",I115<I114),K114+$R$16,IF(AND(O115="SELL",I115>=I114),K114,””))))),$R$16))) -> 0.02 | L115: -0.2391126511 | N115: 1990.305633 | O115: SELL
A116: 2018-07-16T12:35:00 | C116: 1989.35 | D116: 1989.65 | E116: 1987.45 | F116: 1988.65 | G116: 19520 | H116: 1990.06652 | I116: 1978.35 | J116: -11.7165199 | K116: =IF(A116="","",IF(IF(O116=O115,IF(K115=$R$17,$R$17,IF(AND(O116="BUY",I116>I115),K115+$R$16,IF(AND(O116="BUY",I116<=I115),K115,IF(AND(O116="SELL",I116<I115),K115+$R$16,IF(AND(O116="SELL",I116>=I115),K115,””))))),$R$16)>$R$17,$R$17,IF(O116=O115,IF(K115=$R$17,$R$17,IF(AND(O116="BUY",I116>I115),K115+$R$16,IF(AND(O116="BUY",I116<=I115),K115,IF(AND(O116="SELL",I116<I115),K115+$R$16,IF(AND(O116="SELL",I116>=I115),K115,””))))),$R$16))) -> 0.02 | L116: -0.2343303981 | N116: 1990.06652 | O116: SELL
A117: 2018-07-16T12:40:00 | C117: 1988.65 | D117: 1991.95 | E117: 1988.35 | F117: 1991 | G117: 42486 | H117: 1978.35 | I117: 1991.95 | J117: 13.6 | K117: =IF(A117="","",IF(IF(O117=O116,IF(K116=$R$17,$R$17,IF(AND(O117="BUY",I117>I116),K116+$R$16,IF(AND(O117="BUY",I117<=I116),K116,IF(AND(O117="SELL",I117<I116),K116+$R$16,IF(AND(O117="SELL",I117>=I116),K116,””))))),$R$16)>$R$17,$R$17,IF(O117=O116,IF(K116=$R$17,$R$17,IF(AND(O117="BUY",I117>I116),K116+$R$16,IF(AND(O117="BUY",I117<=I116),K116,IF(AND(O117="SELL",I117<I116),K116+$R$16,IF(AND(O117="SELL",I117>=I116),K116,””))))),$R$16))) -> 0.02 | L117: 0.272 | N117: 1978.35 | O117: BUY
A118: 2018-07-16T12:45:00 | C118: 1991.2 | D118: 1992.05 | E118: 1990 | F118: 1991 | G118: 31684 | H118: 1978.622 | I118: 1992.05 | J118: 13.428 | K118: =IF(A118="","",IF(IF(O118=O117,IF(K117=$R$17,$R$17,IF(AND(O118="BUY",I118>I117),K117+$R$16,IF(AND(O118="BUY",I118<=I117),K117,IF(AND(O118="SELL",I118<I117),K117+$R$16,IF(AND(O118="SELL",I118>=I117),K117,””))))),$R$16)>$R$17,$R$17,IF(O118=O117,IF(K117=$R$17,$R$17,IF(AND(O118="BUY",I118>I117),K117+$R$16,IF(AND(O118="BUY",I118<=I117),K117,IF(AND(O118="SELL",I118<I117),K117+$R$16,IF(AND(O118="SELL",I118>=I117),K117,””))))),$R$16))) -> 0.04 | L118: 0.53712 | N118: 1978.622 | O118: BUY
A119: 2018-07-16T12:50:00 | C119: 1991 | D119: 1991.5 | E119: 1989.55 | F119: 1990.25 | G119: 34544 | H119: 1979.15912 | I119: 1992.05 | J119: 12.89088 | K119: =IF(A119="","",IF(IF(O119=O118,IF(K118=$R$17,$R$17,IF(AND(O119="BUY",I119>I118),K118+$R$16,IF(AND(O119="BUY",I119<=I118),K118,IF(AND(O119="SELL",I119<I118),K118+$R$16,IF(AND(O119="SELL",I119>=I118),K118,””))))),$R$16)>$R$17,$R$17,IF(O119=O118,IF(K118=$R$17,$R$17,IF(AND(O119="BUY",I119>I118),K118+$R$16,IF(AND(O119="BUY",I119<=I118),K118,IF(AND(O119="SELL",I119<I118),K118+$R$16,IF(AND(O119="SELL",I119>=I118),K118,””))))),$R$16))) -> 0.04 | L119: 0.5156352 | N119: 1979.15912 | O119: BUY
A120: 2018-07-16T12:55:00 | C120: 1990.6 | D120: 1991.5 | E120: 1990 | F120: 1990.35 | G120: 27019 | H120: 1979.674755 | I120: 1992.05 | J120: 12.3752448 | K120: =IF(A120="","",IF(IF(O120=O119,IF(K119=$R$17,$R$17,IF(AND(O120="BUY",I120>I119),K119+$R$16,IF(AND(O120="BUY",I120<=I119),K119,IF(AND(O120="SELL",I120<I119),K119+$R$16,IF(AND(O120="SELL",I120>=I119),K119,””))))),$R$16)>$R$17,$R$17,IF(O120=O119,IF(K119=$R$17,$R$17,IF(AND(O120="BUY",I120>I119),K119+$R$16,IF(AND(O120="BUY",I120<=I119),K119,IF(AND(O120="SELL",I120<I119),K119+$R$16,IF(AND(O120="SELL",I120>=I119),K119,””))))),$R$16))) -> 0.04 | L120: 0.495009792 | N120: 1979.674755 | O120: BUY
A121: 2018-07-16T13:00:00 | C121: 1990.35 | D121: 1990.95 | E121: 1989.7 | F121: 1990.15 | G121: 40021 | H121: 1980.169765 | I121: 1992.05 | J121: 11.88023501 | K121: =IF(A121="","",IF(IF(O121=O120,IF(K120=$R$17,$R$17,IF(AND(O121="BUY",I121>I120),K120+$R$16,IF(AND(O121="BUY",I121<=I120),K120,IF(AND(O121="SELL",I121<I120),K120+$R$16,IF(AND(O121="SELL",I121>=I120),K120,””))))),$R$16)>$R$17,$R$17,IF(O121=O120,IF(K120=$R$17,$R$17,IF(AND(O121="BUY",I121>I120),K120+$R$16,IF(AND(O121="BUY",I121<=I120),K120,IF(AND(O121="SELL",I121<I120),K120+$R$16,IF(AND(O121="SELL",I121>=I120),K120,””))))),$R$16))) -> 0.04 | L121: 0.4752094003 | N121: 1980.169765 | O121: BUY
A122: 2018-07-16T13:05:00 | C122: 1990 | D122: 1990.5 | E122: 1989.8 | F122: 1990 | G122: 17728 | H122: 1980.644974 | I122: 1992.05 | J122: 11.40502561 | K122: =IF(A122="","",IF(IF(O122=O121,IF(K121=$R$17,$R$17,IF(AND(O122="BUY",I122>I121),K121+$R$16,IF(AND(O122="BUY",I122<=I121),K121,IF(AND(O122="SELL",I122<I121),K121+$R$16,IF(AND(O122="SELL",I122>=I121),K121,””))))),$R$16)>$R$17,$R$17,IF(O122=O121,IF(K121=$R$17,$R$17,IF(AND(O122="BUY",I122>I121),K121+$R$16,IF(AND(O122="BUY",I122<=I121),K121,IF(AND(O122="SELL",I122<I121),K121+$R$16,IF(AND(O122="SELL",I122>=I121),K121,””))))),$R$16))) -> 0.04 | L122: 0.4562010243 | N122: 1980.644974 | O122: BUY
A123: 2018-07-16T13:10:00 | C123: 1990 | D123: 1990.85 | E123: 1989.85 | F123: 1989.9 | G123: 56436 | H123: 1981.101175 | I123: 1992.05 | J123: 10.94882458 | K123: =IF(A123="","",IF(IF(O123=O122,IF(K122=$R$17,$R$17,IF(AND(O123="BUY",I123>I122),K122+$R$16,IF(AND(O123="BUY",I123<=I122),K122,IF(AND(O123="SELL",I123<I122),K122+$R$16,IF(AND(O123="SELL",I123>=I122),K122,””))))),$R$16)>$R$17,$R$17,IF(O123=O122,IF(K122=$R$17,$R$17,IF(AND(O123="BUY",I123>I122),K122+$R$16,IF(AND(O123="BUY",I123<=I122),K122,IF(AND(O123="SELL",I123<I122),K122+$R$16,IF(AND(O123="SELL",I123>=I122),K122,””))))),$R$16))) -> 0.04 | L123: 0.4379529833 | N123: 1981.101175 | O123: BUY
A124: 2018-07-16T13:15:00 | C124: 1989.9 | D124: 1995 | E124: 1989.85 | F124: 1991 | G124: 130693 | H124: 1981.539128 | I124: 1995 | J124: 13.4608716 | K124: =IF(A124="","",IF(IF(O124=O123,IF(K123=$R$17,$R$17,IF(AND(O124="BUY",I124>I123),K123+$R$16,IF(AND(O124="BUY",I124<=I123),K123,IF(AND(O124="SELL",I124<I123),K123+$R$16,IF(AND(O124="SELL",I124>=I123),K123,””))))),$R$16)>$R$17,$R$17,IF(O124=O123,IF(K123=$R$17,$R$17,IF(AND(O124="BUY",I124>I123),K123+$R$16,IF(AND(O124="BUY",I124<=I123),K123,IF(AND(O124="SELL",I124<I123),K123+$R$16,IF(AND(O124="SELL",I124>=I123),K123,””))))),$R$16))) -> 0.06 | L124: 0.807652296 | N124: 1981.539128 | O124: BUY
A125: 2018-07-16T13:20:00 | C125: 1990.65 | D125: 1991.2 | E125: 1988.6 | F125: 1990.1 | G125: 43429 | H125: 1982.346781 | I125: 1995 | J125: 12.6532193 | K125: =IF(A125="","",IF(IF(O125=O124,IF(K124=$R$17,$R$17,IF(AND(O125="BUY",I125>I124),K124+$R$16,IF(AND(O125="BUY",I125<=I124),K124,IF(AND(O125="SELL",I125<I124),K124+$R$16,IF(AND(O125="SELL",I125>=I124),K124,””))))),$R$16)>$R$17,$R$17,IF(O125=O124,IF(K124=$R$17,$R$17,IF(AND(O125="BUY",I125>I124),K124+$R$16,IF(AND(O125="BUY",I125<=I124),K124,IF(AND(O125="SELL",I125<I124),K124+$R$16,IF(AND(O125="SELL",I125>=I124),K124,””))))),$R$16))) -> 0.06 | L125: 0.7591931582 | N125: 1982.346781 | O125: BUY
A126: 2018-07-16T13:25:00 | C126: 1990.1 | D126: 1990.75 | E126: 1989.85 | F126: 1990 | G126: 18868 | H126: 1983.105974 | I126: 1995 | J126: 11.89402615 | K126: =IF(A126="","",IF(IF(O126=O125,IF(K125=$R$17,$R$17,IF(AND(O126="BUY",I126>I125),K125+$R$16,IF(AND(O126="BUY",I126<=I125),K125,IF(AND(O126="SELL",I126<I125),K125+$R$16,IF(AND(O126="SELL",I126>=I125),K125,””))))),$R$16)>$R$17,$R$17,IF(O126=O125,IF(K125=$R$17,$R$17,IF(AND(O126="BUY",I126>I125),K125+$R$16,IF(AND(O126="BUY",I126<=I125),K125,IF(AND(O126="SELL",I126<I125),K125+$R$16,IF(AND(O126="SELL",I126>=I125),K125,””))))),$R$16))) -> 0.06 | L126: 0.7136415687 | N126: 1983.105974 | O126: BUY
A127: 2018-07-16T13:30:00 | C127: 1989.95 | D127: 1991 | E127: 1989.95 | F127: 1990.8 | G127: 14993 | H127: 1983.819615 | I127: 1995 | J127: 11.18038458 | K127: =IF(A127="","",IF(IF(O127=O126,IF(K126=$R$17,$R$17,IF(AND(O127="BUY",I127>I126),K126+$R$16,IF(AND(O127="BUY",I127<=I126),K126,IF(AND(O127="SELL",I127<I126),K126+$R$16,IF(AND(O127="SELL",I127>=I126),K126,””))))),$R$16)>$R$17,$R$17,IF(O127=O126,IF(K126=$R$17,$R$17,IF(AND(O127="BUY",I127>I126),K126+$R$16,IF(AND(O127="BUY",I127<=I126),K126,IF(AND(O127="SELL",I127<I126),K126+$R$16,IF(AND(O127="SELL",I127>=I126),K126,””))))),$R$16))) -> 0.06 | L127: 0.6708230746 | N127: 1983.819615 | O127: BUY
A128: 2018-07-16T13:35:00 | C128: 1990.65 | D128: 1992.5 | E128: 1990.4 | F128: 1991.85 | G128: 15021 | H128: 1984.490438 | I128: 1995 | J128: 10.5095615 | K128: =IF(A128="","",IF(IF(O128=O127,IF(K127=$R$17,$R$17,IF(AND(O128="BUY",I128>I127),K127+$R$16,IF(AND(O128="BUY",I128<=I127),K127,IF(AND(O128="SELL",I128<I127),K127+$R$16,IF(AND(O128="SELL",I128>=I127),K127,””))))),$R$16)>$R$17,$R$17,IF(O128=O127,IF(K127=$R$17,$R$17,IF(AND(O128="BUY",I128>I127),K127+$R$16,IF(AND(O128="BUY",I128<=I127),K127,IF(AND(O128="SELL",I128<I127),K127+$R$16,IF(AND(O128="SELL",I128>=I127),K127,””))))),$R$16))) -> 0.06 | L128: 0.6305736901 | N128: 1984.490438 | O128: BUY
A129: 2018-07-16T13:40:00 | C129: 1991.8 | D129: 1991.9 | E129: 1989.85 | F129: 1989.95 | G129: 18083 | H129: 1985.121012 | I129: 1995 | J129: 9.878987812 | K129: =IF(A129="","",IF(IF(O129=O128,IF(K128=$R$17,$R$17,IF(AND(O129="BUY",I129>I128),K128+$R$16,IF(AND(O129="BUY",I129<=I128),K128,IF(AND(O129="SELL",I129<I128),K128+$R$16,IF(AND(O129="SELL",I129>=I128),K128,””))))),$R$16)>$R$17,$R$17,IF(O129=O128,IF(K128=$R$17,$R$17,IF(AND(O129="BUY",I129>I128),K128+$R$16,IF(AND(O129="BUY",I129<=I128),K128,IF(AND(O129="SELL",I129<I128),K128+$R$16,IF(AND(O129="SELL",I129>=I128),K128,””))))),$R$16))) -> 0.06 | L129: 0.5927392687 | N129: 1985.121012 | O129: BUY
A130: 2018-07-16T13:45:00 | C130: 1989.95 | D130: 1991.5 | E130: 1989.6 | F130: 1990 | G130: 16219 | H130: 1985.713751 | I130: 1995 | J130: 9.286248544 | K130: =IF(A130="","",IF(IF(O130=O129,IF(K129=$R$17,$R$17,IF(AND(O130="BUY",I130>I129),K129+$R$16,IF(AND(O130="BUY",I130<=I129),K129,IF(AND(O130="SELL",I130<I129),K129+$R$16,IF(AND(O130="SELL",I130>=I129),K129,””))))),$R$16)>$R$17,$R$17,IF(O130=O129,IF(K129=$R$17,$R$17,IF(AND(O130="BUY",I130>I129),K129+$R$16,IF(AND(O130="BUY",I130<=I129),K129,IF(AND(O130="SELL",I130<I129),K129+$R$16,IF(AND(O130="SELL",I130>=I129),K129,””))))),$R$16))) -> 0.06 | L130: 0.5571749126 | N130: 1985.713751 | O130: BUY
A131: 2018-07-16T13:50:00 | C131: 1989.95 | D131: 1991.2 | E131: 1989.5 | F131: 1990.6 | G131: 17138 | H131: 1986.270926 | I131: 1995 | J131: 8.729073631 | K131: =IF(A131="","",IF(IF(O131=O130,IF(K130=$R$17,$R$17,IF(AND(O131="BUY",I131>I130),K130+$R$16,IF(AND(O131="BUY",I131<=I130),K130,IF(AND(O131="SELL",I131<I130),K130+$R$16,IF(AND(O131="SELL",I131>=I130),K130,””))))),$R$16)>$R$17,$R$17,IF(O131=O130,IF(K130=$R$17,$R$17,IF(AND(O131="BUY",I131>I130),K130+$R$16,IF(AND(O131="BUY",I131<=I130),K130,IF(AND(O131="SELL",I131<I130),K130+$R$16,IF(AND(O131="SELL",I131>=I130),K130,””))))),$R$16))) -> 0.06 | L131: 0.5237444179 | N131: =H131 -> 1986.270926 | O131: BUY
A132: 2018-07-16T13:55:00 | C132: 1990.15 | D132: 1991.6 | E132: 1989.8 | F132: 1990.25 | G132: 13194 | H132: 1986.794671 | I132: 1995 | J132: =IF(A132="","",I132-H132) -> 8.205329213 | K132: =IF(A132="","",IF(IF(O132=O131,IF(K131=$R$17,$R$17,IF(AND(O132="BUY",I132>I131),K131+$R$16,IF(AND(O132="BUY",I132<=I131),K131,IF(AND(O132="SELL",I132<I131),K131+$R$16,IF(AND(O132="SELL",I132>=I131),K131,””))))),$R$16)>$R$17,$R$17,IF(O132=O131,IF(K131=$R$17,$R$17,IF(AND(O132="BUY",I132>I131),K131+$R$16,IF(AND(O132="BUY",I132<=I131),K131,IF(AND(O132="SELL",I132<I131),K131+$R$16,IF(AND(O132="SELL",I132>=I131),K131,””))))),$R$16))) -> 0.06 | L132: =IF(A132="","",K132*J132) -> 0.4923197528 | N132: 1986.794671 | O132: BUY
A133: 2018-07-16T14:00:00 | C133: 1990.5 | D133: 1991 | E133: 1989.5 | F133: 1990.15 | G133: 42261 | H133: =IF(A133="","",IF(AND(O132="BUY",H132+L132>E133),I132,IF(AND(O132="SELL",H132+L132<D133),I132,H132+L132))) -> 1987.286991 | I133: =IF(A133="","",IF(AND(O133="BUY",D133>I132),D133,IF(AND(O133="BUY",D133<=I132),I132,IF(AND(O133="SELL",E133<I132),E133,I132)))) -> 1995 | J133: 7.71300946 | K133: =IF(A133="","",IF(IF(O133=O132,IF(K132=$R$17,$R$17,IF(AND(O133="BUY",I133>I132),K132+$R$16,IF(AND(O133="BUY",I133<=I132),K132,IF(AND(O133="SELL",I133<I132),K132+$R$16,IF(AND(O133="SELL",I133>=I132),K132,””))))),$R$16)>$R$17,$R$17,IF(O133=O132,IF(K132=$R$17,$R$17,IF(AND(O133="BUY",I133>I132),K132+$R$16,IF(AND(O133="BUY",I133<=I132),K132,IF(AND(O133="SELL",I133<I132),K132+$R$16,IF(AND(O133="SELL",I133>=I132),K132,””))))),$R$16))) -> 0.06 | L133: 0.4627805676 | N133: 1987.286991 | O133: =IF(H133<D133,"BUY",IF(H133>E133,"SELL","")) -> BUY
A134: 2018-07-16T14:05:00 | C134: 1990 | D134: 1991 | E134: 1988.5 | F134: 1989.15 | G134: 27224 | H134: 1987.749771 | I134: 1995 | J134: 7.250228893 | K134: =IF(A134="","",IF(IF(O134=O133,IF(K133=$R$17,$R$17,IF(AND(O134="BUY",I134>I133),K133+$R$16,IF(AND(O134="BUY",I134<=I133),K133,IF(AND(O134="SELL",I134<I133),K133+$R$16,IF(AND(O134="SELL",I134>=I133),K133,””))))),$R$16)>$R$17,$R$17,IF(O134=O133,IF(K133=$R$17,$R$17,IF(AND(O134="BUY",I134>I133),K133+$R$16,IF(AND(O134="BUY",I134<=I133),K133,IF(AND(O134="SELL",I134<I133),K133+$R$16,IF(AND(O134="SELL",I134>=I133),K133,””))))),$R$16))) -> 0.06 | L134: 0.4350137336 | N134: 1987.749771 | O134: BUY
A135: 2018-07-16T14:10:00 | C135: 1989.2 | D135: 1990.35 | E135: 1988.3 | F135: 1989.25 | G135: 13881 | H135: 1988.184785 | I135: 1995 | J135: 6.815215159 | K135: =IF(A135="","",IF(IF(O135=O134,IF(K134=$R$17,$R$17,IF(AND(O135="BUY",I135>I134),K134+$R$16,IF(AND(O135="BUY",I135<=I134),K134,IF(AND(O135="SELL",I135<I134),K134+$R$16,IF(AND(O135="SELL",I135>=I134),K134,””))))),$R$16)>$R$17,$R$17,IF(O135=O134,IF(K134=$R$17,$R$17,IF(AND(O135="BUY",I135>I134),K134+$R$16,IF(AND(O135="BUY",I135<=I134),K134,IF(AND(O135="SELL",I135<I134),K134+$R$16,IF(AND(O135="SELL",I135>=I134),K134,””))))),$R$16))) -> 0.06 | L135: 0.4089129095 | N135: 1988.184785 | O135: BUY
A136: 2018-07-16T14:15:00 | C136: 1989.2 | D136: 1990.3 | E136: 1989.15 | F136: 1990 | G136: 17785 | H136: 1988.593698 | I136: 1995 | J136: 6.40630225 | K136: =IF(A136="","",IF(IF(O136=O135,IF(K135=$R$17,$R$17,IF(AND(O136="BUY",I136>I135),K135+$R$16,IF(AND(O136="BUY",I136<=I135),K135,IF(AND(O136="SELL",I136<I135),K135+$R$16,IF(AND(O136="SELL",I136>=I135),K135,””))))),$R$16)>$R$17,$R$17,IF(O136=O135,IF(K135=$R$17,$R$17,IF(AND(O136="BUY",I136>I135),K135+$R$16,IF(AND(O136="BUY",I136<=I135),K135,IF(AND(O136="SELL",I136<I135),K135+$R$16,IF(AND(O136="SELL",I136>=I135),K135,””))))),$R$16))) -> 0.06 | L136: 0.384378135 | N136: 1988.593698 | O136: BUY
A137: 2018-07-16T14:20:00 | C137: 1989.9 | D137: 1990.2 | E137: 1988.1 | F137: 1990 | G137: 22820 | H137: 1995 | I137: 1988.1 | J137: -6.9 | K137: =IF(A137="","",IF(IF(O137=O136,IF(K136=$R$17,$R$17,IF(AND(O137="BUY",I137>I136),K136+$R$16,IF(AND(O137="BUY",I137<=I136),K136,IF(AND(O137="SELL",I137<I136),K136+$R$16,IF(AND(O137="SELL",I137>=I136),K136,””))))),$R$16)>$R$17,$R$17,IF(O137=O136,IF(K136=$R$17,$R$17,IF(AND(O137="BUY",I137>I136),K136+$R$16,IF(AND(O137="BUY",I137<=I136),K136,IF(AND(O137="SELL",I137<I136),K136+$R$16,IF(AND(O137="SELL",I137>=I136),K136,””))))),$R$16))) -> 0.02 | L137: -0.138 | N137: 1995 | O137: SELL
A138: 2018-07-16T14:25:00 | C138: 1989.95 | D138: 1991.85 | E138: 1989.95 | F138: 1990.4 | G138: 15890 | H138: 1994.862 | I138: 1988.1 | J138: -6.762 | K138: =IF(A138="","",IF(IF(O138=O137,IF(K137=$R$17,$R$17,IF(AND(O138="BUY",I138>I137),K137+$R$16,IF(AND(O138="BUY",I138<=I137),K137,IF(AND(O138="SELL",I138<I137),K137+$R$16,IF(AND(O138="SELL",I138>=I137),K137,””))))),$R$16)>$R$17,$R$17,IF(O138=O137,IF(K137=$R$17,$R$17,IF(AND(O138="BUY",I138>I137),K137+$R$16,IF(AND(O138="BUY",I138<=I137),K137,IF(AND(O138="SELL",I138<I137),K137+$R$16,IF(AND(O138="SELL",I138>=I137),K137,””))))),$R$16))) -> 0.02 | L138: -0.13524 | N138: 1994.862 | O138: SELL
A139: 2018-07-16T14:30:00 | C139: 1990.2 | D139: 1991 | E139: 1989.85 | F139: 1990.55 | G139: 16234 | H139: 1994.72676 | I139: 1988.1 | J139: -6.62676 | K139: =IF(A139="","",IF(IF(O139=O138,IF(K138=$R$17,$R$17,IF(AND(O139="BUY",I139>I138),K138+$R$16,IF(AND(O139="BUY",I139<=I138),K138,IF(AND(O139="SELL",I139<I138),K138+$R$16,IF(AND(O139="SELL",I139>=I138),K138,””))))),$R$16)>$R$17,$R$17,IF(O139=O138,IF(K138=$R$17,$R$17,IF(AND(O139="BUY",I139>I138),K138+$R$16,IF(AND(O139="BUY",I139<=I138),K138,IF(AND(O139="SELL",I139<I138),K138+$R$16,IF(AND(O139="SELL",I139>=I138),K138,””))))),$R$16))) -> 0.02 | L139: -0.1325352 | N139: 1994.72676 | O139: SELL
A140: 2018-07-16T14:35:00 | C140: 1990.3 | D140: 1991.3 | E140: 1990.25 | F140: 1990.75 | G140: 13415 | H140: 1994.594225 | I140: 1988.1 | J140: -6.4942248 | K140: =IF(A140="","",IF(IF(O140=O139,IF(K139=$R$17,$R$17,IF(AND(O140="BUY",I140>I139),K139+$R$16,IF(AND(O140="BUY",I140<=I139),K139,IF(AND(O140="SELL",I140<I139),K139+$R$16,IF(AND(O140="SELL",I140>=I139),K139,””))))),$R$16)>$R$17,$R$17,IF(O140=O139,IF(K139=$R$17,$R$17,IF(AND(O140="BUY",I140>I139),K139+$R$16,IF(AND(O140="BUY",I140<=I139),K139,IF(AND(O140="SELL",I140<I139),K139+$R$16,IF(AND(O140="SELL",I140>=I139),K139,””))))),$R$16))) -> 0.02 | L140: -0.129884496 | N140: 1994.594225 | O140: SELL
A141: 2018-07-16T14:40:00 | C141: 1990.5 | D141: 1991.75 | E141: 1989.85 | F141: 1990.4 | G141: 20700 | H141: 1994.46434 | I141: 1988.1 | J141: -6.364340304 | K141: =IF(A141="","",IF(IF(O141=O140,IF(K140=$R$17,$R$17,IF(AND(O141="BUY",I141>I140),K140+$R$16,IF(AND(O141="BUY",I141<=I140),K140,IF(AND(O141="SELL",I141<I140),K140+$R$16,IF(AND(O141="SELL",I141>=I140),K140,””))))),$R$16)>$R$17,$R$17,IF(O141=O140,IF(K140=$R$17,$R$17,IF(AND(O141="BUY",I141>I140),K140+$R$16,IF(AND(O141="BUY",I141<=I140),K140,IF(AND(O141="SELL",I141<I140),K140+$R$16,IF(AND(O141="SELL",I141>=I140),K140,””))))),$R$16))) -> 0.02 | L141: -0.1272868061 | N141: 1994.46434 | O141: SELL
A142: 2018-07-16T14:45:00 | C142: 1991.15 | D142: 1991.2 | E142: 1985.5 | F142: 1987.35 | G142: 32424 | H142: 1994.337053 | I142: 1985.5 | J142: -8.837053498 | K142: =IF(A142="","",IF(IF(O142=O141,IF(K141=$R$17,$R$17,IF(AND(O142="BUY",I142>I141),K141+$R$16,IF(AND(O142="BUY",I142<=I141),K141,IF(AND(O142="SELL",I142<I141),K141+$R$16,IF(AND(O142="SELL",I142>=I141),K141,””))))),$R$16)>$R$17,$R$17,IF(O142=O141,IF(K141=$R$17,$R$17,IF(AND(O142="BUY",I142>I141),K141+$R$16,IF(AND(O142="BUY",I142<=I141),K141,IF(AND(O142="SELL",I142<I141),K141+$R$16,IF(AND(O142="SELL",I142>=I141),K141,””))))),$R$16))) -> 0.04 | L142: -0.3534821399 | N142: 1994.337053 | O142: SELL
A143: 2018-07-16T14:50:00 | C143: 1987.95 | D143: 1988.65 | E143: 1985.3 | F143: 1987.1 | G143: 22443 | H143: 1993.983571 | I143: 1985.3 | J143: -8.683571358 | K143: =IF(A143="","",IF(IF(O143=O142,IF(K142=$R$17,$R$17,IF(AND(O143="BUY",I143>I142),K142+$R$16,IF(AND(O143="BUY",I143<=I142),K142,IF(AND(O143="SELL",I143<I142),K142+$R$16,IF(AND(O143="SELL",I143>=I142),K142,””))))),$R$16)>$R$17,$R$17,IF(O143=O142,IF(K142=$R$17,$R$17,IF(AND(O143="BUY",I143>I142),K142+$R$16,IF(AND(O143="BUY",I143<=I142),K142,IF(AND(O143="SELL",I143<I142),K142+$R$16,IF(AND(O143="SELL",I143>=I142),K142,””))))),$R$16))) -> 0.06 | L143: -0.5210142815 | N143: 1993.983571 | O143: SELL
A144: 2018-07-16T14:55:00 | C144: 1987.2 | D144: 1989.95 | E144: 1987.2 | F144: 1989.4 | G144: 24586 | H144: 1993.462557 | I144: 1985.3 | J144: -8.162557077 | K144: =IF(A144="","",IF(IF(O144=O143,IF(K143=$R$17,$R$17,IF(AND(O144="BUY",I144>I143),K143+$R$16,IF(AND(O144="BUY",I144<=I143),K143,IF(AND(O144="SELL",I144<I143),K143+$R$16,IF(AND(O144="SELL",I144>=I143),K143,””))))),$R$16)>$R$17,$R$17,IF(O144=O143,IF(K143=$R$17,$R$17,IF(AND(O144="BUY",I144>I143),K143+$R$16,IF(AND(O144="BUY",I144<=I143),K143,IF(AND(O144="SELL",I144<I143),K143+$R$16,IF(AND(O144="SELL",I144>=I143),K143,””))))),$R$16))) -> 0.06 | L144: -0.4897534246 | N144: 1993.462557 | O144: SELL
A145: 2018-07-16T15:00:00 | C145: 1989.4 | D145: 1990 | E145: 1985.6 | F145: 1987.3 | G145: 26378 | H145: 1992.972804 | I145: 1985.3 | J145: -7.672803652 | K145: =IF(A145="","",IF(IF(O145=O144,IF(K144=$R$17,$R$17,IF(AND(O145="BUY",I145>I144),K144+$R$16,IF(AND(O145="BUY",I145<=I144),K144,IF(AND(O145="SELL",I145<I144),K144+$R$16,IF(AND(O145="SELL",I145>=I144),K144,””))))),$R$16)>$R$17,$R$17,IF(O145=O144,IF(K144=$R$17,$R$17,IF(AND(O145="BUY",I145>I144),K144+$R$16,IF(AND(O145="BUY",I145<=I144),K144,IF(AND(O145="SELL",I145<I144),K144+$R$16,IF(AND(O145="SELL",I145>=I144),K144,””))))),$R$16))) -> 0.06 | L145: -0.4603682191 | N145: 1992.972804 | O145: SELL
A146: 2018-07-16T15:05:00 | C146: 1987.25 | D146: 1989.35 | E146: 1987 | F146: 1989 | G146: 30415 | H146: 1992.512435 | I146: 1985.3 | J146: -7.212435433 | K146: =IF(A146="","",IF(IF(O146=O145,IF(K145=$R$17,$R$17,IF(AND(O146="BUY",I146>I145),K145+$R$16,IF(AND(O146="BUY",I146<=I145),K145,IF(AND(O146="SELL",I146<I145),K145+$R$16,IF(AND(O146="SELL",I146>=I145),K145,””))))),$R$16)>$R$17,$R$17,IF(O146=O145,IF(K145=$R$17,$R$17,IF(AND(O146="BUY",I146>I145),K145+$R$16,IF(AND(O146="BUY",I146<=I145),K145,IF(AND(O146="SELL",I146<I145),K145+$R$16,IF(AND(O146="SELL",I146>=I145),K145,””))))),$R$16))) -> 0.06 | L146: -0.432746126 | N146: 1992.512435 | O146: SELL
A147: 2018-07-16T15:10:00 | C147: 1988.9 | D147: 1990 | E147: 1988.9 | F147: 1989.2 | G147: 44353 | H147: 1992.079689 | I147: 1985.3 | J147: -6.779689307 | K147: =IF(A147="","",IF(IF(O147=O146,IF(K146=$R$17,$R$17,IF(AND(O147="BUY",I147>I146),K146+$R$16,IF(AND(O147="BUY",I147<=I146),K146,IF(AND(O147="SELL",I147<I146),K146+$R$16,IF(AND(O147="SELL",I147>=I146),K146,””))))),$R$16)>$R$17,$R$17,IF(O147=O146,IF(K146=$R$17,$R$17,IF(AND(O147="BUY",I147>I146),K146+$R$16,IF(AND(O147="BUY",I147<=I146),K146,IF(AND(O147="SELL",I147<I146),K146+$R$16,IF(AND(O147="SELL",I147>=I146),K146,””))))),$R$16))) -> 0.06 | L147: -0.4067813584 | N147: 1992.079689 | O147: SELL
A148: 2018-07-16T15:15:00 | C148: 1989.25 | D148: 1989.9 | E148: 1987.2 | F148: 1989.35 | G148: 65347 | H148: 1991.672908 | I148: 1985.3 | J148: -6.372907948 | K148: =IF(A148="","",IF(IF(O148=O147,IF(K147=$R$17,$R$17,IF(AND(O148="BUY",I148>I147),K147+$R$16,IF(AND(O148="BUY",I148<=I147),K147,IF(AND(O148="SELL",I148<I147),K147+$R$16,IF(AND(O148="SELL",I148>=I147),K147,””))))),$R$16)>$R$17,$R$17,IF(O148=O147,IF(K147=$R$17,$R$17,IF(AND(O148="BUY",I148>I147),K147+$R$16,IF(AND(O148="BUY",I148<=I147),K147,IF(AND(O148="SELL",I148<I147),K147+$R$16,IF(AND(O148="SELL",I148>=I147),K147,””))))),$R$16))) -> 0.06 | L148: -0.3823744769 | N148: 1991.672908 | O148: SELL
A149: 2018-07-16T15:20:00 | C149: 1989.4 | D149: 1995.8 | E149: 1988.7 | F149: 1989.05 | G149: 127856 | H149: 1985.3 | I149: 1995.8 | J149: 10.5 | K149: =IF(A149="","",IF(IF(O149=O148,IF(K148=$R$17,$R$17,IF(AND(O149="BUY",I149>I148),K148+$R$16,IF(AND(O149="BUY",I149<=I148),K148,IF(AND(O149="SELL",I149<I148),K148+$R$16,IF(AND(O149="SELL",I149>=I148),K148,””))))),$R$16)>$R$17,$R$17,IF(O149=O148,IF(K148=$R$17,$R$17,IF(AND(O149="BUY",I149>I148),K148+$R$16,IF(AND(O149="BUY",I149<=I148),K148,IF(AND(O149="SELL",I149<I148),K148+$R$16,IF(AND(O149="SELL",I149>=I148),K148,””))))),$R$16))) -> 0.02 | L149: 0.21 | N149: 1985.3 | O149: BUY
A150: 2018-07-16T15:25:00 | C150: 1989.05 | D150: 1989.85 | E150: 1987.15 | F150: 1987.9 | G150: 60310 | H150: 1985.51 | I150: 1995.8 | J150: 10.29 | K150: =IF(A150="","",IF(IF(O150=O149,IF(K149=$R$17,$R$17,IF(AND(O150="BUY",I150>I149),K149+$R$16,IF(AND(O150="BUY",I150<=I149),K149,IF(AND(O150="SELL",I150<I149),K149+$R$16,IF(AND(O150="SELL",I150>=I149),K149,””))))),$R$16)>$R$17,$R$17,IF(O150=O149,IF(K149=$R$17,$R$17,IF(AND(O150="BUY",I150>I149),K149+$R$16,IF(AND(O150="BUY",I150<=I149),K149,IF(AND(O150="SELL",I150<I149),K149+$R$16,IF(AND(O150="SELL",I150>=I149),K149,””))))),$R$16))) -> 0.02 | L150: 0.2058 | N150: 1985.51 | O150: BUY
A151: 2018-07-16T15:30:00 | C151: 1987.8 | D151: 1989.35 | E151: 1986 | F151: 1988.85 | G151: 132847 | H151: 1985.7158 | I151: 1995.8 | J151: 10.0842 | K151: =IF(A151="","",IF(IF(O151=O150,IF(K150=$R$17,$R$17,IF(AND(O151="BUY",I151>I150),K150+$R$16,IF(AND(O151="BUY",I151<=I150),K150,IF(AND(O151="SELL",I151<I150),K150+$R$16,IF(AND(O151="SELL",I151>=I150),K150,””))))),$R$16)>$R$17,$R$17,IF(O151=O150,IF(K150=$R$17,$R$17,IF(AND(O151="BUY",I151>I150),K150+$R$16,IF(AND(O151="BUY",I151<=I150),K150,IF(AND(O151="SELL",I151<I150),K150+$R$16,IF(AND(O151="SELL",I151>=I150),K150,””))))),$R$16))) -> 0.02 | L151: 0.201684 | N151: 1985.7158 | O151: BUY
A152: 2018-07-17T09:20:00 | C152: 1987 | D152: 1996.05 | E152: 1982.4 | F152: 1996.05 | G152: 140568 | H152: 1995.8 | I152: 1996.05 | J152: 0.25 | K152: =IF(A152="","",IF(IF(O152=O151,IF(K151=$R$17,$R$17,IF(AND(O152="BUY",I152>I151),K151+$R$16,IF(AND(O152="BUY",I152<=I151),K151,IF(AND(O152="SELL",I152<I151),K151+$R$16,IF(AND(O152="SELL",I152>=I151),K151,””))))),$R$16)>$R$17,$R$17,IF(O152=O151,IF(K151=$R$17,$R$17,IF(AND(O152="BUY",I152>I151),K151+$R$16,IF(AND(O152="BUY",I152<=I151),K151,IF(AND(O152="SELL",I152<I151),K151+$R$16,IF(AND(O152="SELL",I152>=I151),K151,””))))),$R$16))) -> 0.04 | L152: 0.01 | N152: 1995.8 | O152: BUY
A153: 2018-07-17T09:25:00 | C153: 1997 | D153: 1997 | E153: 1987.15 | F153: 1988 | G153: 341743 | H153: 1996.05 | I153: 1997 | J153: 0.95 | K153: =IF(A153="","",IF(IF(O153=O152,IF(K152=$R$17,$R$17,IF(AND(O153="BUY",I153>I152),K152+$R$16,IF(AND(O153="BUY",I153<=I152),K152,IF(AND(O153="SELL",I153<I152),K152+$R$16,IF(AND(O153="SELL",I153>=I152),K152,””))))),$R$16)>$R$17,$R$17,IF(O153=O152,IF(K152=$R$17,$R$17,IF(AND(O153="BUY",I153>I152),K152+$R$16,IF(AND(O153="BUY",I153<=I152),K152,IF(AND(O153="SELL",I153<I152),K152+$R$16,IF(AND(O153="SELL",I153>=I152),K152,””))))),$R$16))) -> 0.06 | L153: 0.057 | N153: 1996.05 | O153: BUY
A154: 2018-07-17T09:30:00 | C154: 1988.2 | D154: 1989.25 | E154: 1985.05 | F154: 1985.3 | G154: 111324 | H154: 1997 | I154: 1985.05 | J154: -11.95 | K154: =IF(A154="","",IF(IF(O154=O153,IF(K153=$R$17,$R$17,IF(AND(O154="BUY",I154>I153),K153+$R$16,IF(AND(O154="BUY",I154<=I153),K153,IF(AND(O154="SELL",I154<I153),K153+$R$16,IF(AND(O154="SELL",I154>=I153),K153,””))))),$R$16)>$R$17,$R$17,IF(O154=O153,IF(K153=$R$17,$R$17,IF(AND(O154="BUY",I154>I153),K153+$R$16,IF(AND(O154="BUY",I154<=I153),K153,IF(AND(O154="SELL",I154<I153),K153+$R$16,IF(AND(O154="SELL",I154>=I153),K153,””))))),$R$16))) -> 0.02 | L154: -0.239 | N154: 1997 | O154: SELL
A155: 2018-07-17T09:35:00 | C155: 1985.05 | D155: 1988 | E155: 1984.05 | F155: 1986.85 | G155: 33719 | H155: 1996.761 | I155: 1984.05 | J155: -12.711 | K155: =IF(A155="","",IF(IF(O155=O154,IF(K154=$R$17,$R$17,IF(AND(O155="BUY",I155>I154),K154+$R$16,IF(AND(O155="BUY",I155<=I154),K154,IF(AND(O155="SELL",I155<I154),K154+$R$16,IF(AND(O155="SELL",I155>=I154),K154,””))))),$R$16)>$R$17,$R$17,IF(O155=O154,IF(K154=$R$17,$R$17,IF(AND(O155="BUY",I155>I154),K154+$R$16,IF(AND(O155="BUY",I155<=I154),K154,IF(AND(O155="SELL",I155<I154),K154+$R$16,IF(AND(O155="SELL",I155>=I154),K154,””))))),$R$16))) -> 0.04 | L155: -0.50844 | N155: 1996.761 | O155: SELL
A156: 2018-07-17T09:40:00 | C156: 1986.2 | D156: 1987.9 | E156: 1985 | F156: 1987.75 | G156: 26924 | H156: 1996.25256 | I156: 1984.05 | J156: -12.20256 | K156: =IF(A156="","",IF(IF(O156=O155,IF(K155=$R$17,$R$17,IF(AND(O156="BUY",I156>I155),K155+$R$16,IF(AND(O156="BUY",I156<=I155),K155,IF(AND(O156="SELL",I156<I155),K155+$R$16,IF(AND(O156="SELL",I156>=I155),K155,””))))),$R$16)>$R$17,$R$17,IF(O156=O155,IF(K155=$R$17,$R$17,IF(AND(O156="BUY",I156>I155),K155+$R$16,IF(AND(O156="BUY",I156<=I155),K155,IF(AND(O156="SELL",I156<I155),K155+$R$16,IF(AND(O156="SELL",I156>=I155),K155,””))))),$R$16))) -> 0.04 | L156: -0.4881024 | N156: 1996.25256 | O156: SELL
A157: 2018-07-17T09:45:00 | C157: 1987 | D157: 1987.9 | E157: 1981 | F157: 1982.9 | G157: 34279 | H157: 1995.764458 | I157: 1981 | J157: -14.7644576 | K157: =IF(A157="","",IF(IF(O157=O156,IF(K156=$R$17,$R$17,IF(AND(O157="BUY",I157>I156),K156+$R$16,IF(AND(O157="BUY",I157<=I156),K156,IF(AND(O157="SELL",I157<I156),K156+$R$16,IF(AND(O157="SELL",I157>=I156),K156,””))))),$R$16)>$R$17,$R$17,IF(O157=O156,IF(K156=$R$17,$R$17,IF(AND(O157="BUY",I157>I156),K156+$R$16,IF(AND(O157="BUY",I157<=I156),K156,IF(AND(O157="SELL",I157<I156),K156+$R$16,IF(AND(O157="SELL",I157>=I156),K156,””))))),$R$16))) -> 0.06 | L157: -0.885867456 | N157: 1995.764458 | O157: SELL
A158: 2018-07-17T09:50:00 | C158: 1982.25 | D158: 1984.9 | E158: 1981.45 | F158: 1984.5 | G158: 26040 | H158: 1994.87859 | I158: 1981 | J158: -13.87859014 | K158: =IF(A158="","",IF(IF(O158=O157,IF(K157=$R$17,$R$17,IF(AND(O158="BUY",I158>I157),K157+$R$16,IF(AND(O158="BUY",I158<=I157),K157,IF(AND(O158="SELL",I158<I157),K157+$R$16,IF(AND(O158="SELL",I158>=I157),K157,””))))),$R$16)>$R$17,$R$17,IF(O158=O157,IF(K157=$R$17,$R$17,IF(AND(O158="BUY",I158>I157),K157+$R$16,IF(AND(O158="BUY",I158<=I157),K157,IF(AND(O158="SELL",I158<I157),K157+$R$16,IF(AND(O158="SELL",I158>=I157),K157,””))))),$R$16))) -> 0.06 | L158: -0.8327154086 | N158: 1994.87859 | O158: SELL
A159: 2018-07-17T09:55:00 | C159: 1983.45 | D159: 1984.6 | E159: 1982.2 | F159: 1982.95 | G159: 22677 | H159: 1994.045875 | I159: 1981 | J159: -13.04587474 | K159: =IF(A159="","",IF(IF(O159=O158,IF(K158=$R$17,$R$17,IF(AND(O159="BUY",I159>I158),K158+$R$16,IF(AND(O159="BUY",I159<=I158),K158,IF(AND(O159="SELL",I159<I158),K158+$R$16,IF(AND(O159="SELL",I159>=I158),K158,””))))),$R$16)>$R$17,$R$17,IF(O159=O158,IF(K158=$R$17,$R$17,IF(AND(O159="BUY",I159>I158),K158+$R$16,IF(AND(O159="BUY",I159<=I158),K158,IF(AND(O159="SELL",I159<I158),K158+$R$16,IF(AND(O159="SELL",I159>=I158),K158,””))))),$R$16))) -> 0.06 | L159: -0.7827524841 | N159: 1994.045875 | O159: SELL
A160: 2018-07-17T10:00:00 | C160: 1983.15 | D160: 1984.85 | E160: 1982.65 | F160: 1984.55 | G160: 19769 | H160: 1993.263122 | I160: 1981 | J160: -12.26312225 | K160: =IF(A160="","",IF(IF(O160=O159,IF(K159=$R$17,$R$17,IF(AND(O160="BUY",I160>I159),K159+$R$16,IF(AND(O160="BUY",I160<=I159),K159,IF(AND(O160="SELL",I160<I159),K159+$R$16,IF(AND(O160="SELL",I160>=I159),K159,””))))),$R$16)>$R$17,$R$17,IF(O160=O159,IF(K159=$R$17,$R$17,IF(AND(O160="BUY",I160>I159),K159+$R$16,IF(AND(O160="BUY",I160<=I159),K159,IF(AND(O160="SELL",I160<I159),K159+$R$16,IF(AND(O160="SELL",I160>=I159),K159,””))))),$R$16))) -> 0.06 | L160: -0.7357873351 | N160: 1993.263122 | O160: SELL
A161: 2018-07-17T10:05:00 | C161: 1984.7 | D161: 1988.3 | E161: 1983.4 | F161: 1986.3 | G161: 33647 | H161: 1992.527335 | I161: 1981 | J161: -11.52733492 | K161: =IF(A161="","",IF(IF(O161=O160,IF(K160=$R$17,$R$17,IF(AND(O161="BUY",I161>I160),K160+$R$16,IF(AND(O161="BUY",I161<=I160),K160,IF(AND(O161="SELL",I161<I160),K160+$R$16,IF(AND(O161="SELL",I161>=I160),K160,””))))),$R$16)>$R$17,$R$17,IF(O161=O160,IF(K160=$R$17,$R$17,IF(AND(O161="BUY",I161>I160),K160+$R$16,IF(AND(O161="BUY",I161<=I160),K160,IF(AND(O161="SELL",I161<I160),K160+$R$16,IF(AND(O161="SELL",I161>=I160),K160,””))))),$R$16))) -> 0.06 | L161: -0.691640095 | N161: 1992.527335 | O161: SELL
A162: 2018-07-17T10:10:00 | C162: 1986.45 | D162: 1986.95 | E162: 1984 | F162: 1984.85 | G162: 20589 | H162: 1991.835695 | I162: 1981 | J162: -10.83569482 | K162: =IF(A162="","",IF(IF(O162=O161,IF(K161=$R$17,$R$17,IF(AND(O162="BUY",I162>I161),K161+$R$16,IF(AND(O162="BUY",I162<=I161),K161,IF(AND(O162="SELL",I162<I161),K161+$R$16,IF(AND(O162="SELL",I162>=I161),K161,””))))),$R$16)>$R$17,$R$17,IF(O162=O161,IF(K161=$R$17,$R$17,IF(AND(O162="BUY",I162>I161),K161+$R$16,IF(AND(O162="BUY",I162<=I161),K161,IF(AND(O162="SELL",I162<I161),K161+$R$16,IF(AND(O162="SELL",I162>=I161),K161,””))))),$R$16))) -> 0.06 | L162: -0.6501416893 | N162: 1991.835695 | O162: SELL
A163: 2018-07-17T10:15:00 | C163: 1984.85 | D163: 1987 | E163: 1983.65 | F163: 1987 | G163: 22827 | H163: 1991.185553 | I163: 1981 | J163: -10.18555313 | K163: =IF(A163="","",IF(IF(O163=O162,IF(K162=$R$17,$R$17,IF(AND(O163="BUY",I163>I162),K162+$R$16,IF(AND(O163="BUY",I163<=I162),K162,IF(AND(O163="SELL",I163<I162),K162+$R$16,IF(AND(O163="SELL",I163>=I162),K162,””))))),$R$16)>$R$17,$R$17,IF(O163=O162,IF(K162=$R$17,$R$17,IF(AND(O163="BUY",I163>I162),K162+$R$16,IF(AND(O163="BUY",I163<=I162),K162,IF(AND(O163="SELL",I163<I162),K162+$R$16,IF(AND(O163="SELL",I163>=I162),K162,””))))),$R$16))) -> 0.06 | L163: -0.6111331879 | N163: 1991.185553 | O163: SELL
A164: 2018-07-17T10:20:00 | C164: 1987.35 | D164: 1989.65 | E164: 1985.05 | F164: 1987.2 | G164: 142644 | H164: 1990.57442 | I164: 1981 | J164: -9.574419944 | K164: =IF(A164="","",IF(IF(O164=O163,IF(K163=$R$17,$R$17,IF(AND(O164="BUY",I164>I163),K163+$R$16,IF(AND(O164="BUY",I164<=I163),K163,IF(AND(O164="SELL",I164<I163),K163+$R$16,IF(AND(O164="SELL",I164>=I163),K163,””))))),$R$16)>$R$17,$R$17,IF(O164=O163,IF(K163=$R$17,$R$17,IF(AND(O164="BUY",I164>I163),K163+$R$16,IF(AND(O164="BUY",I164<=I163),K163,IF(AND(O164="SELL",I164<I163),K163+$R$16,IF(AND(O164="SELL",I164>=I163),K163,””))))),$R$16))) -> 0.06 | L164: -0.5744651966 | N164: 1990.57442 | O164: SELL
A165: 2018-07-17T10:25:00 | C165: 1988.35 | D165: 1989 | E165: 1987.45 | F165: 1988 | G165: 23222 | H165: 1989.999955 | I165: 1981 | J165: -8.999954747 | K165: =IF(A165="","",IF(IF(O165=O164,IF(K164=$R$17,$R$17,IF(AND(O165="BUY",I165>I164),K164+$R$16,IF(AND(O165="BUY",I165<=I164),K164,IF(AND(O165="SELL",I165<I164),K164+$R$16,IF(AND(O165="SELL",I165>=I164),K164,””))))),$R$16)>$R$17,$R$17,IF(O165=O164,IF(K164=$R$17,$R$17,IF(AND(O165="BUY",I165>I164),K164+$R$16,IF(AND(O165="BUY",I165<=I164),K164,IF(AND(O165="SELL",I165<I164),K164+$R$16,IF(AND(O165="SELL",I165>=I164),K164,””))))),$R$16))) -> 0.06 | L165: -0.5399972848 | N165: 1989.999955 | O165: SELL
A166: 2018-07-17T10:30:00 | C166: 1988 | D166: 1988.8 | E166: 1985.1 | F166: 1986.45 | G166: 38775 | H166: 1989.459957 | I166: 1981 | J166: -8.459957463 | K166: =IF(A166="","",IF(IF(O166=O165,IF(K165=$R$17,$R$17,IF(AND(O166="BUY",I166>I165),K165+$R$16,IF(AND(O166="BUY",I166<=I165),K165,IF(AND(O166="SELL",I166<I165),K165+$R$16,IF(AND(O166="SELL",I166>=I165),K165,””))))),$R$16)>$R$17,$R$17,IF(O166=O165,IF(K165=$R$17,$R$17,IF(AND(O166="BUY",I166>I165),K165+$R$16,IF(AND(O166="BUY",I166<=I165),K165,IF(AND(O166="SELL",I166<I165),K165+$R$16,IF(AND(O166="SELL",I166>=I165),K165,””))))),$R$16))) -> 0.06 | L166: -0.5075974478 | N166: 1989.459957 | O166: SELL
A167: 2018-07-17T10:35:00 | C167: 1986.45 | D167: 1988.7 | E167: 1986.1 | F167: 1986.75 | G167: 28513 | H167: 1988.95236 | I167: 1981 | J167: -7.952360015 | K167: =IF(A167="","",IF(IF(O167=O166,IF(K166=$R$17,$R$17,IF(AND(O167="BUY",I167>I166),K166+$R$16,IF(AND(O167="BUY",I167<=I166),K166,IF(AND(O167="SELL",I167<I166),K166+$R$16,IF(AND(O167="SELL",I167>=I166),K166,””))))),$R$16)>$R$17,$R$17,IF(O167=O166,IF(K166=$R$17,$R$17,IF(AND(O167="BUY",I167>I166),K166+$R$16,IF(AND(O167="BUY",I167<=I166),K166,IF(AND(O167="SELL",I167<I166),K166+$R$16,IF(AND(O167="SELL",I167>=I166),K166,””))))),$R$16))) -> 0.06 | L167: -0.4771416009 | N167: 1988.95236 | O167: SELL
A168: 2018-07-17T10:40:00 | C168: 1986.75 | D168: 1989 | E168: 1986.4 | F168: 1988.45 | G168: 12052 | H168: 1981 | I168: 1989 | J168: 8 | K168: =IF(A168="","",IF(IF(O168=O167,IF(K167=$R$17,$R$17,IF(AND(O168="BUY",I168>I167),K167+$R$16,IF(AND(O168="BUY",I168<=I167),K167,IF(AND(O168="SELL",I168<I167),K167+$R$16,IF(AND(O168="SELL",I168>=I167),K167,””))))),$R$16)>$R$17,$R$17,IF(O168=O167,IF(K167=$R$17,$R$17,IF(AND(O168="BUY",I168>I167),K167+$R$16,IF(AND(O168="BUY",I168<=I167),K167,IF(AND(O168="SELL",I168<I167),K167+$R$16,IF(AND(O168="SELL",I168>=I167),K167,””))))),$R$16))) -> 0.02 | L168: 0.16 | N168: 1981 | O168: BUY
A169: 2018-07-17T10:45:00 | C169: 1988.3 | D169: 1989 | E169: 1986.7 | F169: 1988.9 | G169: 11597 | H169: 1981.16 | I169: 1989 | J169: 7.84 | K169: =IF(A169="","",IF(IF(O169=O168,IF(K168=$R$17,$R$17,IF(AND(O169="BUY",I169>I168),K168+$R$16,IF(AND(O169="BUY",I169<=I168),K168,IF(AND(O169="SELL",I169<I168),K168+$R$16,IF(AND(O169="SELL",I169>=I168),K168,””))))),$R$16)>$R$17,$R$17,IF(O169=O168,IF(K168=$R$17,$R$17,IF(AND(O169="BUY",I169>I168),K168+$R$16,IF(AND(O169="BUY",I169<=I168),K168,IF(AND(O169="SELL",I169<I168),K168+$R$16,IF(AND(O169="SELL",I169>=I168),K168,””))))),$R$16))) -> 0.02 | L169: 0.1568 | N169: 1981.16 | O169: BUY
A170: 2018-07-17T10:50:00 | C170: 1988.4 | D170: 1989 | E170: 1986.7 | F170: 1988.45 | G170: 24150 | H170: 1981.3168 | I170: 1989 | J170: 7.6832 | K170: =IF(A170="","",IF(IF(O170=O169,IF(K169=$R$17,$R$17,IF(AND(O170="BUY",I170>I169),K169+$R$16,IF(AND(O170="BUY",I170<=I169),K169,IF(AND(O170="SELL",I170<I169),K169+$R$16,IF(AND(O170="SELL",I170>=I169),K169,””))))),$R$16)>$R$17,$R$17,IF(O170=O169,IF(K169=$R$17,$R$17,IF(AND(O170="BUY",I170>I169),K169+$R$16,IF(AND(O170="BUY",I170<=I169),K169,IF(AND(O170="SELL",I170<I169),K169+$R$16,IF(AND(O170="SELL",I170>=I169),K169,””))))),$R$16))) -> 0.02 | L170: 0.153664 | N170: 1981.3168 | O170: BUY
A171: 2018-07-17T10:55:00 | C171: 1988.35 | D171: 1988.85 | E171: 1986.85 | F171: 1988.65 | G171: 11130 | H171: 1981.470464 | I171: 1989 | J171: 7.529536 | K171: =IF(A171="","",IF(IF(O171=O170,IF(K170=$R$17,$R$17,IF(AND(O171="BUY",I171>I170),K170+$R$16,IF(AND(O171="BUY",I171<=I170),K170,IF(AND(O171="SELL",I171<I170),K170+$R$16,IF(AND(O171="SELL",I171>=I170),K170,””))))),$R$16)>$R$17,$R$17,IF(O171=O170,IF(K170=$R$17,$R$17,IF(AND(O171="BUY",I171>I170),K170+$R$16,IF(AND(O171="BUY",I171<=I170),K170,IF(AND(O171="SELL",I171<I170),K170+$R$16,IF(AND(O171="SELL",I171>=I170),K170,””))))),$R$16))) -> 0.02 | L171: 0.15059072 | N171: 1981.470464 | O171: BUY
A172: 2018-07-17T11:00:00 | C172: 1988.7 | D172: 1988.95 | E172: 1987.5 | F172: 1988.55 | G172: 10535 | H172: 1981.621055 | I172: 1989 | J172: 7.37894528 | K172: =IF(A172="","",IF(IF(O172=O171,IF(K171=$R$17,$R$17,IF(AND(O172="BUY",I172>I171),K171+$R$16,IF(AND(O172="BUY",I172<=I171),K171,IF(AND(O172="SELL",I172<I171),K171+$R$16,IF(AND(O172="SELL",I172>=I171),K171,””))))),$R$16)>$R$17,$R$17,IF(O172=O171,IF(K171=$R$17,$R$17,IF(AND(O172="BUY",I172>I171),K171+$R$16,IF(AND(O172="BUY",I172<=I171),K171,IF(AND(O172="SELL",I172<I171),K171+$R$16,IF(AND(O172="SELL",I172>=I171),K171,””))))),$R$16))) -> 0.02 | L172: 0.1475789056 | N172: 1981.621055 | O172: BUY
A173: 2018-07-17T11:05:00 | C173: 1988.5 | D173: 1989 | E173: 1987.7 | F173: 1988.45 | G173: 12420 | H173: 1981.768634 | I173: 1989 | J173: 7.231366374 | K173: =IF(A173="","",IF(IF(O173=O172,IF(K172=$R$17,$R$17,IF(AND(O173="BUY",I173>I172),K172+$R$16,IF(AND(O173="BUY",I173<=I172),K172,IF(AND(O173="SELL",I173<I172),K172+$R$16,IF(AND(O173="SELL",I173>=I172),K172,””))))),$R$16)>$R$17,$R$17,IF(O173=O172,IF(K172=$R$17,$R$17,IF(AND(O173="BUY",I173>I172),K172+$R$16,IF(AND(O173="BUY",I173<=I172),K172,IF(AND(O173="SELL",I173<I172),K172+$R$16,IF(AND(O173="SELL",I173>=I172),K172,””))))),$R$16))) -> 0.02 | L173: 0.1446273275 | N173: 1981.768634 | O173: BUY
A174: 2018-07-17T11:10:00 | C174: 1988.45 | D174: 1988.65 | E174: 1987.5 | F174: 1988.5 | G174: 12667 | H174: 1981.913261 | I174: 1989 | J174: 7.086739047 | K174: =IF(A174="","",IF(IF(O174=O173,IF(K173=$R$17,$R$17,IF(AND(O174="BUY",I174>I173),K173+$R$16,IF(AND(O174="BUY",I174<=I173),K173,IF(AND(O174="SELL",I174<I173),K173+$R$16,IF(AND(O174="SELL",I174>=I173),K173,””))))),$R$16)>$R$17,$R$17,IF(O174=O173,IF(K173=$R$17,$R$17,IF(AND(O174="BUY",I174>I173),K173+$R$16,IF(AND(O174="BUY",I174<=I173),K173,IF(AND(O174="SELL",I174<I173),K173+$R$16,IF(AND(O174="SELL",I174>=I173),K173,””))))),$R$16))) -> 0.02 | L174: 0.1417347809 | N174: 1981.913261 | O174: BUY
A175: 2018-07-17T11:15:00 | C175: 1988.5 | D175: 1989.55 | E175: 1987.5 | F175: 1989 | G175: 109469 | H175: 1982.054996 | I175: 1989.55 | J175: 7.495004266 | K175: =IF(A175="","",IF(IF(O175=O174,IF(K174=$R$17,$R$17,IF(AND(O175="BUY",I175>I174),K174+$R$16,IF(AND(O175="BUY",I175<=I174),K174,IF(AND(O175="SELL",I175<I174),K174+$R$16,IF(AND(O175="SELL",I175>=I174),K174,””))))),$R$16)>$R$17,$R$17,IF(O175=O174,IF(K174=$R$17,$R$17,IF(AND(O175="BUY",I175>I174),K174+$R$16,IF(AND(O175="BUY",I175<=I174),K174,IF(AND(O175="SELL",I175<I174),K174+$R$16,IF(AND(O175="SELL",I175>=I174),K174,””))))),$R$16))) -> 0.04 | L175: 0.2998001706 | N175: 1982.054996 | O175: BUY
A176: 2018-07-17T11:20:00 | C176: 1989 | D176: 1989 | E176: 1986 | F176: 1987.95 | G176: 20990 | H176: 1982.354796 | I176: 1989.55 | J176: 7.195204095 | K176: =IF(A176="","",IF(IF(O176=O175,IF(K175=$R$17,$R$17,IF(AND(O176="BUY",I176>I175),K175+$R$16,IF(AND(O176="BUY",I176<=I175),K175,IF(AND(O176="SELL",I176<I175),K175+$R$16,IF(AND(O176="SELL",I176>=I175),K175,””))))),$R$16)>$R$17,$R$17,IF(O176=O175,IF(K175=$R$17,$R$17,IF(AND(O176="BUY",I176>I175),K175+$R$16,IF(AND(O176="BUY",I176<=I175),K175,IF(AND(O176="SELL",I176<I175),K175+$R$16,IF(AND(O176="SELL",I176>=I175),K175,””))))),$R$16))) -> 0.04 | L176: 0.2878081638 | N176: 1982.354796 | O176: BUY
A177: 2018-07-17T11:25:00 | C177: 1988 | D177: 1988.85 | E177: 1987.2 | F177: 1988 | G177: 12792 | H177: 1982.642604 | I177: 1989.55 | J177: 6.907395932 | K177: =IF(A177="","",IF(IF(O177=O176,IF(K176=$R$17,$R$17,IF(AND(O177="BUY",I177>I176),K176+$R$16,IF(AND(O177="BUY",I177<=I176),K176,IF(AND(O177="SELL",I177<I176),K176+$R$16,IF(AND(O177="SELL",I177>=I176),K176,””))))),$R$16)>$R$17,$R$17,IF(O177=O176,IF(K176=$R$17,$R$17,IF(AND(O177="BUY",I177>I176),K176+$R$16,IF(AND(O177="BUY",I177<=I176),K176,IF(AND(O177="SELL",I177<I176),K176+$R$16,IF(AND(O177="SELL",I177>=I176),K176,””))))),$R$16))) -> 0.04 | L177: 0.2762958373 | N177: 1982.642604 | O177: BUY
A178: 2018-07-17T11:30:00 | C178: 1988 | D178: 1988.5 | E178: 1987 | F178: 1987.5 | G178: 12989 | H178: 1982.9189 | I178: 1989.55 | J178: 6.631100094 | K178: =IF(A178="","",IF(IF(O178=O177,IF(K177=$R$17,$R$17,IF(AND(O178="BUY",I178>I177),K177+$R$16,IF(AND(O178="BUY",I178<=I177),K177,IF(AND(O178="SELL",I178<I177),K177+$R$16,IF(AND(O178="SELL",I178>=I177),K177,””))))),$R$16)>$R$17,$R$17,IF(O178=O177,IF(K177=$R$17,$R$17,IF(AND(O178="BUY",I178>I177),K177+$R$16,IF(AND(O178="BUY",I178<=I177),K177,IF(AND(O178="SELL",I178<I177),K177+$R$16,IF(AND(O178="SELL",I178>=I177),K177,””))))),$R$16))) -> 0.04 | L178: 0.2652440038 | N178: 1982.9189 | O178: BUY
A179: 2018-07-17T11:35:00 | C179: 1987.1 | D179: 1988.7 | E179: 1987.05 | F179: 1988.5 | G179: 10327 | H179: 1983.184144 | I179: 1989.55 | J179: 6.36585609 | K179: =IF(A179="","",IF(IF(O179=O178,IF(K178=$R$17,$R$17,IF(AND(O179="BUY",I179>I178),K178+$R$16,IF(AND(O179="BUY",I179<=I178),K178,IF(AND(O179="SELL",I179<I178),K178+$R$16,IF(AND(O179="SELL",I179>=I178),K178,””))))),$R$16)>$R$17,$R$17,IF(O179=O178,IF(K178=$R$17,$R$17,IF(AND(O179="BUY",I179>I178),K178+$R$16,IF(AND(O179="BUY",I179<=I178),K178,IF(AND(O179="SELL",I179<I178),K178+$R$16,IF(AND(O179="SELL",I179>=I178),K178,””))))),$R$16))) -> 0.04 | L179: 0.2546342436 | N179: 1983.184144 | O179: BUY
A180: 2018-07-17T11:40:00 | C180: 1988.5 | D180: 1993 | E180: 1988 | F180: 1991 | G180: 50022 | H180: 1983.438778 | I180: 1993 | J180: 9.561221847 | K180: =IF(A180="","",IF(IF(O180=O179,IF(K179=$R$17,$R$17,IF(AND(O180="BUY",I180>I179),K179+$R$16,IF(AND(O180="BUY",I180<=I179),K179,IF(AND(O180="SELL",I180<I179),K179+$R$16,IF(AND(O180="SELL",I180>=I179),K179,””))))),$R$16)>$R$17,$R$17,IF(O180=O179,IF(K179=$R$17,$R$17,IF(AND(O180="BUY",I180>I179),K179+$R$16,IF(AND(O180="BUY",I180<=I179),K179,IF(AND(O180="SELL",I180<I179),K179+$R$16,IF(AND(O180="SELL",I180>=I179),K179,””))))),$R$16))) -> 0.06 | L180: 0.5736733108 | N180: 1983.438778 | O180: BUY
A181: 2018-07-17T11:45:00 | C181: 1990 | D181: 1991.6 | E181: 1988.5 | F181: 1989.5 | G181: 22229 | H181: 1984.012451 | I181: 1993 | J181: 8.987548536 | K181: =IF(A181="","",IF(IF(O181=O180,IF(K180=$R$17,$R$17,IF(AND(O181="BUY",I181>I180),K180+$R$16,IF(AND(O181="BUY",I181<=I180),K180,IF(AND(O181="SELL",I181<I180),K180+$R$16,IF(AND(O181="SELL",I181>=I180),K180,””))))),$R$16)>$R$17,$R$17,IF(O181=O180,IF(K180=$R$17,$R$17,IF(AND(O181="BUY",I181>I180),K180+$R$16,IF(AND(O181="BUY",I181<=I180),K180,IF(AND(O181="SELL",I181<I180),K180+$R$16,IF(AND(O181="SELL",I181>=I180),K180,””))))),$R$16))) -> 0.06 | L181: 0.5392529122 | N181: 1984.012451 | O181: BUY
A182: 2018-07-17T11:50:00 | C182: 1989.5 | D182: 1992 | E182: 1989.2 | F182: 1990.5 | G182: 18943 | H182: 1984.551704 | I182: 1993 | J182: 8.448295624 | K182: =IF(A182="","",IF(IF(O182=O181,IF(K181=$R$17,$R$17,IF(AND(O182="BUY",I182>I181),K181+$R$16,IF(AND(O182="BUY",I182<=I181),K181,IF(AND(O182="SELL",I182<I181),K181+$R$16,IF(AND(O182="SELL",I182>=I181),K181,””))))),$R$16)>$R$17,$R$17,IF(O182=O181,IF(K181=$R$17,$R$17,IF(AND(O182="BUY",I182>I181),K181+$R$16,IF(AND(O182="BUY",I182<=I181),K181,IF(AND(O182="SELL",I182<I181),K181+$R$16,IF(AND(O182="SELL",I182>=I181),K181,””))))),$R$16))) -> 0.06 | L182: 0.5068977374 | N182: 1984.551704 | O182: BUY
A183: 2018-07-17T11:55:00 | C183: 1990.5 | D183: 1992.95 | E183: 1989.6 | F183: 1992.45 | G183: 30459 | H183: 1985.058602 | I183: 1993 | J183: 7.941397886 | K183: =IF(A183="","",IF(IF(O183=O182,IF(K182=$R$17,$R$17,IF(AND(O183="BUY",I183>I182),K182+$R$16,IF(AND(O183="BUY",I183<=I182),K182,IF(AND(O183="SELL",I183<I182),K182+$R$16,IF(AND(O183="SELL",I183>=I182),K182,””))))),$R$16)>$R$17,$R$17,IF(O183=O182,IF(K182=$R$17,$R$17,IF(AND(O183="BUY",I183>I182),K182+$R$16,IF(AND(O183="BUY",I183<=I182),K182,IF(AND(O183="SELL",I183<I182),K182+$R$16,IF(AND(O183="SELL",I183>=I182),K182,””))))),$R$16))) -> 0.06 | L183: 0.4764838732 | N183: 1985.058602 | O183: BUY
A184: 2018-07-17T12:00:00 | C184: 1992.35 | D184: 1992.45 | E184: 1990.25 | F184: 1991.8 | G184: 21012 | H184: 1985.535086 | I184: 1993 | J184: 7.464914013 | K184: =IF(A184="","",IF(IF(O184=O183,IF(K183=$R$17,$R$17,IF(AND(O184="BUY",I184>I183),K183+$R$16,IF(AND(O184="BUY",I184<=I183),K183,IF(AND(O184="SELL",I184<I183),K183+$R$16,IF(AND(O184="SELL",I184>=I183),K183,””))))),$R$16)>$R$17,$R$17,IF(O184=O183,IF(K183=$R$17,$R$17,IF(AND(O184="BUY",I184>I183),K183+$R$16,IF(AND(O184="BUY",I184<=I183),K183,IF(AND(O184="SELL",I184<I183),K183+$R$16,IF(AND(O184="SELL",I184>=I183),K183,””))))),$R$16))) -> 0.06 | L184: 0.4478948408 | N184: 1985.535086 | O184: BUY
A185: 2018-07-17T12:05:00 | C185: 1991.8 | D185: 1991.8 | E185: 1989.6 | F185: 1991.55 | G185: 16379 | H185: 1985.982981 | I185: 1993 | J185: 7.017019172 | K185: =IF(A185="","",IF(IF(O185=O184,IF(K184=$R$17,$R$17,IF(AND(O185="BUY",I185>I184),K184+$R$16,IF(AND(O185="BUY",I185<=I184),K184,IF(AND(O185="SELL",I185<I184),K184+$R$16,IF(AND(O185="SELL",I185>=I184),K184,””))))),$R$16)>$R$17,$R$17,IF(O185=O184,IF(K184=$R$17,$R$17,IF(AND(O185="BUY",I185>I184),K184+$R$16,IF(AND(O185="BUY",I185<=I184),K184,IF(AND(O185="SELL",I185<I184),K184+$R$16,IF(AND(O185="SELL",I185>=I184),K184,””))))),$R$16))) -> 0.06 | L185: 0.4210211503 | N185: 1985.982981 | O185: BUY
A186: 2018-07-17T12:10:00 | C186: 1991.7 | D186: 1994.85 | E186: 1991 | F186: 1993.75 | G186: 30265 | H186: 1986.404002 | I186: 1994.85 | J186: 8.445998022 | K186: =IF(A186="","",IF(IF(O186=O185,IF(K185=$R$17,$R$17,IF(AND(O186="BUY",I186>I185),K185+$R$16,IF(AND(O186="BUY",I186<=I185),K185,IF(AND(O186="SELL",I186<I185),K185+$R$16,IF(AND(O186="SELL",I186>=I185),K185,””))))),$R$16)>$R$17,$R$17,IF(O186=O185,IF(K185=$R$17,$R$17,IF(AND(O186="BUY",I186>I185),K185+$R$16,IF(AND(O186="BUY",I186<=I185),K185,IF(AND(O186="SELL",I186<I185),K185+$R$16,IF(AND(O186="SELL",I186>=I185),K185,””))))),$R$16))) -> 0.08 | L186: 0.6756798418 | N186: 1986.404002 | O186: BUY
A187: 2018-07-17T12:15:00 | C187: 1993.2 | D187: 1994.3 | E187: 1991.7 | F187: 1992.85 | G187: 29022 | H187: 1987.079682 | I187: 1994.85 | J187: 7.77031818 | K187: =IF(A187="","",IF(IF(O187=O186,IF(K186=$R$17,$R$17,IF(AND(O187="BUY",I187>I186),K186+$R$16,IF(AND(O187="BUY",I187<=I186),K186,IF(AND(O187="SELL",I187<I186),K186+$R$16,IF(AND(O187="SELL",I187>=I186),K186,””))))),$R$16)>$R$17,$R$17,IF(O187=O186,IF(K186=$R$17,$R$17,IF(AND(O187="BUY",I187>I186),K186+$R$16,IF(AND(O187="BUY",I187<=I186),K186,IF(AND(O187="SELL",I187<I186),K186+$R$16,IF(AND(O187="SELL",I187>=I186),K186,””))))),$R$16))) -> 0.08 | L187: 0.6216254544 | N187: 1987.079682 | O187: BUY
A188: 2018-07-17T12:20:00 | C188: 1992.85 | D188: 1994 | E188: 1992 | F188: 1992.8 | G188: 20152 | H188: 1987.701307 | I188: 1994.85 | J188: 7.148692726 | K188: =IF(A188="","",IF(IF(O188=O187,IF(K187=$R$17,$R$17,IF(AND(O188="BUY",I188>I187),K187+$R$16,IF(AND(O188="BUY",I188<=I187),K187,IF(AND(O188="SELL",I188<I187),K187+$R$16,IF(AND(O188="SELL",I188>=I187),K187,””))))),$R$16)>$R$17,$R$17,IF(O188=O187,IF(K187=$R$17,$R$17,IF(AND(O188="BUY",I188>I187),K187+$R$16,IF(AND(O188="BUY",I188<=I187),K187,IF(AND(O188="SELL",I188<I187),K187+$R$16,IF(AND(O188="SELL",I188>=I187),K187,””))))),$R$16))) -> 0.08 | L188: 0.5718954181 | N188: 1987.701307 | O188: BUY
A189: 2018-07-17T12:25:00 | C189: 1992.8 | D189: 1995 | E189: 1991.4 | F189: 1994.75 | G189: 32189 | H189: 1988.273203 | I189: 1995 | J189: 6.726797308 | K189: =IF(A189="","",IF(IF(O189=O188,IF(K188=$R$17,$R$17,IF(AND(O189="BUY",I189>I188),K188+$R$16,IF(AND(O189="BUY",I189<=I188),K188,IF(AND(O189="SELL",I189<I188),K188+$R$16,IF(AND(O189="SELL",I189>=I188),K188,””))))),$R$16)>$R$17,$R$17,IF(O189=O188,IF(K188=$R$17,$R$17,IF(AND(O189="BUY",I189>I188),K188+$R$16,IF(AND(O189="BUY",I189<=I188),K188,IF(AND(O189="SELL",I189<I188),K188+$R$16,IF(AND(O189="SELL",I189>=I188),K188,””))))),$R$16))) -> 0.1 | L189: 0.6726797308 | N189: 1988.273203 | O189: BUY
A190: 2018-07-17T12:30:00 | C190: 1994.2 | D190: 1994.95 | E190: 1992.5 | F190: 1993.85 | G190: 19398 | H190: 1988.945882 | I190: 1995 | J190: 6.054117577 | K190: =IF(A190="","",IF(IF(O190=O189,IF(K189=$R$17,$R$17,IF(AND(O190="BUY",I190>I189),K189+$R$16,IF(AND(O190="BUY",I190<=I189),K189,IF(AND(O190="SELL",I190<I189),K189+$R$16,IF(AND(O190="SELL",I190>=I189),K189,””))))),$R$16)>$R$17,$R$17,IF(O190=O189,IF(K189=$R$17,$R$17,IF(AND(O190="BUY",I190>I189),K189+$R$16,IF(AND(O190="BUY",I190<=I189),K189,IF(AND(O190="SELL",I190<I189),K189+$R$16,IF(AND(O190="SELL",I190>=I189),K189,””))))),$R$16))) -> 0.1 | L190: 0.6054117577 | N190: 1988.945882 | O190: BUY
A191: 2018-07-17T12:35:00 | C191: 1994 | D191: 1994.7 | E191: 1992.6 | F191: 1993.75 | G191: 17766 | H191: 1989.551294 | I191: 1995 | J191: 5.448705819 | K191: =IF(A191="","",IF(IF(O191=O190,IF(K190=$R$17,$R$17,IF(AND(O191="BUY",I191>I190),K190+$R$16,IF(AND(O191="BUY",I191<=I190),K190,IF(AND(O191="SELL",I191<I190),K190+$R$16,IF(AND(O191="SELL",I191>=I190),K190,””))))),$R$16)>$R$17,$R$17,IF(O191=O190,IF(K190=$R$17,$R$17,IF(AND(O191="BUY",I191>I190),K190+$R$16,IF(AND(O191="BUY",I191<=I190),K190,IF(AND(O191="SELL",I191<I190),K190+$R$16,IF(AND(O191="SELL",I191>=I190),K190,””))))),$R$16))) -> 0.1 | L191: 0.5448705819 | N191: 1989.551294 | O191: BUY
A192: 2018-07-17T12:40:00 | C192: 1993.45 | D192: 1994.5 | E192: 1992.35 | F192: 1993.1 | G192: 14403 | H192: 1990.096165 | I192: 1995 | J192: 4.903835237 | K192: =IF(A192="","",IF(IF(O192=O191,IF(K191=$R$17,$R$17,IF(AND(O192="BUY",I192>I191),K191+$R$16,IF(AND(O192="BUY",I192<=I191),K191,IF(AND(O192="SELL",I192<I191),K191+$R$16,IF(AND(O192="SELL",I192>=I191),K191,””))))),$R$16)>$R$17,$R$17,IF(O192=O191,IF(K191=$R$17,$R$17,IF(AND(O192="BUY",I192>I191),K191+$R$16,IF(AND(O192="BUY",I192<=I191),K191,IF(AND(O192="SELL",I192<I191),K191+$R$16,IF(AND(O192="SELL",I192>=I191),K191,””))))),$R$16))) -> 0.1 | L192: 0.4903835237 | N192: 1990.096165 | O192: BUY
A193: 2018-07-17T12:45:00 | C193: 1993.1 | D193: 1993.1 | E193: 1988.4 | F193: 1990 | G193: 22113 | H193: 1995 | I193: 1988.4 | J193: -6.6 | K193: =IF(A193="","",IF(IF(O193=O192,IF(K192=$R$17,$R$17,IF(AND(O193="BUY",I193>I192),K192+$R$16,IF(AND(O193="BUY",I193<=I192),K192,IF(AND(O193="SELL",I193<I192),K192+$R$16,IF(AND(O193="SELL",I193>=I192),K192,””))))),$R$16)>$R$17,$R$17,IF(O193=O192,IF(K192=$R$17,$R$17,IF(AND(O193="BUY",I193>I192),K192+$R$16,IF(AND(O193="BUY",I193<=I192),K192,IF(AND(O193="SELL",I193<I192),K192+$R$16,IF(AND(O193="SELL",I193>=I192),K192,””))))),$R$16))) -> 0.02 | L193: -0.132 | N193: 1995 | O193: SELL
A194: 2018-07-17T12:50:00 | C194: 1990 | D194: 1990.4 | E194: 1988.25 | F194: 1989.8 | G194: 14329 | H194: 1994.868 | I194: 1988.25 | J194: -6.618 | K194: =IF(A194="","",IF(IF(O194=O193,IF(K193=$R$17,$R$17,IF(AND(O194="BUY",I194>I193),K193+$R$16,IF(AND(O194="BUY",I194<=I193),K193,IF(AND(O194="SELL",I194<I193),K193+$R$16,IF(AND(O194="SELL",I194>=I193),K193,””))))),$R$16)>$R$17,$R$17,IF(O194=O193,IF(K193=$R$17,$R$17,IF(AND(O194="BUY",I194>I193),K193+$R$16,IF(AND(O194="BUY",I194<=I193),K193,IF(AND(O194="SELL",I194<I193),K193+$R$16,IF(AND(O194="SELL",I194>=I193),K193,””))))),$R$16))) -> 0.04 | L194: -0.26472 | N194: 1994.868 | O194: SELL
A195: 2018-07-17T12:55:00 | C195: 1989.45 | D195: 1992.7 | E195: 1989 | F195: 1991.45 | G195: 23979 | H195: 1994.60328 | I195: 1988.25 | J195: -6.35328 | K195: =IF(A195="","",IF(IF(O195=O194,IF(K194=$R$17,$R$17,IF(AND(O195="BUY",I195>I194),K194+$R$16,IF(AND(O195="BUY",I195<=I194),K194,IF(AND(O195="SELL",I195<I194),K194+$R$16,IF(AND(O195="SELL",I195>=I194),K194,””))))),$R$16)>$R$17,$R$17,IF(O195=O194,IF(K194=$R$17,$R$17,IF(AND(O195="BUY",I195>I194),K194+$R$16,IF(AND(O195="BUY",I195<=I194),K194,IF(AND(O195="SELL",I195<I194),K194+$R$16,IF(AND(O195="SELL",I195>=I194),K194,””))))),$R$16))) -> 0.04 | L195: -0.2541312 | N195: =H195 -> 1994.60328 | O195: SELL
A196: 2018-07-17T13:00:00 | C196: 1991.45 | D196: 1991.85 | E196: 1988.3 | F196: 1990 | G196: 25304 | H196: 1994.349149 | I196: 1988.25 | J196: =IF(A196="","",I196-H196) -> -6.0991488 | K196: =IF(A196="","",IF(IF(O196=O195,IF(K195=$R$17,$R$17,IF(AND(O196="BUY",I196>I195),K195+$R$16,IF(AND(O196="BUY",I196<=I195),K195,IF(AND(O196="SELL",I196<I195),K195+$R$16,IF(AND(O196="SELL",I196>=I195),K195,””))))),$R$16)>$R$17,$R$17,IF(O196=O195,IF(K195=$R$17,$R$17,IF(AND(O196="BUY",I196>I195),K195+$R$16,IF(AND(O196="BUY",I196<=I195),K195,IF(AND(O196="SELL",I196<I195),K195+$R$16,IF(AND(O196="SELL",I196>=I195),K195,””))))),$R$16))) -> 0.04 | L196: =IF(A196="","",K196*J196) -> -0.243965952 | N196: 1994.349149 | O196: SELL
A197: 2018-07-17T13:05:00 | C197: 1989.45 | D197: 1990.8 | E197: 1988.5 | F197: 1990 | G197: 22645 | H197: =IF(A197="","",IF(AND(O196="BUY",H196+L196>E197),I196,IF(AND(O196="SELL",H196+L196<D197),I196,H196+L196))) -> 1994.105183 | I197: =IF(A197="","",IF(AND(O197="BUY",D197>I196),D197,IF(AND(O197="BUY",D197<=I196),I196,IF(AND(O197="SELL",E197<I196),E197,I196)))) -> 1988.25 | J197: -5.855182848 | K197: =IF(A197="","",IF(IF(O197=O196,IF(K196=$R$17,$R$17,IF(AND(O197="BUY",I197>I196),K196+$R$16,IF(AND(O197="BUY",I197<=I196),K196,IF(AND(O197="SELL",I197<I196),K196+$R$16,IF(AND(O197="SELL",I197>=I196),K196,””))))),$R$16)>$R$17,$R$17,IF(O197=O196,IF(K196=$R$17,$R$17,IF(AND(O197="BUY",I197>I196),K196+$R$16,IF(AND(O197="BUY",I197<=I196),K196,IF(AND(O197="SELL",I197<I196),K196+$R$16,IF(AND(O197="SELL",I197>=I196),K196,””))))),$R$16))) -> 0.04 | L197: -0.2342073139 | N197: 1994.105183 | O197: =IF(H197<D197,"BUY",IF(H197>E197,"SELL","")) -> SELL
A198: 2018-07-17T13:10:00 | C198: 1990 | D198: 1991.55 | E198: 1989.6 | F198: 1989.95 | G198: 12951 | H198: 1993.870976 | I198: 1988.25 | J198: -5.620975534 | K198: =IF(A198="","",IF(IF(O198=O197,IF(K197=$R$17,$R$17,IF(AND(O198="BUY",I198>I197),K197+$R$16,IF(AND(O198="BUY",I198<=I197),K197,IF(AND(O198="SELL",I198<I197),K197+$R$16,IF(AND(O198="SELL",I198>=I197),K197,””))))),$R$16)>$R$17,$R$17,IF(O198=O197,IF(K197=$R$17,$R$17,IF(AND(O198="BUY",I198>I197),K197+$R$16,IF(AND(O198="BUY",I198<=I197),K197,IF(AND(O198="SELL",I198<I197),K197+$R$16,IF(AND(O198="SELL",I198>=I197),K197,””))))),$R$16))) -> 0.04 | L198: -0.2248390214 | N198: 1993.870976 | O198: SELL
A199: 2018-07-17T13:15:00 | C199: 1989.95 | D199: 1991.45 | E199: 1989.6 | F199: 1990.85 | G199: 26727 | H199: 1993.646137 | I199: 1988.25 | J199: -5.396136513 | K199: =IF(A199="","",IF(IF(O199=O198,IF(K198=$R$17,$R$17,IF(AND(O199="BUY",I199>I198),K198+$R$16,IF(AND(O199="BUY",I199<=I198),K198,IF(AND(O199="SELL",I199<I198),K198+$R$16,IF(AND(O199="SELL",I199>=I198),K198,””))))),$R$16)>$R$17,$R$17,IF(O199=O198,IF(K198=$R$17,$R$17,IF(AND(O199="BUY",I199>I198),K198+$R$16,IF(AND(O199="BUY",I199<=I198),K198,IF(AND(O199="SELL",I199<I198),K198+$R$16,IF(AND(O199="SELL",I199>=I198),K198,””))))),$R$16))) -> 0.04 | L199: -0.2158454605 | N199: 1993.646137 | O199: SELL
A200: 2018-07-17T13:20:00 | C200: 1990.85 | D200: 1991.8 | E200: 1990.1 | F200: 1991.05 | G200: 12072 | H200: 1993.430291 | I200: 1988.25 | J200: -5.180291052 | K200: =IF(A200="","",IF(IF(O200=O199,IF(K199=$R$17,$R$17,IF(AND(O200="BUY",I200>I199),K199+$R$16,IF(AND(O200="BUY",I200<=I199),K199,IF(AND(O200="SELL",I200<I199),K199+$R$16,IF(AND(O200="SELL",I200>=I199),K199,””))))),$R$16)>$R$17,$R$17,IF(O200=O199,IF(K199=$R$17,$R$17,IF(AND(O200="BUY",I200>I199),K199+$R$16,IF(AND(O200="BUY",I200<=I199),K199,IF(AND(O200="SELL",I200<I199),K199+$R$16,IF(AND(O200="SELL",I200>=I199),K199,””))))),$R$16))) -> 0.04 | L200: -0.2072116421 | N200: 1993.430291 | O200: SELL
... 6027 more rows

Sheet Sheet1 (hidden)
A1: 1
A2: 2
A3: 3
A4: 5
A5: 10
A6: 15
A7: 30
A8: 60
